Workbook

Sheet Server10 Lotto1 R630
A5: Server10 Lotto1 R630 | H5: List Price *
H6: =F17*C16 -> 0
A11: Components: Server DELL PowerEdge R630 (1CPU Intel® Xeon® E5-2640 v4, 32GB RDIMM, 2xHDD 300GB 10K RPM SAS 12Gbps 2.5in)
A15: PowerEdge R630 | B15: Category: Server | F15: =1806 -> 1806
B16: Quantity: | F16: =SUM(F20:F148) -> 0
F17: =SUM(F15:F16) -> 1806
B19: Base
B20: PowerEdge R630 for Intel v4 CPUs, 8HDD | C20: 1 | E20: [210-ACXS][329-BCZI]
B22: Configurazione dello chassis
B23: Chassis with up to 8, 2.5" Hard Drives, up to 2 PCIe Slots (With Optional Riser) | C23: 1 | E23: [321-BBKJ]
B25: Processore
B26: Intel Xeon E5-2640 v4 2.4GHz 25M Cache 8.0GT/s QPI Turbo HT 10C/20T (90W) Max Mem 2133MHz | C26: 1 | E26: [338-BJDL]
B28: Processore aggiuntivo
B29: No Additional Processor | C29: =VLOOKUP($B$29, CPU_A, 2, FALSE) -> 0 | D29: =VLOOKUP($B$29, CPU_A, 3, FALSE) ->  | E29: =VLOOKUP($B$29, CPU_A, 5, FALSE) -> [374-BBBX] | F29: =VLOOKUP(B29, CPU_A, 12, FALSE) -> 
B31: Processor Thermal Configuration
B32: 1 CPU up to 120W | C32: 1 | E32: [370-ABWN][412-AAEE]
B33: =VLOOKUP($B$29, CPU_A, 6, FALSE) ->  | C33: =VLOOKUP($B$29, CPU_A, 7, FALSE) ->  | E33: =VLOOKUP($B$29, CPU_A, 8, FALSE) -> 
B35: Tipo di configurazione memoria
B36: Performance Optimized | C36: 1 | E36: [370-AAIP]
B38: Memoria Totale in GB | D38: =IF(('Server10 Lotto1 R630'!$D$12=0),"",'Server10 Lotto1 R630'!#REF!) -> 
B39: 32
B41: Tipo e velocità della memoria DIMM
B42: 2400MT/s RDIMMs | C42: 1 | E42: [370-ACPH]
B44: Capacità di memoria
B45: =IF($B$29="No Additional Processor",VLOOKUP($B$39, MEM_A1, 8, FALSE),VLOOKUP($B$39, MEM_A2, 8, FALSE)) -> 16GB RDIMM, 2400MT/s, Dual Rank, x8 Data Width | C45: =IF($B$29="No Additional Processor",VLOOKUP($B$39, MEM_A1, 9, FALSE),VLOOKUP($B$39, MEM_A2, 9, FALSE)) -> 2 | E45: =IF($B$29="No Additional Processor",VLOOKUP($B$39, MEM_A1, 10, FALSE),VLOOKUP($B$39, MEM_A2, 10, FALSE)) -> [370-ACNX]
B47: =IF($B$29="No Additional Processor",VLOOKUP($B$39, MEM_A1, 2, FALSE),VLOOKUP($B$39, MEM_A2, 2, FALSE)) ->  | C47: =IF($B$29="No Additional Processor",VLOOKUP($B$39, MEM_A1, 3, FALSE),VLOOKUP($B$39, MEM_A2, 3, FALSE)) ->  | D47: =IF($B$29="No Additional Processor",VLOOKUP($B$39, MEM_A1, 4, FALSE),VLOOKUP($B$39, MEM_A2, 4, FALSE)) ->  | E47: =IF($B$29="No Additional Processor",VLOOKUP($B$39, MEM_A1, 6, FALSE),VLOOKUP($B$39, MEM_A2, 6, FALSE)) ->  | F47: =IF($B$29="No Additional Processor",VLOOKUP($B$39, MEM_A1, 7, FALSE),VLOOKUP($B$39, MEM_A2, 7, FALSE)) -> 
B49: =IF($B$29="No Additional Processor",VLOOKUP($B$39, MEM_A1, 11, FALSE),VLOOKUP($B$39, MEM_A2, 11, FALSE)) ->  | C49: =IF($B$29="No Additional Processor",VLOOKUP($B$39, MEM_A1, 12, FALSE),VLOOKUP($B$39, MEM_A2, 12, FALSE)) ->  | D49: =IF($B$29="No Additional Processor",VLOOKUP($B$39, MEM_A1, 13, FALSE),VLOOKUP($B$39, MEM_A2, 13, FALSE)) ->  | E49: =IF($B$29="No Additional Processor",VLOOKUP($B$39, MEM_A1, 15, FALSE),VLOOKUP($B$39, MEM_A2, 15, FALSE)) ->  | F49: =IF($B$29="No Additional Processor",VLOOKUP($B$39, MEM_A1, 16, FALSE),VLOOKUP($B$39, MEM_A2, 16, FALSE)) -> 
B51: Sistema operativo preinstallato
B52: No Operating System | C52: =VLOOKUP($B$52, OS_A, 2, FALSE) ->  | D52: =VLOOKUP($B$52, OS_A, 3, FALSE) ->  | E52: =VLOOKUP($B$52, OS_A, 5, FALSE) -> [611-BBBF] | F52: =VLOOKUP($B$52, OS_A, 6, FALSE) -> 
B54: OS Media Kits
B55: No Media Required | C55: 1 | E55: [605-BBFN]
B57: Client Access Licenses
B58: =VLOOKUP($B$52, OS_A, 7, FALSE) -> None | D58: =VLOOKUP($B$52, OS_A, 9, FALSE) ->  | E58: =VLOOKUP($B$52, OS_A, 11, FALSE) ->  | F58: =VLOOKUP($B$52, OS_A, 12, FALSE)*C58 -> 0
B60: =VLOOKUP($B$52, OS_A, 13, FALSE) -> None | D60: =VLOOKUP($B$52, OS_A, 15, FALSE) ->  | E60: =VLOOKUP($B$52, OS_A, 17, FALSE) ->  | F60: =VLOOKUP($B$52, OS_A, 18, FALSE)*C60 -> 0
B62: Controller RAID
B63: PERC H330 RAID Controller | C63: 1 | E63: [405-AAEF]
B65: Dischi rigidi
B66: 300GB 10K RPM SAS 12Gbps 2.5in Hot-plug Hard Drive | C66: 2 | E66: [400-AJPK]
B68: 300GB 10K RPM SAS 12Gbps 2.5in Hot-plug Hard Drive,CusKit | D68: =VLOOKUP($B$68, HDD_A,3, FALSE) -> 10L1-HDD300GB | E68: =VLOOKUP($B$68, HDD_A,5, FALSE) -> [400-AJOQ] | F68: =VLOOKUP($B$68, HDD_A,6, FALSE)*C68 -> 0
B70: 1TB 7.2K RPM NLSAS 6Gbps 2.5in Hot-plug Hard Drive,13G,CusKit | D70: =VLOOKUP($B$70, HDD_A,3, FALSE) -> 10L1-HDD1TB | E70: =VLOOKUP($B$70, HDD_A,5, FALSE) -> [400-AEFF] | F70: =VLOOKUP($B$70, HDD_A,6, FALSE)*C70 -> 0
B72: Configurazione RAID HDD 300GB
B73: C3 - RAID 1 for H330 (2 HDDs) | C73: 1 | E73: =VLOOKUP($B$73, RAID_A1, 2, FALSE) -> [780-BBJK]
B74: Hot Spare for 300GB HDD | C74: No
B76: Configurazione RAID HDD 1TB
C77: 1 | E77: =VLOOKUP($B$77, RAID_A2, 2, FALSE) -> 
B78: Hot Spare for 1TB HDD | C78: No
B80: Impostazioni del BIOS per la gestione dell'alimentazione
B81: Performance BIOS Setting | C81: 1 | E81: [384-BBBL]
B83: Alimentatore
B84: Dual, Hot-plug, Redundant Power Supply (1+1), 750W, Titanium, 200-240VAC | C84: 1 | E84: [450-ADWT]
B86: Cavi di alimentazione
B87: Rack Power Cord 2M (C13/C14 12A) | C87: 2 | E87: [450-AADY]
B89: PCIe Riser
B90: =VLOOKUP(B29, CPU_A, 9, FALSE) -> Riser with up to 1, x8 PCIe Slots + 1, x16 PCIe Slots for x8, 2 PCIe Chassis with 1 Processor | C90: =VLOOKUP($B$29, CPU_A, 10, FALSE) -> 1 | E90: =VLOOKUP($B$29, CPU_A, 11, FALSE) -> [330-BBCS]
B92: TPM Module
B93: PowerEdge Server FIPS TPM 2.0 | C93: 1 | E93: [461-AADM]
B95: Embedded Systems Management
B96: iDrac8, Enterprise with Open Manage Essentials | C96: 1 | E96: [385-BBHO][634-BBWU]
B98: Adattatore di rete
B99: Broadcom 5720 QP 1Gb Network Daughter Card | C99: 1 | E99: [540-BBBW]
B101: Additional Card for PCIe Slot 1 (Low Profile)
B102: None | C102: =VLOOKUP($B$102, PCI_A1, 2, FALSE) ->  | D102: =VLOOKUP($B$102, PCI_A1, 3, FALSE) ->  | E102: =VLOOKUP($B$102, PCI_A1, 5, FALSE) ->  | F102: =VLOOKUP($B$102, PCI_A1, 6, FALSE) -> 
B104: Additional Card for PCIe Slot 2 (Full height)
B105: None | C105: =VLOOKUP($B$105, PCI_A2, 2, FALSE) ->  | D105: =VLOOKUP($B$105, PCI_A2, 3, FALSE) ->  | E105: =VLOOKUP($B$105, PCI_A2, 5, FALSE) ->  | F105: =VLOOKUP($B$105, PCI_A2, 6, FALSE) -> 
B107: Pannello frontale
B108: Bezel 8 Drive Chassis | C108: 1 | E108: [325-BBII]
B110: Guide per rack
B111: ReadyRails™ Sliding Rails Without Cable Management Arm | C111: 1 | E111: [770-BBBC]
B113: Unità ottica interna
B114: No Internal Optical Drive for 8 HDD Chassis | C114: 1 | E114: [429-AAQN]
B116: Accessori Server
B117: PowerEdge SFP+, 10GbE SR/SX, Optical Tranceiver, LC Connector, for Intel and Broadcom,CusKit | C117: =(VLOOKUP(B105,PCI_A2,8,FALSE))+((VLOOKUP(B102,PCI_A1,8,FALSE))) -> 0 | E117: [407-BBQE]
B119: Sistema documentazione
B120: Electronic System Documentation and OpenManage DVD Kit | C120: 1 | E120: [343-BBDK]
B122: SHIPPING
B123: R630 Shipping - 8 Drive Chassis, EMEA1 (English/French/German/Spanish/Russian/Hebrew) | C123: 1 | E123: [340-AMIN]
B125: Order Information
B126: PowerEdge Order - EMEA | C126: 1 | E126: [800-11671]
B128: Base warranty
B129: 3Yr Basic Warranty - Next Business Day - Minimum Warranty | C129: 1 | E129: [709-12767][709-12768]
B131: Servizi di assitenza
B132: Dell Channel Order - Service Info only | C132: 1 | E132: [710-31085]
B134: Aggiornamenti della garanzia
B135: None | C135: =VLOOKUP($B$135, SO_A1, 2, FALSE) ->  | D135: =VLOOKUP($B$135, SO_A1, 3, FALSE) ->  | E135: =VLOOKUP($B$135, SO_A1, 5, FALSE) ->  | F135: =VLOOKUP($B$135, SO_A1, 6, FALSE) -> 
B137: Protezione dei dati - Keep Your Hard Drive
B138: None | C138: =VLOOKUP($B$138, SO_A2, 2, FALSE) ->  | D138: =VLOOKUP($B$138, SO_A2, 3, FALSE) ->  | E138: =VLOOKUP($B$138, SO_A2,5, FALSE) ->  | F138: =VLOOKUP($B$138, SO_A2, 6, FALSE) -> 
B140: Servizi di Installazione
B141: No Installation Service Selected | C141: 1 | E141: [683-11870]
B143: Channel only - Support Extension
B144: Channel 39M Basic Warranty - Next Business Day | C144: 1 | E144: [723-28776]
B146: Warranty Upgrades - Non-Std/Local POS
B147: CSTM CONSIP - 39M Onsite Labor Support for CRU for Servers with Basic Warranty | C147: 1 | E147: [681-24467]

Sheet Server10 Lotto1 R730xd
A5: Server10 Lotto1 R730xd | H5: List Price *
H6: =F17*C16 -> 0
A11: Components: Server DELL PowerEdge R730xd (1CPU Intel® Xeon® E5-2620 v4, 32GB RDIMM, 2xHDD 300GB 10K RPM SAS 12Gbps 2.5in)
A15: PowerEdge R730xd | B15: Category: Server | F15: =1728 -> 1728
B16: Quantity: | F16: =SUM(F20:F157) -> 0
F17: =SUM(F15:F16) -> 1728
B19: Base
B20: PowerEdge R730xd for Intel v4 CPUs | C20: 1 | E20: [210-ADBC][329-BCZK]
B22: Configurazione dello chassis
B23: Chassis with up to 24, 2.5" Hard Drives | C23: 1 | E23: [350-BBFD]
B25: Processore
B26: Intel Xeon E5-2620 v4 2.1GHz 20M Cache 8.0GT/s QPI Turbo HT 8C/16T (85W) Max Mem 2133MHz | C26: 1 | E26: [338-BJCZ]
B28: Processore aggiuntivo
B29: No Additional Processor | C29: =VLOOKUP($B$29, CPU_B, 2, FALSE) -> 0 | D29: =VLOOKUP($B$29, CPU_B, 3, FALSE) ->  | E29: =VLOOKUP($B$29, CPU_B, 5, FALSE) -> [374-BBBX] | F29: =VLOOKUP(B29, CPU_B, 12, FALSE) -> 
B31: Processor Thermal Configuration
B32: 1 CPU Standard | C32: 1 | E32: [370-ABWF][374-BBHM][750-AAEL]
B33: =VLOOKUP($B$29, CPU_B, 6, FALSE) ->  | C33: =VLOOKUP($B$29, CPU_B, 7, FALSE) ->  | E33: =VLOOKUP($B$29, CPU_B, 8, FALSE) -> 
B35: Tipo di configurazione memoria
B36: Performance Optimized | C36: 1 | E36: [370-AAIP]
B38: Memoria Totale in GB | D38: =IF(('Server10 Lotto1 R730xd'!$D$12=0),"",'Server10 Lotto1 R730xd'!#REF!) -> 
B39: 32
B41: Tipo e velocità della memoria DIMM
B42: 2400MT/s RDIMMs | C42: 1 | E42: [370-ACPH]
B44: Capacità di memoria
B45: 16GB RDIMM, 2400MT/s, Dual Rank, x8 Data Width | C45: =IF($B$29="No Additional Processor",VLOOKUP($B$39, MEM_B1, 9, FALSE),VLOOKUP($B$39, MEM_B2, 9, FALSE)) -> 2 | E45: =IF($B$29="No Additional Processor",VLOOKUP($B$39, MEM_B1, 10, FALSE),VLOOKUP($B$39, MEM_B2, 10, FALSE)) -> [370-ACNX]
B47: =IF($B$29="No Additional Processor",VLOOKUP($B$39, MEM_B1, 2, FALSE),VLOOKUP($B$39, MEM_B2, 2, FALSE)) ->  | C47: =IF($B$29="No Additional Processor",VLOOKUP($B$39, MEM_B1, 3, FALSE),VLOOKUP($B$39, MEM_B2, 3, FALSE)) ->  | D47: =IF($B$29="No Additional Processor",VLOOKUP($B$39, MEM_B1, 4, FALSE),VLOOKUP($B$39, MEM_B2, 4, FALSE)) ->  | E47: =IF($B$29="No Additional Processor",VLOOKUP($B$39, MEM_B1, 6, FALSE),VLOOKUP($B$39, MEM_B2, 6, FALSE)) ->  | F47: =IF($B$29="No Additional Processor",VLOOKUP($B$39, MEM_B1, 7, FALSE),VLOOKUP($B$39, MEM_B2, 7, FALSE)) -> 
B49: =IF($B$29="No Additional Processor",VLOOKUP($B$39, MEM_B1, 11, FALSE),VLOOKUP($B$39, MEM_B2, 11, FALSE)) ->  | C49: =IF($B$29="No Additional Processor",VLOOKUP($B$39, MEM_B1, 12, FALSE),VLOOKUP($B$39, MEM_B2, 12, FALSE)) ->  | D49: =IF($B$29="No Additional Processor",VLOOKUP($B$39, MEM_B1, 13, FALSE),VLOOKUP($B$39, MEM_B2, 13, FALSE)) ->  | E49: =IF($B$29="No Additional Processor",VLOOKUP($B$39, MEM_B1, 15, FALSE),VLOOKUP($B$39, MEM_B2, 15, FALSE)) ->  | F49: =IF($B$29="No Additional Processor",VLOOKUP($B$39, MEM_B1, 16, FALSE),VLOOKUP($B$39, MEM_B2, 16, FALSE)) -> 
B51: Sistema operativo preinstallato
B52: No Operating System | C52: =VLOOKUP($B$52, OS_B, 2, FALSE) ->  | D52: =VLOOKUP($B$52, OS_B, 3, FALSE) ->  | E52: =VLOOKUP($B$52, OS_B, 5, FALSE) -> [611-BBBF] | F52: =VLOOKUP($B$52, OS_B, 6, FALSE) -> 
B54: OS Media Kits
B55: No Media Required | C55: 1 | E55: [605-BBFN]
B57: Client Access Licenses
B58: =VLOOKUP($B$52, OS_B, 7, FALSE) -> None | D58: =VLOOKUP($B$52, OS_B, 9, FALSE) ->  | E58: =VLOOKUP($B$52, OS_B, 11, FALSE) ->  | F58: =VLOOKUP($B$52, OS_B, 12, FALSE)*C58 -> 0
B60: =VLOOKUP($B$52, OS_B, 13, FALSE) -> None | D60: =VLOOKUP($B$52, OS_B, 15, FALSE) ->  | E60: =VLOOKUP($B$52, OS_B, 17, FALSE) ->  | F60: =VLOOKUP($B$52, OS_B, 18, FALSE)*C60 -> 0
B62: Controller RAID
B63: PERC H330 RAID Controller | C63: 1 | E63: [405-AAEF]
B65: Dischi rigidi
B66: 300GB 10K RPM SAS 12Gbps 2.5in Hot-plug Hard Drive | C66: 2 | E66: [400-AJPK]
B68: 300GB 10K RPM SAS 12Gbps 2.5in Hot-plug Hard Drive,CusKit | C68: 0 | D68: =VLOOKUP($B$68, HDD_A,3, FALSE) -> 10L1-HDD300GB | E68: =VLOOKUP($B$68, HDD_A,5, FALSE) -> [400-AJOQ] | F68: =VLOOKUP($B$68, HDD_A,6, FALSE)*C68 -> 0
B70: 1TB 7.2K RPM NLSAS 6Gbps 2.5in Hot-plug Hard Drive,13G,CusKit | C70: 0 | D70: =VLOOKUP($B$70, HDD_A,3, FALSE) -> 10L1-HDD1TB | E70: =VLOOKUP($B$70, HDD_A,5, FALSE) -> [400-AEFF] | F70: =VLOOKUP($B$70, HDD_A,6, FALSE)*C70 -> 0
B72: Configurazione RAID HDD 300GB
B73: C3 - RAID 1 for H330 (2 HDDs) | C73: 1 | E73: =VLOOKUP($B$73, RAID_B1, 2, FALSE) -> [780-BBJK]
B74: Hot Spare for 300GB HDD | C74: No
B76: Configurazione RAID HDD 1TB
C77: 1 | E77: =VLOOKUP($B$77, RAID_B2, 2, FALSE) -> 
B78: Hot Spare for 1TB HDD | C78: No
B80: Impostazioni del BIOS per la gestione dell'alimentazione
B81: Performance BIOS Setting | C81: 1 | E81: [384-BBBL]
B83: Alimentatore
B84: Dual, Hot-plug, Redundant Power Supply (1+1), 750W, Titanium, 200-240VAC | C84: 1 | E84: [450-ADWT]
B86: Cavi di alimentazione
B87: Rack Power Cord 2M (C13/C14 12A) | C87: 2 | E87: [450-AADY]
B89: PCIe Riser
B90: Risers with up to 4, x8 PCIe Slots + 2, x16 PCIe Slots | C90: 1 | E90: [330-BBCO][330-BBCR]
B92: TPM Module
B93: PowerEdge Server FIPS TPM 2.0 | C93: 1 | E93: [461-AADM]
B95: Embedded Systems Management
B96: iDRAC8 Enterprise, integrated Dell Remote Access Controller, Enterprise | C96: 1 | E96: [385-BBHO]
B98: Adattatore di rete
B99: Broadcom 5720 QP 1Gb Network Daughter Card | C99: 1 | E99: [540-BBBW]
B101: Additional Card for PCIe Slot 6 (Full height) (CPU 1)
B102: None | C102: =VLOOKUP($B$102, PCI_B1, 2, FALSE) ->  | D102: =VLOOKUP($B$102, PCI_B1, 3, FALSE) ->  | E102: =VLOOKUP($B$102, PCI_B1, 5, FALSE) ->  | F102: =VLOOKUP($B$102, PCI_B1, 6, FALSE) -> 
B104: Additional Card for PCIe Slot 5 (Full height) (CPU 1)
B105: None | C105: =VLOOKUP($B$105, PCI_B2, 2, FALSE) ->  | D105: =VLOOKUP($B$105, PCI_B2, 3, FALSE) ->  | E105: =VLOOKUP($B$105, PCI_B2, 5, FALSE) ->  | F105: =VLOOKUP($B$105, PCI_B2, 6, FALSE) -> 
B107: Additional Card for PCIe Slot 4 (Full height) (CPU 2)
B108: None | C108: =IF(B108="Aggiungere Secondo Processore","",(VLOOKUP(B108,PCI_B3, 2, FALSE))) ->  | D108: =IF(B108="Aggiungere Secondo Processore","",(VLOOKUP(B108, PCI_B3, 3, FALSE))) ->  | E108: =VLOOKUP($B$108, PCI_B3, 5, FALSE) ->  | F108: =VLOOKUP($B$108, PCI_B3, 6, FALSE) -> 
B109: ù
B110: Additional Card for PCIe Slot 3 (Low Profile) (CPU 2)
B111: None | C111: =IF(B111="Aggiungere Secondo Processore","",(VLOOKUP(B111,PCI_B4, 2, FALSE))) ->  | D111: =IF(B111="Aggiungere Secondo Processore","",(VLOOKUP(B111, PCI_B4, 3, FALSE))) ->  | E111: =VLOOKUP($B$111, PCI_B4, 5, FALSE) ->  | F111: =VLOOKUP($B$111, PCI_B4, 6, FALSE) -> 
B113: Additional Card for PCIe Slot 2 (Low Profile) (CPU 2)
B114: None | C114: =IF(B114="Aggiungere Secondo Processore","",(VLOOKUP(B114,PCI_B5, 2, FALSE))) ->  | D114: =IF(B114="Aggiungere Secondo Processore","",(VLOOKUP(B114, PCI_B5, 3, FALSE))) ->  | E114: =VLOOKUP($B$114, PCI_B5, 5, FALSE) ->  | F114: =VLOOKUP($B$114, PCI_B5, 6, FALSE) -> 
B116: Additional Card for PCIe Slot 1 (Low Profile) (CPU 2)
B117: None | C117: =IF(B117="Aggiungere Secondo Processore","",(VLOOKUP(B117,PCI_B6, 2, FALSE))) ->  | D117: =IF(B117="Aggiungere Secondo Processore","",(VLOOKUP(B117, PCI_B6, 3, FALSE))) ->  | E117: =VLOOKUP($B$117, PCI_B5, 5, FALSE) ->  | F117: =VLOOKUP($B$117, PCI_B5, 6, FALSE) -> 
B119: Pannello frontale
B120: Bezel | C120: 1 | E120: [350-BBEJ]
B122: Guide per rack
B123: ReadyRails™ Sliding Rails Without Cable Management Arm | C123: 1 | E123: [770-BBBQ]
B125: Server Accessories
B126: PowerEdge SFP+, 10GbE SR/SX, Optical Tranceiver, LC Connector, for Intel and Broadcom,CusKit | C126: =(VLOOKUP(B117,PCI_A2,8,FALSE))+((VLOOKUP(B102,PCI_A1,8,FALSE))) -> 0 | E126: [407-BBQE]
B128: System Documentation
B129: Electronic System Documentation and OpenManage DVD Kit | C129: 1 | E129: [631-AAJG]
B131: SHIPPING
B132: PowerEdge R730xd Shipping EMEA1 (English/French/German/Spanish/Russian/Hebrew) | C132: 1 | E132: [340-AMGS]
B134: Order Information
B135: PowerEdge Order - EMEA | C135: 1 | E135: [800-11671]
B137: Base warranty
B138: 3Yr Basic Warranty - Next Business Day - Minimum Warranty | C138: 1 | E138: [709-12780][709-12781]
B140: Servizi di assitenza
B141: Dell Channel Order - Service Info only | C141: 1 | E141: [710-31085]
B143: Aggiornamenti della garanzia
B144: None | C144: =VLOOKUP($B$144, SO_B1,2, FALSE) ->  | D144: =VLOOKUP($B$144, SO_B1, 3, FALSE) ->  | E144: =VLOOKUP($B$144, SO_B1, 5, FALSE) ->  | F144: =VLOOKUP($B$144, SO_B1, 6, FALSE) -> 
B146: Protezione dei dati - Keep Your Hard Drive
B147: None | C147: =VLOOKUP($B$147, SO_B2, 2, FALSE) ->  | D147: =VLOOKUP($B$147, SO_B2, 3, FALSE) ->  | E147: =VLOOKUP($B$147, SO_B2,5, FALSE) ->  | F147: =VLOOKUP($B$147, SO_B2, 6, FALSE) -> 
B149: Servizi di Installazione
B150: No Installation Service Selected | C150: 1 | E150: [683-11870]
B152: Channel only - Support Extension
B153: Channel 39M Basic Warranty - Next Business Day | C153: 1 | E153: [723-28780]
B155: Warranty Upgrades - Non-Std/Local POS
B156: CSTM CONSIP - 39M Onsite Labor Support for CRU for Servers with Basic Warranty | C156: 1 | E156: [681-24467]

Sheet Server10 Lotto1 T630
A5: Server10 Lotto1 T630 | F5: List Price *
F6: =F13*C12 -> 0
A7: Components: Server DELL PowerEdge T630 (1CPU Intel® Xeon® E5-2640 v4, 32GB RDIMM, 2xHDD 300GB 10K RPM SAS 12Gbps 2.5in)
A11: PowerEdge T630 | B11: Category: Server | F11: =2340 -> 2340
B12: Quantity: | F12: =SUM(F16:F160) -> 0
F13: =SUM(F11:F12) -> 2340
B15: Base
B16: PowerEdge T630 for Intel v4 CPUs | C16: 1 | E16: [210-ACWJ][329-BCZH]
B18: Configurazione dello chassis
B19: Chassis with up to 32, 2.5" Hard Drives, Tower Configuration | C19: 1 | E19: [321-BBKC]
B21: Processore
B22: Intel Xeon E5-2640 v4 2.4GHz 25M Cache 8.0GT/s QPI Turbo HT 10C/20T (90W) Max Mem 2133MHz | C22: 1 | E22: [338-BJDL]
B24: Processore aggiuntivo
B25: No Additional Processor | C25: =VLOOKUP($B$25, CPU_C, 2, FALSE) -> 0 | D25: =VLOOKUP($B$25, CPU_C, 3, FALSE) ->  | E25: =VLOOKUP($B$25, CPU_C, 5, FALSE) -> [374-BBBX] | F25: =VLOOKUP(B25, CPU_C, 12, FALSE) -> 
B27: Processor Thermal Configuration
B28: 1 CPU up to 105W | C28: 1 | E28: [412-AADW]
B29: =VLOOKUP($B$25, CPU_C, 6, FALSE) ->  | C29: =VLOOKUP($B$25, CPU_C, 7, FALSE) ->  | E29: =VLOOKUP($B$25, CPU_C, 8, FALSE) -> 
B31: Tipo di configurazione memoria
B32: Performance Optimized | C32: 1 | E32: [370-AAIP]
B34: Total Memory in GB | D34: =IF(('Server10 Lotto1 T630'!$D$8=0),"",'Server10 Lotto1 T630'!#REF!) -> 
B35: 32
B37: Tipo e velocità della memoria DIMM
B38: 2400MT/s RDIMMs | C38: 1 | E38: [370-ACPH]
B40: Capacità di memoria
B41: 16GB RDIMM, 2400MT/s, Dual Rank, x8 Data Width | C41: =IF($B$25="No Additional Processor",VLOOKUP($B$35, MEM_C1, 9, FALSE),VLOOKUP($B$35, MEM_C2, 9, FALSE)) -> 2 | E41: [370-ACNX]
B43: =IF($B$25="No Additional Processor",VLOOKUP($B$35, MEM_C1, 2, FALSE),VLOOKUP($B$35, MEM_C2, 2, FALSE)) ->  | C43: =IF($B$25="No Additional Processor",VLOOKUP($B$35, MEM_C1, 3, FALSE),VLOOKUP($B$35, MEM_C2, 3, FALSE)) ->  | D43: =IF($B$25="No Additional Processor",VLOOKUP($B$35, MEM_C1, 4, FALSE),VLOOKUP($B$35, MEM_C2, 4, FALSE)) ->  | E43: =IF($B$25="No Additional Processor",VLOOKUP($B$35, MEM_C1, 6, FALSE),VLOOKUP($B$35, MEM_C2, 6, FALSE)) ->  | F43: =IF($B$25="No Additional Processor",VLOOKUP($B$35, MEM_C1, 7, FALSE),VLOOKUP($B$35, MEM_C2, 7, FALSE)) -> 
B45: =IF($B$25="No Additional Processor",VLOOKUP($B$35, MEM_C1, 11, FALSE),VLOOKUP($B$35, MEM_C2, 11, FALSE)) ->  | C45: =IF($B$25="No Additional Processor",VLOOKUP($B$35, MEM_C1, 12, FALSE),VLOOKUP($B$35, MEM_C2, 12, FALSE)) ->  | D45: =IF($B$25="No Additional Processor",VLOOKUP($B$35, MEM_C1, 13, FALSE),VLOOKUP($B$35, MEM_C2, 13, FALSE)) ->  | E45: =IF($B$25="No Additional Processor",VLOOKUP($B$35, MEM_C1, 15, FALSE),VLOOKUP($B$35, MEM_C2, 15, FALSE)) ->  | F45: =IF($B$25="No Additional Processor",VLOOKUP($B$35, MEM_C1, 16, FALSE),VLOOKUP($B$35, MEM_C2, 16, FALSE)) -> 
B47: Sistema operativo preinstallato
B48: No Operating System | C48: =VLOOKUP($B$48, OS_C, 2, FALSE) ->  | D48: =VLOOKUP($B$48, OS_C, 3, FALSE) ->  | E48: =VLOOKUP($B$48, OS_C, 5, FALSE) -> [611-BBBF] | F48: =VLOOKUP($B$48, OS_C, 6, FALSE) -> 
B50: OS Media Kits
B51: No Media Required | C51: 1 | E51: [605-BBFN]
B53: Client Access Licenses
B54: =VLOOKUP($B$48, OS_C, 7, FALSE) -> None | D54: =VLOOKUP($B$48, OS_C, 9, FALSE) ->  | E54: =VLOOKUP($B$48, OS_C, 11, FALSE) ->  | F54: =VLOOKUP($B$48, OS_C, 12, FALSE)*C54 -> 0
B56: =VLOOKUP($B$48, OS_C, 13, FALSE) -> None | D56: =VLOOKUP($B$48, OS_C, 15, FALSE) ->  | E56: =VLOOKUP($B$48, OS_C, 17, FALSE) ->  | F56: =VLOOKUP($B$48, OS_C, 18, FALSE)*C56 -> 0
B58: Controller RAID
B59: PERC H330 RAID Controller | C59: 1 | E59: [405-AADS]
B61: Dischi rigidi
B62: 300GB 10K RPM SAS 12Gbps 2.5in Hot-plug Hard Drive | C62: 2 | E62: [400-AJPK]
B64: 300GB 10K RPM SAS 12Gbps 2.5in Hot-plug Hard Drive,CusKit | C64: 0 | D64: =VLOOKUP($B$64, HDD_C,3, FALSE) -> 10L1-HDD300GB-T | E64: =VLOOKUP($B$64, HDD_C,5, FALSE) -> [400-AJOQ] | F64: =VLOOKUP($B$64, HDD_C,6, FALSE)*C64 -> 0
B66: 1TB 7.2K RPM NLSAS 6Gbps 2.5in Hot-plug Hard Drive,13G,CusKit | C66: 0 | D66: =VLOOKUP($B$66, HDD_C,3, FALSE) -> 10L1-HDD1TB | E66: =VLOOKUP($B$66, HDD_C,5, FALSE) -> [400-AEFF] | F66: =VLOOKUP($B$66, HDD_C,6, FALSE)*C66 -> 0
B68: Configurazione RAID HDD 300GB
B69: C3 - RAID 1 for H330 (2 HDDs) | C69: 1 | E69: =VLOOKUP($B$69, RAID_C1, 2, FALSE) -> [780-BBJK]
B70: Hot Spare for 300GB HDD | C70: No
B72: Configurazione RAID HDD 1TB
C73: 1 | E73: =VLOOKUP($B$73, RAID_C2, 2, FALSE) -> 
B74: Hot Spare for 1TB HDD | C74: No
B76: Impostazioni del BIOS per la gestione dell'alimentazione
B77: Performance BIOS Setting | C77: 1 | E77: [384-BBBL]
B79: Raffreddamento
B80: Fresh Air Cooling | C80: 1 | E80: [384-BBDW]
B82: Alimentatore
B83: Dual, Hot-plug, Redundant Power Supply (1+1), 750W, Titanium, 200-240VAC | C83: 1 | E83: [450-ADWT]
B85: Cavi di alimentazione
B86: Italian Spare Power Cord 220V | C86: 2 | E86: [450-AAYN]
B88: TPM Module
B89: PowerEdge Server FIPS TPM 2.0 | C89: 1 | E89: [461-AADM]
B91: Embedded Systems Management
B92: iDrac8, Enterprise | C92: 1 | E92: [385-BBHO]
B94: Adattatore di rete aggiuntivo
B95: On-Board LOM 1GBE (Dual Port for Towers, Quad Port for Racks and Blades) | C95: 1 | E95: [542-BBBP]
B97: Broadcom 5720 DP 1Gb Network Interface Card | C97: 1 | E97: [540-BBCX]
B99: Additional Card for PCIe Slot 1 (CPU 1)
B100: None | C100: =VLOOKUP($B$100, PCI_C1, 2, FALSE) ->  | D100: =VLOOKUP($B$100, PCI_C1, 3, FALSE) ->  | E100: =VLOOKUP($B$100, PCI_C1, 5, FALSE) ->  | F100: =VLOOKUP($B$100, PCI_C1, 6, FALSE) -> 
B102: Additional Card for PCIe Slot 2 (CPU 1)
B103: None | C103: =VLOOKUP($B$103, PCI_C2, 2, FALSE) ->  | D103: =VLOOKUP($B$103, PCI_C2, 3, FALSE) ->  | E103: =VLOOKUP($B$103, PCI_C2, 5, FALSE) ->  | F103: =VLOOKUP($B$103, PCI_C2, 6, FALSE) -> 
B105: Additional Card for PCIe Slot 3 (CPU 2)
B106: None | C106: =IF(B106="Aggiungere Secondo Processore","",(VLOOKUP(B106,PCI_C3, 2, FALSE))) ->  | D106: =IF(B106="Aggiungere Secondo Processore","",(VLOOKUP(B106, PCI_C3, 3, FALSE))) ->  | E106: =VLOOKUP($B$106, PCI_C3, 5, FALSE) ->  | F106: =VLOOKUP($B$106, PCI_C3, 6, FALSE) -> 
B108: Additional Card for PCIe Slot 4 (CPU 2)
B109: None | C109: =IF(B109="Aggiungere Secondo Processore","",(VLOOKUP(B109,PCI_C4, 2, FALSE))) ->  | D109: =IF(B109="Aggiungere Secondo Processore","",(VLOOKUP(B109, PCI_C4, 3, FALSE))) ->  | E109: =VLOOKUP($B$109, PCI_C4, 5, FALSE) ->  | F109: =VLOOKUP($B$109, PCI_C4, 6, FALSE) -> 
B111: Additional Card for PCIe Slot 5 (CPU 2)
B112: None | C112: =IF(B112="Aggiungere Secondo Processore","",(VLOOKUP(B112,PCI_C4, 2, FALSE))) ->  | D112: =IF(B112="Aggiungere Secondo Processore","",(VLOOKUP(B112, PCI_C4, 3, FALSE))) ->  | E112: =VLOOKUP($B$112, PCI_C5, 5, FALSE) ->  | F112: =VLOOKUP($B$112, PCI_C5, 6, FALSE) -> 
B114: Additional Card for PCIe Slot 6 (CPU 2)
B115: None | C115: =IF(B115="Aggiungere Secondo Processore","",(VLOOKUP(B115,PCI_C4, 2, FALSE))) ->  | D115: =IF(B115="Aggiungere Secondo Processore","",(VLOOKUP(B115, PCI_C4, 3, FALSE))) ->  | E115: =VLOOKUP($B$115, PCI_C6, 5, FALSE) ->  | F115: =VLOOKUP($B$115, PCI_C6, 6, FALSE) -> 
B117: Pannello frontale
B118: Bezel | C118: 1 | E118: [325-BBHK]
B120: Guide per rack
B121: No Rack Rails, No Cable Management Arm, No Casters | C121: 1 | E121: [770-BBCR]
B123: Unità ottica interna
B124: No Internal Optical Drive, 2.5in Chassis | C124: 1 | E124: [429-AAIQ][429-AAOJ]
B126: Accessori per server
B127: Redundant Fan Option | C127: 1 | E127: [750-AAFF]
B129: PowerEdge SFP+, 10GbE SR/SX, Optical Tranceiver, LC Connector, for Intel and Broadcom,CusKit | C129: =(VLOOKUP(B103,PCI_C2,8,FALSE))+((VLOOKUP(B100,PCI_C1,8,FALSE)))+((VLOOKUP(B106,PCI_C3,8,FALSE)))+((VLOOKUP(B109,PCI_C4,8,FALSE)))+((VLOOKUP(B112,PCI_C5,8,FALSE)))+((VLOOKUP(B115,PCI_C6,8,FALSE))) ->  | E129: [407-BBQE]
B131: System Documentation
B132: Electronic System Documentation and OpenManage DVD Kit, PowerEdge T630 | C132: 1 | E132: [343-BBDE]
B134: SHIPPING
B135: PowerEdge T630 Shipping EMEA1 (English/French/German/Spanish/Russian/Hebrew) | C135: 1 | E135: [340-AMBT]
B137: Order Information
B138: Enterprise Order - EMEA | C138: 1 | E138: [800-11671]
B140: Base warranty
B141: 3Yr Basic Warranty - Next Business Day - Minimum Warranty | C141: 1 | E141: [709-12798][709-12799]
B143: Servizi di assitenza
B144: Dell Channel Order - Service Info only | C144: 1 | E144: [710-31085]
B146: Aggiornamenti della garanzia
B147: None | C147: =VLOOKUP($B$147, SO_C1, 2, FALSE) ->  | D147: =VLOOKUP($B$147, SO_C1, 3, FALSE) ->  | E147: =VLOOKUP($B$147, SO_C1, 5, FALSE) ->  | F147: =VLOOKUP($B$147, SO_C1, 6, FALSE) -> 
B149: Protezione dei dati - Keep Your Hard Drive
B150: None | C150: =VLOOKUP($B$150, SO_C2, 2, FALSE) ->  | D150: =VLOOKUP($B$150, SO_C2, 3, FALSE) ->  | E150: =VLOOKUP($B$150, SO_C2,5, FALSE) ->  | F150: =VLOOKUP($B$150, SO_C2, 6, FALSE) -> 
B152: Servizi di Installazione
B153: No Installation Service Selected | C153: 1 | E153: [683-11870]
B155: Channel only - Support Extension
B156: Channel 39M Basic Warranty - Next Business Day | C156: 1 | E156: [723-28783]
B158: Warranty Upgrades - Non-Std/Local POS
B159: CSTM CONSIP - 39M Onsite Labor Support for CRU for Servers with Basic Warranty | C159: 1 | E159: [681-24467]

Sheet RACK, Accessori e Servizi
D1: Indicare il numero delle Opzioni
M3: SERVIZI
C4: =IF(SRV_A+SRV_B+SRV_C>=1,"Servizi Specialistici","") -> 
C5: =IF(SRV_A+SRV_B+SRV_C>=1,"Servizio Specialistico di System and Network Management per sistema opertivo Windows, erogato on site. (GG/Uomo)","") ->  | K5: =IF(J5>=1,"10L1-SO-WIN","") -> 
C7: =IF(SRV_A+SRV_B+SRV_C>=1,"Servizio Specialistico di System and Network Management per sistema opertivo Linux, erogato on site. (GG/Uomo)","") ->  | K7: =IF(J7>=1,"10L1-SO-LINUX","") -> 
C9: =IF((SRV_A+SRV_AA+SRV_AAA+SRV_B+SRV_BB+SRV_BBB+SRV_C)>=5,"Servizi specialistici sistemistici per aggiornare e prevenire malfunzionamenti. (Minimo 5 Server)","") ->  | K9: =IF(J9>=1,"10L1-SO-PREV","") -> 
M12: SERVER RACK | N12: In questo foglio deve essere indicata la quantità delle opzioni Hardware e dei Servizi da acquistare. Di seguito è possibile configurare fino a 10 tipologie di armadio Rack a seconda della tipologia e del numero di Server inseriti al suo interno.
C13: =IF(SRV_A+SRV_B>=1,"Rack (OpzRack)","") -> 
C14: =IF(SRV_A+SRV_B>=1,"Tecnosteel: armadio Rack 19'' 42U ''Tecno SuperServer''","") ->  | K14: =IF(J14>=1,"10L1-RACK","") -> 
C16: =IF(SRV_A+SRV_B>=1,"KVM (OpzGUIRack)","") -> 
C17: =IF(SRV_A+SRV_B>=1,"Tecnosteel: OneView 1U Rackmount Console 17'' with Italian Keyboard","") ->  | K17: =IF(J17>=1,"10L1-GUI","") -> 
C19: =IF(SRV_A+SRV_B>=1,"KVM Option (OpzSWGUIRack)","") -> 
C20: =IF(SRV_A+SRV_B>=1,"Tecnosteel: 8-port remote KVM switch with one remote user","") ->  | K20: =IF(J20>=1,"10L1-KVMIP","") -> 
C22: =IF(SRV_A+SRV_B>=1,"Uninterrupted Power Supply (OpzUPS 3000VA)","") -> 
C23: =IF(SRV_A+SRV_B>=1,"Riello - UPS MSR3000EVO 3000VA 2U Rackmount (SNMP+USB+RS232)","") ->  | K23: =IF(J23>=1,"10L1-UPS","") -> 
D26: Totale-
D27: RACK A | E27: RACK B | F27: RACK C | G27: RACK D | H27: RACK E | I27: RACK F | J27: RACK G | K27: RACK H | L27: RACK I | M27: RACK J
C28: =J14 -> 0 | D28: =IF(H48>0,IF(C28-H48=0,0,C28-H48),0) -> 0 | E28: =IF(I48>0,IF(D28-I48=0,0,D28-I48),0) -> 0 | F28: 0 | G28: 0 | H28: 0 | I28: 0 | J28: 0 | K28: 0 | L28: 0 | M28: 0
D31: Server Modello 1 | G31: =SRV_A -> 0
D32: Server Modello 2 | G32: =SRV_AA -> 0
D33: Server Modello 3 | G33: =SRV_AAA -> 0
D34: Server Modello 4 | G34: =SRV_B -> 0
D35: Server Modello 5 | G35: =SRV_BB -> 0
D36: Server Modello 6 | G36: =SRV_BBB -> 0
H38: =SUM(H4:H9)+H11+H80*2+H82*2 -> 0 | I38: 0 | J38: 0 | K38: 0 | L38: 0 | M38: 0 | N38: 0 | O38: 0 | P38: 0 | Q38: 0
C46: Rack ancora da configurare | F46: =J14-H48-I48-J48-K48-L48-M48-N48-O48-P48-Q48 -> 0
C48: Indicare il numero di rack per questa configurazione
E50: Totali | F50: da inserire | H50: =IF(C28>0,"RACK A","") ->  | I50: =IF(D28>0,"RACK B","") ->  | J50: =IF(E28>0,"RACK C","") ->  | K50: =IF(F28>0,"RACK D","") ->  | L50: =IF(G28>0,"RACK E","") ->  | M50: =IF(H28>0,"RACK F","") ->  | N50: =IF(I28>0,"RACK G","") ->  | O50: =IF(J28>0,"RACK H","") ->  | P50: =IF(K28>0,"RACK I","") ->  | Q50: =IF(L28>0,"RACK J","") -> 
C52: Server Lotto1 R630 Conf.1 | E52: =G31 -> 0 | F52: =(E52-(H52*$H$48)-(I52*$I$48)-(J52*$J$48)-(K52*$K$48)-(L52*$L$48)-(M52*$M$48)-(N52*$N$48)-(O52*$O$48)-(P52*$P$48)-(Q52*$Q$48)) -> 0
C53: =IF(G32>0,"Server Lotto1 R630 Conf.2","") ->  | E53: =G32 -> 0 | F53: =(E53-(H53*$H$48)-(I53*$I$48)-(J53*$J$48)-(K53*$K$48)-(L53*$L$48)-(M53*$M$48)-(N53*$N$48)-(O53*$O$48)-(P53*$P$48)-(Q53*$Q$48)) -> 0
C54: =IF(G33>0,"Server Lotto1 R630 Conf.3","") ->  | E54: 0 | F54: 0
C55: =IF(G34>0,"Server Lotto1 R730xd Conf.1","") ->  | E55: 0 | F55: 0
C56: =IF(G35>0,"Server Lotto1 R730xd Conf.2","") ->  | E56: 0 | F56: 0
C57: =IF(G36>0,"Server Lotto1 R730xd Conf.3","") ->  | E57: 0 | F57: 0
C59: =IF(J17>0,"OpzGUIRack Disponibili"," ") ->  | E59: =J17 -> 0 | F59: =J17-H59*H48-I59*I48-J59*J48-K59*K48-L59*L48-M59*M48-N59*N48-O59*O48-P59*P48-Q59*Q48 -> 0
C61: =IF(J20>0,"OpzSWGUIRack Disponibili"," ") ->  | E61: =J20 -> 0 | F61: =J20-H61*H48-I61*I48-J61*J48-K61*K48-L61*L48-M61*M48-N61*N48-O61*O48-P61*P48-Q61*Q48 -> 0
C63: =IF(J23>0,"OpzUPS 3000VA Disponibili"," ") ->  | E63: =J23 -> 0 | F63: =J23-H63*H48-I63*I48-J63*J48-K63*K48-L63*L48-M63*M48-N63*N48-O63*O48-P63*P48-Q63*Q48 -> 0
M66: SERVER TOWER
C67: =IF(SRV_C>=1,"Uninterrupted Power Supply (UPS)","") -> 
C68: =IF(SRV_C>=1,"Riello - UPS MSR3000EVO 3000VA Tower (SNMP+USB+RS232)","") ->  | K68: =IF(J68>=1,"10L1-UPS-T","") -> 
C71: =IF(SRV_C>=1,"Keyboard Video Mouse","") -> 
C72: =IF(SRV_C>=1,"Dell: Kit Monitor 19'' + Mouse + Keyboard","") ->  | K72: =IF(J72>=1,"10L1-GUI-T","") -> 
C75: =IF(SRV_C>=1,"RDX","") -> 
C76: =IF(SRV_C>=1,"Unità di backup RDX (esterno) + 3 cartucce da 500GB","") ->  | K76: =IF(J76>=1,"10L1-RDX","") -> 

Sheet Riepilogo
B1: Amministrazione | R1: CONFIGURATORE ELETTRONICO CONVENZIONE CONSIP SERVER 10 LOTTO 1 | V1: 1
B2: N° Identificativo Ordine | I2: =IF(G4=R80,"Configurazione OK",U4) -> Configurazione OK | V2: 1
B3: Data Ordine | V3: 1
B4: Tot Ordine Portale CONSIP IVA incl. | U4: Nel "Tot Ordine Portale CONSIP" deve essere inserito l'importo totale risultante dall'ordinativo del portale CONSIP. Qualora l'importo inserito corrisponde al valore ricalcolato dal configuratore viene attivato il pulsante "Salva in formato PDF" che permette di generare il file pdf da allegare all'ordinativo. | V4: 1
B5: LE CELLE IN GIALLO DEVO ESSERE COMPILATE OBBLIGATORIAMENTE | V5: 1
B6: Quantità Server Ordinati | G6: =IF(B33="",0,B33)+IF(B15="",0,B15)+IF(B51="",0,B51) -> 0 | T6: ver. 4.2 | V6: 1
V7: 1
B8: Referente per la Consegna | J8: Telefono | P8: email | V8: 1
V9: 1
B10: Referente per l'installazione | J10: Telefono | P10: email | V10: 1
V11: 1
B12: ATTENZIONE: I CODICI PRODOTTO DELL'ORDINE CONSIP DEVONO ESSERE SPECULARI A QUELLI GENERATI DAL CONFIGURATORE. | V12: 1
B13: Qtà Totale Ordinata | C13: Oggetto di fornitura | G13: Codice Prodotto | J13: Descrizione Sintetica (si faccia riferimento alla guida alla convenzione per la descrizione estesa e per le regole di acquisto delle opzioni) | R13: Costo Unitario | T13: Costo Complessivo | V13: 1
B14: SERVER PRESTAZIONALE (DELL POWEREDGE R630 V4) | V14: =IF(B15>="",0,1) -> 0 | X14: Server1 | Y14: Server2 | Z14: Server3
B15: =IF(AE15>=1,AE15,"") ->  | C15: =IF(AE15>0,(VLOOKUP(G15,COD_A,2,FALSE)),"") ->  | G15: =IF(AE15>=1,W15,"") ->  | J15: =IF(AE15>0,(VLOOKUP(G15,COD_A,5,FALSE)),"") ->  | R15: =IF(AE15>0,(VLOOKUP(G15,COD_A,3,FALSE)),"") ->  | T15: =IF(B15="","",R15*B15) ->  | V15: =IF(B15>="",0,1) -> 0 | W15: 10L1-R630-U | X15: =SRV_A -> 0 | Y15: =SRV_AA -> 0 | Z15: =SRV_AAA -> 0 | AE15: =SUM(X15:AD15) -> 0
B16: =IF(AE16>=1,AE16,"") ->  | G16: =IF(AE16>=1,W16,"") ->  | T16: =IF(B16="","",R16*B16) ->  | V16: =IF(B16>="",0,1) -> 0 | W16: 10L1-CPU-P-U | X16: ='Server10 Lotto1 R630'!$C$29 -> 0 | Y16: ='Server10 Lotto1 R630 2'!$C$29 -> 0 | Z16: ='Server10 Lotto1 R630 3'!$C$29 -> 0 | AB16: =X16*$X$15 -> 0 | AC16: =Y16*$Y$15 -> 0 | AD16: =Z16*$Z$15 -> 0 | AE16: =SUM(AB16:AD16) -> 0
B17: =IF(AE17>=1,AE17,"") ->  | G17: =IF(AE17>=1,W17,"") ->  | T17: =IF(B17="","",R17*B17) ->  | V17: 0 | W17: 10L1-16GB-U | X17: =IF(MEM_A="",0,MEM_A) -> 0 | Y17: =IF(MEM_AA="",0,MEM_AA) -> 0 | Z17: =IF(MEM_AAA="",0,MEM_AAA) -> 0 | AB17: =X17*$X$15 -> 0 | AC17: =Y17*$Y$15 -> 0 | AD17: =Z17*$Z$15 -> 0 | AE17: =SUM(AB17:AD17) -> 0
V18: 0 | W18: 10L1-32GB-U | X18: =IF(MEM_A32="",0,MEM_A32) -> 0 | Y18: =IF(MEM_AA32="",0,MEM_AA32) -> 0 | Z18: =IF(MEM_AAA32="",0,MEM_AAA32) -> 0 | AB18: =X18*$X$15 -> 0 | AC18: =Y18*$Y$15 -> 0 | AD18: =Z18*$Z$15 -> 0 | AE18: =SUM(AB18:AD18) -> 0
V19: 0 | W19: 10L1-LAN1GB-LP | X19: =COUNTIF($AI$19:$AI$20,W19) -> 0 | Y19: =COUNTIF($AJ$19:$AJ$20,W19) -> 0 | Z19: =COUNTIF($AK$19:$AK$20,W19) -> 0 | AB19: =X19*$X$15 -> 0 | AC19: =Y19*$Y$15 -> 0 | AD19: =Z19*$Z$15 -> 0 | AE19: =SUM(AB19:AD19) -> 0 | AH19: slot1 | AI19: ='Server10 Lotto1 R630'!$D$102 ->  | AJ19: ='Server10 Lotto1 R630 2'!$D$102 ->  | AK19: ='Server10 Lotto1 R630 3'!$D$102 -> 
V20: 0 | W20: 10L1-LAN1GB | X20: =COUNTIF($AI$19:$AI$20,W20) -> 0 | Y20: =COUNTIF($AJ$19:$AJ$20,W20) -> 0 | Z20: =COUNTIF($AK$19:$AK$20,W20) -> 0 | AB20: =X20*$X$15 -> 0 | AC20: =Y20*$Y$15 -> 0 | AD20: =Z20*$Z$15 -> 0 | AE20: =SUM(AB20:AD20) -> 0 | AH20: slot2 | AI20: ='Server10 Lotto1 R630'!$D$105 ->  | AJ20: ='Server10 Lotto1 R630 2'!$D$105 ->  | AK20: ='Server10 Lotto1 R630 3'!$D$105 -> 
V21: 0 | W21: 10L1-LAN10GB-LP | X21: 0 | Y21: 0 | Z21: 0 | AB21: =X21*$X$15 -> 0 | AC21: =Y21*$Y$15 -> 0 | AD21: =Z21*$Z$15 -> 0 | AE21: =SUM(AB21:AD21) -> 0
V22: 0 | W22: 10L1-LAN10GB | X22: 0 | Y22: 0 | Z22: 0 | AB22: 0 | AC22: 0 | AD22: 0 | AE22: 0
J23: =IF(AE23>0,(VLOOKUP(G23,COD_A,5,FALSE)),"") ->  | V23: 0 | W23: 10L1-CNA10-LP | X23: 0 | Y23: 0 | Z23: 0 | AB23: 0 | AC23: 0 | AD23: 0 | AE23: 0
V24: 0 | W24: 10L1-CNA10 | X24: 0 | Y24: 0 | Z24: 0 | AB24: =X24*$X$15 -> 0 | AC24: 0 | AD24: 0 | AE24: 0
V25: 0 | W25: 10L1-FC-LP-U | X25: 0 | Y25: 0 | Z25: 0 | AB25: 0 | AC25: 0 | AD25: 0 | AE25: 0
B26: =IF(AE26>=1,AE26,"") ->  | G26: =IF(AE26>=1,W26,"") ->  | V26: 0 | W26: 10L1-FC-U | X26: 0 | Y26: 0 | Z26: 0 | AB26: 0 | AC26: 0 | AD26: 0 | AE26: 0
V27: 0 | W27: 10L1-HDD300GB | X27: =HD300_A -> 0 | Y27: =HD300_AA -> 0 | Z27: =HD300_AAA -> 0 | AB27: =X27*$X$15 -> 0 | AC27: =Y27*$Y$15 -> 0 | AD27: =Z27*$Z$15 -> 0 | AE27: =SUM(AB27:AD27) -> 0
V28: 0 | W28: 10L1-HDD1TB | X28: =HD1000_A -> 0 | Y28: =HD1000_AA -> 0 | Z28: =HD1000_AAA -> 0 | AB28: =X28*$X$15 -> 0 | AC28: =Y28*$Y$15 -> 0 | AD28: =Z28*$Z$15 -> 0 | AE28: =SUM(AB28:AD28) -> 0
V29: 0 | W29: 10L1-SO-12M-P | X29: =IF('Server10 Lotto1 R630'!$D$135=W29,'Server10 Lotto1 R630'!$C$135,0) -> 0 | Y29: =IF('Server10 Lotto1 R630 2'!$D$135=W29,'Server10 Lotto1 R630 2'!$C$135,0) -> 0 | Z29: =IF('Server10 Lotto1 R630 3'!$D$135=W29,'Server10 Lotto1 R630 3'!$C$135,0) -> 0 | AB29: =X29*$X$15 -> 0 | AC29: =Y29*$Y$15 -> 0 | AD29: =Z29*$Z$15 -> 0 | AE29: =SUM(AB29:AD29) -> 0
V30: 0 | W30: 10L1-SO-24M-P | X30: =IF('Server10 Lotto1 R630'!$D$135=W30,'Server10 Lotto1 R630'!$C$135,0) -> 0 | Y30: =IF('Server10 Lotto1 R630 2'!$D$135=W30,'Server10 Lotto1 R630 2'!$C$135,0) -> 0 | Z30: =IF('Server10 Lotto1 R630 3'!$D$135=W30,'Server10 Lotto1 R630 3'!$C$135,0) -> 0 | AB30: =X30*$X$15 -> 0 | AC30: =Y30*$Y$15 -> 0 | AD30: =Z30*$Z$15 -> 0 | AE30: =SUM(AB30:AD30) -> 0
V31: 0 | W31: 10L1-SO-HDD | X31: =IF('Server10 Lotto1 R630'!$D$138=W31,'Server10 Lotto1 R630'!$C$138,0) -> 0 | Y31: =IF('Server10 Lotto1 R630 2'!$D$138=W31,'Server10 Lotto1 R630 2'!$C$138,0) -> 0 | Z31: =IF('Server10 Lotto1 R630 3'!$D$138=W31,'Server10 Lotto1 R630 3'!$C$138,0) -> 0 | AB31: =X31*$X$15 -> 0 | AC31: =Y31*$Y$15 -> 0 | AD31: =Z31*$Z$15 -> 0 | AE31: =SUM(AB31:AD31) -> 0 | AG31: =IF(X31=0,0,IF(X31+X30=2,5,IF(X31+X29=2,4,3))) -> 0 | AH31: =IF(Y31=0,0,IF(Y31+Y30=2,5,IF(Y31+Y29=2,4,3))) -> 0 | AI31: =IF(Z31=0,0,IF(Z31+Z30=2,5,IF(Z31+Z29=2,4,3))) -> 0 | AJ31: =IF(AG31=5,$AJ$62,IF(AG31=4,$AI$62,IF(AG31=3,$AH$62,""))) ->  | AK31: =IF(AH31=5,$AJ$62,IF(AH31=4,$AI$62,IF(AH31=3,$AH$62,""))) ->  | AL31: =IF(AI31=5,$AJ$62,IF(AI31=4,$AI$62,IF(AI31=3,$AH$62,""))) -> 
B32: SERVER SCALBILE STORAGE (DELL POWEREDGE R730xd V4) | V32: =IF(B33>="",0,1) -> 0 | W32: R730 | X32: Server1 | Y32: Server2 | Z32: Server3
B33: =IF(AE33>=1,AE33,"") ->  | C33: =IF(AE33>0,(VLOOKUP(G33,COD_B,2,FALSE)),"") ->  | G33: =IF(AE33>=1,W33,"") ->  | J33: =IF(AE33>0,(VLOOKUP(G33,COD_B,5,FALSE)),"") ->  | R33: =IF(AE33>0,(VLOOKUP(G33,COD_B,3,FALSE)),"") ->  | T33: =IF(B33="","",R33*B33) ->  | V33: 0 | W33: 10L1-R730xd-U | X33: =SRV_B -> 0 | Y33: =SRV_BB -> 0 | Z33: =SRV_BBB -> 0 | AE33: =SUM(X33:AD33) -> 0
B34: =IF(AE34>=1,AE34,"") ->  | G34: =IF(AE34>=1,W34,"") ->  | V34: 0 | W34: 10L1-CPU-S-U | X34: ='Server10 Lotto1 R730xd'!$C$29 -> 0 | Y34: ='Server10 Lotto1 R730xd 2'!$C$29 -> 0 | Z34: ='Server10 Lotto1 R730xd 3'!$C$29 -> 0 | AB34: =X34*$X$33 -> 0 | AC34: =Y34*$Y$33 -> 0 | AD34: =Z34*$Z$33 -> 0 | AE34: =SUM(AB34:AD34) -> 0
T35: =IF(B35="","",R35*B35) ->  | V35: 0 | W35: 10L1-16GB-U | X35: =IF(MEM_B="",0,MEM_B) -> 0 | Y35: =IF(MEM_BB="",0,MEM_BB) -> 0 | Z35: =IF(MEM_BBB="",0,MEM_BBB) -> 0 | AB35: =X35*$X$33 -> 0 | AC35: =Y35*$Y$33 -> 0 | AD35: =Z35*$Z$33 -> 0 | AE35: =SUM(AB35:AD35) -> 0
V36: 0 | W36: 10L1-32GB-U | X36: =IF(MEM_B32="",0,MEM_B32) -> 0 | Y36: =IF(MEM_BB32="",0,MEM_BB32) -> 0 | Z36: =IF(MEM_BBB32="",0,MEM_BBB32) -> 0 | AB36: 0 | AC36: 0 | AD36: 0 | AE36: =SUM(AB36:AD36) -> 0
V37: 0 | W37: 10L1-LAN1GB-LP | X37: =COUNTIF($AI$37:$AI$42,W37) -> 0 | Y37: =COUNTIF($AJ$37:$AJ$42,W37) -> 0 | Z37: =COUNTIF($AK$37:$AK$42,W37) -> 0 | AB37: =X37*$X$33 -> 0 | AC37: =Y37*$Y$33 -> 0 | AD37: =Z37*$Z$33 -> 0 | AE37: =SUM(AB37:AD37) -> 0 | AH37: slot1 | AI37: ='Server10 Lotto1 R730xd'!$D$102 ->  | AJ37: ='Server10 Lotto1 R730xd 2'!$D$102 ->  | AK37: ='Server10 Lotto1 R730xd 3'!$D$102 -> 
V38: 0 | W38: 10L1-LAN1GB | X38: =COUNTIF($AI$37:$AI$42,W38) -> 0 | Y38: =COUNTIF($AJ$37:$AJ$42,W38) -> 0 | Z38: =COUNTIF($AK$37:$AK$42,W38) -> 0 | AB38: =X38*$X$33 -> 0 | AC38: =Y38*$Y$33 -> 0 | AD38: =Z38*$Z$33 -> 0 | AE38: =SUM(AB38:AD38) -> 0 | AH38: slot2 | AI38: ='Server10 Lotto1 R730xd'!$D$105 ->  | AJ38: ='Server10 Lotto1 R730xd 2'!$D$105 ->  | AK38: ='Server10 Lotto1 R730xd 3'!$D$105 -> 
V39: 0 | W39: 10L1-LAN10GB-LP | X39: 0 | Y39: 0 | Z39: 0 | AB39: 0 | AC39: 0 | AD39: 0 | AE39: 0 | AH39: slot3 | AI39: ='Server10 Lotto1 R730xd'!D108 ->  | AJ39: ='Server10 Lotto1 R730xd 2'!D108 ->  | AK39: ='Server10 Lotto1 R730xd 3'!D108 -> 
V40: 0 | W40: 10L1-LAN10GB | X40: 0 | Y40: 0 | Z40: 0 | AB40: 0 | AC40: 0 | AD40: 0 | AE40: 0 | AH40: slot4 | AI40: ='Server10 Lotto1 R730xd'!D111 ->  | AJ40: ='Server10 Lotto1 R730xd 2'!D111 ->  | AK40: ='Server10 Lotto1 R730xd 3'!D111 -> 
V41: 0 | W41: 10L1-CNA10-LP | X41: 0 | Y41: 0 | Z41: 0 | AB41: 0 | AC41: 0 | AD41: 0 | AE41: 0 | AH41: slot5 | AI41: ='Server10 Lotto1 R730xd'!D114 ->  | AJ41: ='Server10 Lotto1 R730xd 2'!D114 ->  | AK41: ='Server10 Lotto1 R730xd 3'!D114 -> 
V42: 0 | W42: 10L1-CNA10 | X42: 0 | Y42: 0 | Z42: 0 | AB42: 0 | AC42: 0 | AD42: 0 | AE42: 0 | AH42: slot6 | AI42: ='Server10 Lotto1 R730xd'!D117 ->  | AJ42: ='Server10 Lotto1 R730xd 2'!D117 ->  | AK42: ='Server10 Lotto1 R730xd 3'!D117 -> 
T43: =IF(B43="","",R43*B43) ->  | V43: 0 | W43: 10L1-FC-LP-U | X43: 0 | Y43: 0 | Z43: 0 | AB43: 0 | AC43: 0 | AD43: 0 | AE43: 0
V44: 0 | W44: 10L1-FC-U | X44: 0 | Y44: 0 | Z44: 0 | AB44: 0 | AC44: 0 | AD44: 0 | AE44: 0
T45: =IF(B45="","",R45*B45) ->  | V45: 0 | W45: 10L1-HDD300GB | X45: =HD300_B -> 0 | Y45: =HD300_BB -> 0 | Z45: =HD300_BBB -> 0 | AB45: =X45*$X$33 -> 0 | AC45: =Y45*$Y$33 -> 0 | AD45: =Z45*$Z$33 -> 0 | AE45: =SUM(AB45:AD45) -> 0
V46: 0 | W46: 10L1-HDD1TB | X46: =HD1000_B -> 0 | Y46: =HD1000_BB -> 0 | Z46: =HD1000_BBB -> 0 | AB46: =X46*$X$33 -> 0 | AC46: =Y46*$Y$33 -> 0 | AD46: =Z46*$Z$33 -> 0 | AE46: =SUM(AB46:AD46) -> 0
T47: =IF(B47="","",R47*B47) ->  | V47: 0 | W47: 10L1-SO-12M-S | X47: =IF('Server10 Lotto1 R730xd'!$D$144=W47,'Server10 Lotto1 R730xd'!$C$144,0) -> 0 | Y47: =IF('Server10 Lotto1 R730xd 2'!$D$144=W47,'Server10 Lotto1 R730xd 2'!$C$144,0) -> 0 | Z47: =IF('Server10 Lotto1 R730xd 3'!$D$144=W47,'Server10 Lotto1 R730xd 3'!$C$144,0) -> 0 | AB47: =X47*$X$33 -> 0 | AC47: =Y47*$Y$33 -> 0 | AD47: =Z47*$Z$33 -> 0 | AE47: =SUM(AB47:AD47) -> 0
V48: 0 | W48: 10L1-SO-24M-S | X48: =IF('Server10 Lotto1 R730xd'!$D$144=W48,'Server10 Lotto1 R730xd'!$C$144,0) -> 0 | Y48: =IF('Server10 Lotto1 R730xd 2'!$D$144=W48,'Server10 Lotto1 R730xd 2'!$C$144,0) -> 0 | Z48: =IF('Server10 Lotto1 R730xd 3'!$D$144=W48,'Server10 Lotto1 R730xd 3'!$C$144,0) -> 0 | AB48: 0 | AC48: 0 | AD48: 0 | AE48: 0 | AG48: R730 1 HDDr
V49: 0 | W49: 10L1-SO-HDD | X49: =IF('Server10 Lotto1 R730xd'!$D$147=W49,'Server10 Lotto1 R730xd'!$C$147,0) -> 0 | Y49: =IF('Server10 Lotto1 R730xd 2'!$D$147=W49,'Server10 Lotto1 R730xd 2'!$C$147,0) -> 0 | Z49: =IF('Server10 Lotto1 R730xd 3'!$D$147=W49,'Server10 Lotto1 R730xd 3'!$C$147,0) -> 0 | AB49: 0 | AC49: 0 | AD49: 0 | AE49: 0 | AG49: =IF(X49=0,0,IF(X49+X48=2,5,IF(X49+X47=2,4,3))) -> 0 | AH49: =IF(Y49=0,0,IF(Y49+Y48=2,5,IF(Y49+Y47=2,4,3))) -> 0 | AI49: 0 | AJ49: =IF(AG49=5,$AJ$62,IF(AG49=4,$AI$62,IF(AG49=3,$AH$62,""))) ->  | AK49: =IF(AH49=5,$AJ$62,IF(AH49=4,$AI$62,IF(AH49=3,$AH$62,""))) ->  | AL49: =IF(AI49=5,$AJ$62,IF(AI49=4,$AI$62,IF(AI49=3,$AH$62,""))) -> 
B50: SERVER TOWER (DELL POWEREDGE T630 V4) | V50: =IF(B51>="",0,1) -> 0
B51: =IF(AE51>=1,AE51,"") ->  | C51: =IF(AE51>0,(VLOOKUP(G51,COD_C,2,FALSE)),"") ->  | G51: =IF(AE51>=1,W51,"") ->  | J51: =IF(AE51>0,(VLOOKUP(G51,COD_C,5,FALSE)),"") ->  | R51: =IF(AE51>0,(VLOOKUP(G51,COD_C,3,FALSE)),"") ->  | T51: =IF(B51="","",R51*B51) ->  | V51: 0 | W51: 10L1-T630-U | X51: =SRV_C -> 0 | AE51: =SUM(X51:AD51) -> 0
B52: =IF(AE52>=1,AE52,"") ->  | G52: =IF(AE52>=1,W52,"") ->  | T52: =IF(B52="","",R52*B52) ->  | V52: 0 | W52: 10L1-CPU-T-U | X52: ='Server10 Lotto1 T630'!$C$25 -> 0 | AB52: =X52*$X$51 -> 0 | AE52: =SUM(AB52:AD52) -> 0
T53: =IF(B53="","",R53*B53) ->  | V53: 0 | W53: 10L1-16GB-U | X53: =IF(MEM_C="",0,MEM_C) -> 0 | AB53: =X53*$X$51 -> 0 | AE53: =SUM(AB53:AD53) -> 0
V54: 0 | W54: 10L1-32GB-U | X54: =IF(MEM_C32="",0,MEM_C32) -> 0 | AB54: 0 | AE54: 0
V55: 0 | W55: 10L1-LAN1GB | X55: =COUNTIF($AI$55:$AI$60,W55) -> 0 | AB55: =X55*$X$51 -> 0 | AE55: 0 | AH55: slot1 | AI55: ='Server10 Lotto1 T630'!$D$100 -> 
V56: 0 | W56: 10L1-LAN10GB | X56: =COUNTIF($AI$55:$AI$60,W56) -> 0 | AB56: =X56*$X$51 -> 0 | AE56: 0 | AH56: slot2 | AI56: ='Server10 Lotto1 T630'!$D$103 -> 
V57: 0 | W57: 10L1-FC-U | X57: 0 | AB57: 0 | AE57: 0 | AH57: slot3 | AI57: ='Server10 Lotto1 T630'!$D$106 -> 
V58: 0 | W58: 10L1-HDD300GB-T | X58: =HD300_C -> 0 | AB58: 0 | AE58: 0 | AH58: slot4 | AI58: ='Server10 Lotto1 T630'!$D$109 -> 
V59: 0 | W59: 10L1-HDD1TB | X59: =HD1000_c -> 0 | AB59: 0 | AE59: 0 | AH59: slot5 | AI59: ='Server10 Lotto1 T630'!$D$112 -> 
V60: 0 | W60: 10L1-SO-12M-T | X60: =IF('Server10 Lotto1 T630'!$D$147=W60,'Server10 Lotto1 T630'!$C$147,0) -> 0 | AB60: 0 | AE60: 0 | AH60: slot6 | AI60: ='Server10 Lotto1 T630'!$D$115 -> 
V61: 0 | W61: 10L1-SO-24M-T | X61: =IF('Server10 Lotto1 T630'!$D$147=W61,'Server10 Lotto1 T630'!$C$147,0) -> 0 | AB61: 0 | AE61: 0
V62: 0 | W62: 10L1-SO-HDD | X62: =IF('Server10 Lotto1 T630'!$D$150=W62,'Server10 Lotto1 T630'!$C$150,0) -> 0 | Y62: =IF(X62=0,0,IF(X61+X62=2,5,IF(X62+X60=2,4,3))) -> 0 | AB62: 0 | AE62: 0 | AF62: =IF(Y62=5,$AJ$62,IF(Y62=4,$AI$62,IF(Y62=3,$AH$62,""))) ->  | AH62: 10L1-SO-HDD3 | AI62: 10L1-SO-HDD4 | AJ62: 10L1-SO-HDD5
B63: OPZIONI COMUNI | V63: 1 | X63: R630 | Y63: R630 1 | Z63: R630 2 | AA63: R730xd | AB63: R730xd 1 | AC63: R730xd 2 | AD63: T630 | AM63: R630 | AN63: R730xd | AO63: T630
B64: =IF(AP64=0,"",AP64) ->  | C64: =IF(AP64="","",(VLOOKUP(G64,COD_A,2,FALSE))) ->  | G64: =IF(AP64>0,"10L1-WIN","") ->  | J64: =IF(AP64>0,(VLOOKUP(G64,COD_A,5,FALSE)),"") ->  | R64: =IF(AP64>0,(VLOOKUP(G64,COD_A,3,FALSE)),"") ->  | T64: =IF(B64="","",R64*B64) ->  | V64: 0 | W64: 10L1-WIN | X64: =IF('Server10 Lotto1 R630'!$D$52=W64,1,0) -> 0 | Y64: =IF('Server10 Lotto1 R630 2'!$D$52=W64,1,0) -> 0 | Z64: =IF('Server10 Lotto1 R630 3'!$D$52=W64,1,0) -> 0 | AA64: =IF('Server10 Lotto1 R730xd'!$D$52=W64,1,0) -> 0 | AB64: =IF('Server10 Lotto1 R730xd 2'!$D$52=W64,1,0) -> 0 | AC64: =IF('Server10 Lotto1 R730xd 3'!$D$52=W64,1,0) -> 0 | AD64: =IF('Server10 Lotto1 T630'!$D$48=W64,1,0) -> 0 | AF64: =X64*$X$15 -> 0 | AG64: =Y64*$Y$15 -> 0 | AH64: =Z64*$Z$15 -> 0 | AI64: =AA64*$X$33 -> 0 | AJ64: =AB64*$Y$33 -> 0 | AK64: =AC64*$Z$33 -> 0 | AL64: =AD64*$X$51 -> 0 | AM64: =SUM(X64:Z64) -> 0 | AN64: =SUM(AA64:AC64) -> 0 | AO64: =AD64 -> 0 | AP64: =SUM(AF64:AL64) -> 0
B65: =IF(AP65=0,"",AP65) ->  | C65: =IF(AP65="","",(VLOOKUP(G65,COD_A,2,FALSE))) ->  | G65: =IF(AP65>0,"10L1-LINUX","") ->  | J65: =IF(AP65>0,(VLOOKUP(G65,COD_A,5,FALSE)),"") ->  | R65: =IF(AP65>0,(VLOOKUP(G65,COD_A,3,FALSE)),"") ->  | T65: =IF(B65="","",R65*B65) ->  | V65: 0 | W65: 10L1-LINUX | X65: =IF('Server10 Lotto1 R630'!$D$52=W65,1,0) -> 0 | Y65: =IF('Server10 Lotto1 R630 2'!$D$52=W65,1,0) -> 0 | Z65: =IF('Server10 Lotto1 R630 3'!$D$52="10L1-LINUX",1,0) -> 0 | AA65: =IF('Server10 Lotto1 R730xd'!$D$52=W65,1,0) -> 0 | AB65: =IF('Server10 Lotto1 R730xd 2'!$D$52=W65,1,0) -> 0 | AC65: =IF('Server10 Lotto1 R730xd 3'!$D$52=W65,1,0) -> 0 | AD65: =IF('Server10 Lotto1 T630'!$D$48=W65,1,0) -> 0 | AF65: =X65*$X$15 -> 0 | AG65: =Y65*$Y$15 -> 0 | AH65: =Z65*$Z$15 -> 0 | AI65: =AA65*$X$33 -> 0 | AJ65: =AB65*$Y$33 -> 0 | AK65: =AC65*$Z$33 -> 0 | AL65: =AD65*$X$51 -> 0 | AM65: =SUM(X65:Z65) -> 0 | AN65: =SUM(AA65:AC65) -> 0 | AO65: =AD65 -> 0 | AP65: =SUM(AF65:AL65) -> 0
B66: =IF(AP66=0,"",AP66) ->  | C66: =IF(AP66="","",(VLOOKUP(G66,COD_A,2,FALSE))) ->  | G66: =IF(AP66>0,"10L1-CALUSER","") ->  | J66: =IF(AP66>0,(VLOOKUP(G66,COD_A,5,FALSE)),"") ->  | R66: =IF(AP66>0,(VLOOKUP(G66,COD_A,3,FALSE)),"") ->  | V66: 0 | W66: 10L1-CALUSER | X66: ='Server10 Lotto1 R630'!$C$58 -> 0 | Y66: ='Server10 Lotto1 R630 2'!$C$58 -> 0 | Z66: ='Server10 Lotto1 R630 3'!$C$58 -> 0 | AA66: ='Server10 Lotto1 R730xd'!$C$58 -> 0 | AB66: ='Server10 Lotto1 R730xd 2'!$C$58 -> 0 | AC66: ='Server10 Lotto1 R730xd 3'!$C$58 -> 0 | AD66: ='Server10 Lotto1 T630'!$C$54 -> 0 | AF66: =X66*$X$15 -> 0 | AG66: =Y66*$Y$15 -> 0 | AH66: =Z66*$Z$15 -> 0 | AI66: 0 | AJ66: 0 | AK66: 0 | AL66: =AD66*$X$51 -> 0 | AM66: 0 | AN66: 0 | AO66: 0 | AP66: 0
B67: =IF(AP67=0,"",AP67) ->  | C67: =IF(AP67="","",(VLOOKUP(G67,COD_A,2,FALSE))) ->  | G67: =IF(AP67>0,"10L1-CALDEV","") ->  | J67: =IF(AP67>0,(VLOOKUP(G67,COD_A,5,FALSE)),"") ->  | R67: =IF(AP67>0,(VLOOKUP(G67,COD_A,3,FALSE)),"") ->  | V67: 0 | W67: 10L1-CALDEV | X67: ='Server10 Lotto1 R630'!$C$60 -> 0 | Y67: ='Server10 Lotto1 R630 2'!$C$60 -> 0 | Z67: ='Server10 Lotto1 R630 3'!$C$60 -> 0 | AA67: ='Server10 Lotto1 R730xd'!$C$60 -> 0 | AB67: ='Server10 Lotto1 R730xd 2'!$C$60 -> 0 | AC67: ='Server10 Lotto1 R730xd 3'!$C$60 -> 0 | AD67: ='Server10 Lotto1 T630'!$C$56 -> 0 | AF67: =X67*$X$15 -> 0 | AG67: =Y67*$Y$15 -> 0 | AH67: =Z67*$Z$15 -> 0 | AI67: 0 | AJ67: 0 | AK67: 0 | AL67: =AD67*$X$51 -> 0 | AM67: 0 | AN67: 0 | AO67: 0 | AP67: 0
B68: =IF('RACK, Accessori e Servizi'!J14=0,"",'RACK, Accessori e Servizi'!J14) ->  | C68: =IF(B68>0,(VLOOKUP(G68,COD_A,2,FALSE)),"") ->  | G68: =IF('RACK, Accessori e Servizi'!J14>0,'RACK, Accessori e Servizi'!K14,"") ->  | J68: =IF(B68>0,(VLOOKUP(G68,COD_A,5,FALSE)),"") ->  | R68: =IF(B68>0,(VLOOKUP(G68,COD_A,3,FALSE)),"") ->  | T68: =IF(B68="","",R68*B68) ->  | V68: 0
B69: =IF('RACK, Accessori e Servizi'!J17=0,"",'RACK, Accessori e Servizi'!J17) ->  | G69: =IF('RACK, Accessori e Servizi'!J17>0,'RACK, Accessori e Servizi'!K17,"") ->  | T69: =IF(B69="","",R69*B69) ->  | V69: 0
B70: =IF('RACK, Accessori e Servizi'!J20=0,"",'RACK, Accessori e Servizi'!J20) ->  | G70: =IF('RACK, Accessori e Servizi'!J20>0,'RACK, Accessori e Servizi'!K20,"") ->  | V70: 0
B71: =IF('RACK, Accessori e Servizi'!J23=0,"",'RACK, Accessori e Servizi'!J23) ->  | G71: =IF('RACK, Accessori e Servizi'!J23>0,'RACK, Accessori e Servizi'!K23,"") ->  | V71: 0
B72: =IF('RACK, Accessori e Servizi'!J68=0,"",'RACK, Accessori e Servizi'!J68) ->  | C72: =IF(B72>0,(VLOOKUP(G72,COD_C,2,FALSE)),"") ->  | G72: =IF('RACK, Accessori e Servizi'!J68>0,'RACK, Accessori e Servizi'!K68,"") ->  | J72: =IF(B72>0,(VLOOKUP(G72,COD_C,5,FALSE)),"") ->  | R72: =IF(B72>0,(VLOOKUP(G72,COD_C,3,FALSE)),"") ->  | V72: 0
B73: =IF('RACK, Accessori e Servizi'!J72=0,"",'RACK, Accessori e Servizi'!J72) ->  | G73: =IF('RACK, Accessori e Servizi'!J72>0,'RACK, Accessori e Servizi'!K72,"") ->  | V73: 0
B74: =IF('RACK, Accessori e Servizi'!J76=0,"",'RACK, Accessori e Servizi'!J76) ->  | G74: =IF('RACK, Accessori e Servizi'!J76>0,'RACK, Accessori e Servizi'!K76,"") ->  | V74: 0
B75: =IF('RACK, Accessori e Servizi'!J5=0,"",'RACK, Accessori e Servizi'!J5) ->  | G75: =IF('RACK, Accessori e Servizi'!J5>0,'RACK, Accessori e Servizi'!K5,"") ->  | V75: 0
B76: =IF('RACK, Accessori e Servizi'!J7=0,"",'RACK, Accessori e Servizi'!J7) ->  | G76: =IF('RACK, Accessori e Servizi'!J7>0,'RACK, Accessori e Servizi'!K7,"") ->  | V76: 0
B77: =IF('RACK, Accessori e Servizi'!J9=0,"",'RACK, Accessori e Servizi'!J9) ->  | G77: =IF('RACK, Accessori e Servizi'!J9>0,'RACK, Accessori e Servizi'!K9,"") ->  | V77: 0
B78: I.V.A. | R78: =R79*22% -> 0 | V78: 1
B79: TOTALE COSTO (I.V.A. Esclusa) | R79: =SUM(T15:U77) -> 0 | V79: 1
B80: TOTALE ORDINE | R80: =SUM(R78:U79) -> 0 | V80: 1
V81: 1
V82: 1
V83: 1
D84: =IF(G6>0,"DETTAGLIO CONFIGURAZIONI SERVER LOTTO 1 ","") ->  | V84: 1
V85: 1
V86: 1
V87: =IF($B$15>="",0,1) -> 0
B88: PowerEdge R630 Conf.1 | E88: =SRV_A -> 0 | F88: Server | I88: PowerEdge R630 Conf.2 | L88: =SRV_AA -> 0 | M88: Server | P88: PowerEdge R630 Conf.3 | S88: =SRV_AAA -> 0 | T88: Server | V88: =IF($B$15>="",0,1) -> 0
V89: 0
B90: =IF(SRV_A>0,"1","-") -> - | C90: =IF(B90="-","-",CONCATENATE(MID($C$15,1,21)," - ",$G$15)) -> - | I90: =IF(SRV_AA>0,"1","-") -> - | J90: =IF(I90="-","-",CONCATENATE(MID($C$15,1,21)," - ",$G$15)) -> - | P90: =IF(SRV_AAA>0,"1","-") -> - | Q90: =IF(P90="-","-",CONCATENATE(MID($C$15,1,21)," - ",$G$15)) -> - | V90: 0
B91: =IF(X16=0,"-",X16) -> - | C91: =IF(B91="-","-",CONCATENATE(MID($C$16,1,21)," - ",$G$16)) -> - | I91: =IF(Y16=0,"-",Y16) -> - | J91: =IF(I91="-","-",CONCATENATE(MID(C16,1,21)," - ",G16)) -> - | P91: =IF(Z16=0,"-",Z16) -> - | Q91: =IF(P91="-","-",CONCATENATE(MID(C16,1,21)," - ",G16)) -> - | V91: =IF(V16=0,0,1) -> 0
B92: - | C92: =IF(B92="-","-",CONCATENATE(MID($C$17,1,21)," - ",$G$17)) -> - | I92: - | J92: - | P92: - | Q92: - | V92: =IF(V17=0,0,1) -> 0
B93: - | C93: =IF(B93="-","-",CONCATENATE(MID($C$18,1,21)," - ",$G$18)) -> - | I93: - | J93: - | P93: - | Q93: - | V93: 0
B94: - | C94: =IF(B94="-","-",CONCATENATE(MID(C19,1,21)," - ",G19)) -> - | I94: - | J94: - | P94: - | Q94: - | V94: 0
B95: - | C95: - | I95: - | J95: - | P95: - | Q95: - | V95: 0
B96: - | C96: - | I96: - | J96: - | P96: - | Q96: - | V96: 0
B97: - | C97: - | I97: - | J97: - | P97: - | Q97: - | V97: 0
B98: - | C98: - | I98: - | J98: - | P98: - | Q98: - | V98: 0
B99: - | C99: - | I99: - | J99: - | P99: - | Q99: - | V99: 0
B100: - | C100: - | I100: - | J100: - | P100: - | Q100: - | V100: 0
B101: - | C101: - | I101: - | J101: - | P101: - | Q101: - | V101: 0
B102: - | C102: - | I102: - | J102: - | P102: - | Q102: - | V102: 0
B103: - | C103: - | I103: - | J103: - | P103: - | Q103: - | V103: 0
B104: - | C104: - | I104: - | J104: - | P104: - | Q104: - | V104: 0
B105: - | C105: - | I105: - | J105: - | P105: - | Q105: - | V105: 0
B106: - | C106: =IF(B106="-","-",CONCATENATE(MID(C31,1,21)," - ",AJ31)) -> - | I106: - | J106: =IF(I106="-","-",CONCATENATE(MID(C31,1,21)," - ",AK31)) -> - | P106: - | Q106: =IF(P106="-","-",CONCATENATE(MID(C31,1,21)," - ",AL31)) -> - | V106: 0
B107: =IF(X64=0,"-",X64) -> - | C107: =IF(B107="-","-",CONCATENATE(MID(C64,1,21)," - ",G64)) -> - | I107: =IF(Y64=0,"-",Y64) -> - | J107: =IF(I107="-","-",CONCATENATE(MID(C64,1,21)," - ",G64)) -> - | P107: =IF(Z64=0,"-",Z64) -> - | Q107: =IF(P107="-","-",CONCATENATE(MID(C64,1,21)," - ",G64)) -> - | V107: =IF(AM64=0,0,1) -> 0
B108: =IF(X65=0,"-",X65) -> - | C108: =IF(B108="-","-",CONCATENATE(MID(C65,1,21)," - ",G65)) -> - | I108: =IF(Y65=0,"-",Y65) -> - | J108: =IF(I108="-","-",CONCATENATE(MID(C65,1,21)," - ",G65)) -> - | P108: =IF(Z65=0,"-",Z65) -> - | Q108: =IF(P108="-","-",CONCATENATE(MID(C65,1,21)," - ",G65)) -> - | V108: =IF(AM65=0,0,1) -> 0
B109: =IF(X66=0,"-",X66) -> - | C109: =IF(B109="-","-",CONCATENATE(MID(C66,1,21)," - ",G66)) -> - | I109: - | J109: - | P109: - | Q109: - | V109: 0
B110: =IF(X67=0,"-",X67) -> - | C110: =IF(B110="-","-",CONCATENATE(MID(C67,1,21)," - ",G67)) -> - | I110: - | J110: - | P110: - | Q110: - | V110: 0
V111: =IF($B$15>="",0,1) -> 0
B112: Configurazione RAID | I112: Configurazione RAID | P112: Configurazione RAID | V112: 0
V113: 0
B114: =IF(X15=0,"","HDD 300 GB") ->  | D114: =IF(X15=0,"",'Server10 Lotto1 R630'!$B$73) ->  | I114: =IF(Y15=0,"","HDD 300 GB") ->  | K114: =IF(Y15=0,"",'Server10 Lotto1 R630 2'!$B$73) ->  | P114: =IF(Z15=0,"","HDD 300 GB") ->  | R114: =IF(Z15=0,"",'Server10 Lotto1 R630 3'!$B$73) ->  | V114: 0
V115: 0
B116: =IF(X15=0,"","Hot spare HDD 300 GB") ->  | F116: =IF(X15=0,"",'Server10 Lotto1 R630'!$C$74) ->  | I116: =IF(Y15=0,"","Hot spare HDD 300 GB") ->  | M116: =IF(Y15=0,"",'Server10 Lotto1 R630 2'!$C$74) ->  | P116: =IF(Z15=0,"","Hot spare HDD 300 GB") ->  | T116: =IF(Z15=0,"",'Server10 Lotto1 R630 3'!$C$74) ->  | V116: 0
V117: 0
V118: 0
B119: =IF(X28=0,"","HDD 1000 GB") ->  | D119: =IF(X28=0,"",'Server10 Lotto1 R630'!$B$77) ->  | I119: =IF(Y28=0,"","HDD 1000 GB") ->  | K119: =IF(Y28=0,"",'Server10 Lotto1 R630 2'!$B$77) ->  | P119: =IF(Z28=0,"","HDD 1000 GB") ->  | R119: =IF(Z28=0,"",'Server10 Lotto1 R630 2'!$B$77) ->  | V119: 0
V120: 0
B121: =IF(X28=0,"","Hot spare HDD 1000 GB") ->  | F121: =IF(X28=0,"",'Server10 Lotto1 R630'!$C$78) ->  | I121: =IF(Y28=0,"","Hot spare HDD 1000 GB") ->  | M121: =IF(Y28=0,"",'Server10 Lotto1 R630 2'!$C$78) ->  | P121: =IF(Z28=0,"","Hot spare HDD 1000 GB") ->  | T121: =IF(Z28=0,"",'Server10 Lotto1 R630 2'!$C$78) ->  | V121: 0
V122: 0
V123: 0
B124: Note RAID | I124: Note RAID | P124: Note RAID | V124: 0
B125: =IF('Server10 Lotto1 R630'!$I$72=0,"",'Server10 Lotto1 R630'!$I$72) ->  | I125: =IF('Server10 Lotto1 R630 2'!$I$72=0,"",'Server10 Lotto1 R630 2'!$I$72) ->  | P125: =IF('Server10 Lotto1 R630 3'!$I$72=0,"",'Server10 Lotto1 R630 3'!$I$72) ->  | V125: 0
V126: 0
V127: 0
B128: =IF('Server10 Lotto1 R630'!$I$76=0,"",'Server10 Lotto1 R630'!$I$76) ->  | I128: =IF('Server10 Lotto1 R630 2'!$I$76=0,"",'Server10 Lotto1 R630 2'!$I$76) ->  | P128: =IF('Server10 Lotto1 R630 3'!$I$76=0,"",'Server10 Lotto1 R630 3'!$I$76) ->  | V128: 0
V129: 0
V130: 0
V131: 0
V132: =IF($B$33>="",0,1) -> 0
B133: PowerEdge 730xd Conf.1 | E133: =SRV_B -> 0 | F133: Server | I133: PowerEdge 730xd Conf.2 | L133: =SRV_BB -> 0 | M133: Server | P133: PowerEdge 730xd Conf.3 | S133: =SRV_BBB -> 0 | T133: Server | V133: =IF($B$33>="",0,1) -> 0
V134: 0
B135: =IF(SRV_B>0,"1","-") -> - | C135: =IF(B135="-","-",CONCATENATE(MID(C33,1,24)," - ",G33)) -> - | I135: =IF(SRV_BB>0,"1","-") -> - | J135: =IF(I135="-","-",CONCATENATE(MID(C33,1,24)," - ",G33)) -> - | P135: =IF(SRV_BBB>0,"1","-") -> - | Q135: =IF(P135="-","-",CONCATENATE(MID(C33,1,24)," - ",G33)) -> - | V135: 0
B136: =IF(X34=0,"-",X34) -> - | C136: - | I136: =IF(Y34=0,"-",Y34) -> - | J136: - | P136: =IF(Z34=0,"-",Z34) -> - | Q136: - | V136: =IF(V34=0,0,1) -> 0
B137: - | C137: - | I137: - | J137: - | P137: - | Q137: - | V137: =IF(V35=0,0,1) -> 0
B138: - | C138: - | I138: - | J138: - | P138: - | Q138: - | V138: 0
B139: - | C139: - | I139: - | J139: - | P139: - | Q139: - | V139: 0
B140: - | C140: - | I140: - | J140: - | P140: - | Q140: - | V140: 0
B141: - | C141: - | I141: - | J141: - | P141: - | Q141: - | V141: 0
B142: - | C142: - | I142: - | J142: - | P142: - | Q142: - | V142: 0
B143: - | C143: - | I143: - | J143: - | P143: - | Q143: - | V143: 0
B144: - | C144: - | I144: - | J144: - | P144: - | Q144: - | V144: 0
B145: - | C145: - | I145: - | J145: - | P145: - | Q145: - | V145: 0
B146: - | C146: - | I146: - | J146: - | P146: - | Q146: - | V146: 0
B147: - | C147: - | I147: - | J147: - | P147: - | Q147: - | V147: 0
B148: - | C148: - | I148: - | J148: - | P148: - | Q148: - | V148: 0
B149: - | C149: - | I149: - | J149: - | P149: - | Q149: - | V149: 0
B150: - | C150: - | I150: - | J150: - | P150: - | Q150: - | V150: 0
B151: - | C151: =IF(B151="-","-",CONCATENATE(MID(C49,1,24)," - ",AJ49)) -> - | I151: - | J151: =IF(I151="-","-",CONCATENATE(MID(C49,1,24)," - ",AK49)) -> - | P151: - | Q151: =IF(P151="-","-",CONCATENATE(MID(C49,1,24)," - ",AL49)) -> - | V151: 0
B152: =IF(AA64=0,"-",AA64) -> - | C152: =IF(B152="-","-",CONCATENATE(MID(C64,1,21)," - ",G64)) -> - | I152: =IF(AB64=0,"-",AB64) -> - | J152: =IF(I152="-","-",CONCATENATE(MID(C64,1,21)," - ",G64)) -> - | P152: =IF(AC64=0,"-",AC64) -> - | Q152: =IF(P152="-","-",CONCATENATE(MID(C64,1,21)," - ",G64)) -> - | V152: =IF(AN64=0,0,1) -> 0
B153: =IF(AA65=0,"-",AA65) -> - | C153: =IF(B153="-","-",CONCATENATE(MID(C65,1,21)," - ",G65)) -> - | I153: =IF(AB65=0,"-",AB65) -> - | J153: =IF(I153="-","-",CONCATENATE(MID(C65,1,21)," - ",G65)) -> - | P153: =IF(AC65=0,"-",AC65) -> - | Q153: =IF(P153="-","-",CONCATENATE(MID(C65,1,21)," - ",G65)) -> - | V153: =IF(AN65=0,0,1) -> 0
B154: - | C154: - | I154: - | J154: - | P154: - | Q154: - | V154: 0
B155: - | C155: - | I155: - | J155: - | P155: - | Q155: - | V155: 0
V156: =IF($B$33>="",0,1) -> 0
B157: Configurazione RAID | I157: Configurazione RAID | P157: Configurazione RAID | V157: =IF($B$33>="",0,1) -> 0
V158: 0
B159: =IF(X33=0,"","HDD 300 GB") ->  | D159: =IF(X33=0,"",'Server10 Lotto1 R730xd'!$B$73) ->  | I159: =IF(Y33=0,"","HDD 300 GB") ->  | K159: =IF(Y33=0,"",'Server10 Lotto1 R730xd 2'!$B$73) ->  | P159: =IF(Z33=0,"","HDD 300 GB") ->  | R159: =IF(Z33=0,"",'Server10 Lotto1 R730xd 3'!$B$73) ->  | V159: 0
V160: 0
B161: =IF(X33=0,"","Hot spare HDD 300 GB") ->  | F161: =IF(X33=0,"",'Server10 Lotto1 R730xd'!$C$74) ->  | I161: =IF(Y33=0,"","Hot spare HDD 300 GB") ->  | M161: =IF(Y33=0,"",'Server10 Lotto1 R730xd 2'!$C$74) ->  | P161: =IF(Z33=0,"","Hot spare HDD 300 GB") ->  | T161: =IF(Z33=0,"",'Server10 Lotto1 R730xd 3'!$C$74) ->  | V161: 0
V162: 0
V163: 0
B164: =IF(X46=0,"","HDD 1000 GB") ->  | D164: =IF(X46=0,"",'Server10 Lotto1 R730xd'!$B$77) ->  | I164: =IF(Y46=0,"","HDD 1000 GB") ->  | K164: =IF(Y46=0,"",'Server10 Lotto1 R730xd 2'!$B$77) ->  | P164: =IF(Z46=0,"","HDD 1000 GB") ->  | R164: =IF(Z46=0,"",'Server10 Lotto1 R730xd 3'!$B$77) ->  | V164: 0
V165: 0
B166: =IF(X46=0,"","Hot spare HDD 1000 GB") ->  | F166: =IF(X46=0,"",'Server10 Lotto1 R730xd'!$C$78) ->  | I166: =IF(Y46=0,"","Hot spare HDD 1000 GB") ->  | M166: =IF(Y46=0,"",'Server10 Lotto1 R730xd 2'!$C$78) ->  | P166: =IF(Z46=0,"","Hot spare HDD 1000 GB") ->  | T166: =IF(Z46=0,"",'Server10 Lotto1 R730xd 3'!$C$78) ->  | V166: 0
V167: 0
V168: 0
B169: Note RAID | I169: Note RAID | P169: Note RAID | V169: 0
B170: =IF('Server10 Lotto1 R730xd'!$I$72=0,"",'Server10 Lotto1 R730xd'!$I$72) ->  | I170: =IF('Server10 Lotto1 R730xd 2'!$I$72=0,"",'Server10 Lotto1 R730xd 2'!$I$72) ->  | P170: =IF('Server10 Lotto1 R730xd 3'!$I$72=0,"",'Server10 Lotto1 R730xd 3'!$I$72) ->  | V170: 0
V171: 0
V172: 0
B173: =IF('Server10 Lotto1 R730xd'!$I$76=0,"",'Server10 Lotto1 R730xd'!$I$76) ->  | I173: =IF('Server10 Lotto1 R730xd 2'!$I$76=0,"",'Server10 Lotto1 R730xd 2'!$I$76) ->  | P173: =IF('Server10 Lotto1 R730xd 3'!$I$76=0,"",'Server10 Lotto1 R730xd 3'!$I$76) ->  | V173: 0
V174: 0
V175: 0
V176: 0
V177: =IF($D$178="",0,1) -> 0
D178: =IF('RACK, Accessori e Servizi'!H48>=1,"DETTAGLIO CONFIGURAZIONE ARMADI RACK","") ->  | V178: =IF($D$178="",0,1) -> 0
V179: 0
V180: 0
D181: =CONCATENATE('RACK, Accessori e Servizi'!H50," Qty: ",'RACK, Accessori e Servizi'!H48) -> Qty: | E181: =CONCATENATE('RACK, Accessori e Servizi'!I50," Qty: ",'RACK, Accessori e Servizi'!I48) -> Qty: | F181: =CONCATENATE('RACK, Accessori e Servizi'!J50," Qty: ",'RACK, Accessori e Servizi'!J48) -> Qty: | G181: =CONCATENATE('RACK, Accessori e Servizi'!K50," Qty: ",'RACK, Accessori e Servizi'!K48) -> Qty: | I181: =CONCATENATE('RACK, Accessori e Servizi'!L50," Qty: ",'RACK, Accessori e Servizi'!L48) -> Qty: | J181: =CONCATENATE('RACK, Accessori e Servizi'!M50," Qty: ",'RACK, Accessori e Servizi'!M48) -> Qty: | K181: =CONCATENATE('RACK, Accessori e Servizi'!N50," Qty: ",'RACK, Accessori e Servizi'!N48) -> Qty: | L181: =CONCATENATE('RACK, Accessori e Servizi'!O50," Qty: ",'RACK, Accessori e Servizi'!O48) -> Qty: | M181: =CONCATENATE('RACK, Accessori e Servizi'!P50," Qty: ",'RACK, Accessori e Servizi'!P48) -> Qty: | N181: =CONCATENATE('RACK, Accessori e Servizi'!Q50," Qty: ",'RACK, Accessori e Servizi'!Q48) -> Qty: | V181: 0
B182: R630 Conf.1 | D182: ='RACK, Accessori e Servizi'!H52 -> 0 | E182: ='RACK, Accessori e Servizi'!I52 -> 0 | F182: ='RACK, Accessori e Servizi'!J52 -> 0 | G182: ='RACK, Accessori e Servizi'!K52 -> 0 | I182: ='RACK, Accessori e Servizi'!L52 -> 0 | J182: ='RACK, Accessori e Servizi'!M52 -> 0 | K182: ='RACK, Accessori e Servizi'!N52 -> 0 | L182: ='RACK, Accessori e Servizi'!O52 -> 0 | M182: ='RACK, Accessori e Servizi'!P52 -> 0 | N182: ='RACK, Accessori e Servizi'!Q52 -> 0 | V182: 0
B183: R630 Conf.2 | D183: ='RACK, Accessori e Servizi'!H53 -> 0 | E183: ='RACK, Accessori e Servizi'!I53 -> 0 | F183: ='RACK, Accessori e Servizi'!J53 -> 0 | G183: ='RACK, Accessori e Servizi'!K53 -> 0 | I183: ='RACK, Accessori e Servizi'!L53 -> 0 | J183: ='RACK, Accessori e Servizi'!M53 -> 0 | K183: ='RACK, Accessori e Servizi'!N53 -> 0 | L183: ='RACK, Accessori e Servizi'!O53 -> 0 | M183: ='RACK, Accessori e Servizi'!P53 -> 0 | N183: ='RACK, Accessori e Servizi'!Q53 -> 0 | V183: 0
B184: R630 Conf.3 | D184: ='RACK, Accessori e Servizi'!H54 -> 0 | E184: ='RACK, Accessori e Servizi'!I54 -> 0 | F184: ='RACK, Accessori e Servizi'!J54 -> 0 | G184: ='RACK, Accessori e Servizi'!K54 -> 0 | I184: ='RACK, Accessori e Servizi'!L54 -> 0 | J184: ='RACK, Accessori e Servizi'!M54 -> 0 | K184: ='RACK, Accessori e Servizi'!N54 -> 0 | L184: ='RACK, Accessori e Servizi'!O54 -> 0 | M184: ='RACK, Accessori e Servizi'!P54 -> 0 | N184: ='RACK, Accessori e Servizi'!Q54 -> 0 | V184: 0
B185: R730xd Conf.1 | D185: ='RACK, Accessori e Servizi'!H55 -> 0 | E185: ='RACK, Accessori e Servizi'!I55 -> 0 | F185: ='RACK, Accessori e Servizi'!J55 -> 0 | G185: ='RACK, Accessori e Servizi'!K55 -> 0 | I185: ='RACK, Accessori e Servizi'!L55 -> 0 | J185: ='RACK, Accessori e Servizi'!M55 -> 0 | K185: ='RACK, Accessori e Servizi'!N55 -> 0 | L185: ='RACK, Accessori e Servizi'!O55 -> 0 | M185: ='RACK, Accessori e Servizi'!P55 -> 0 | N185: ='RACK, Accessori e Servizi'!Q55 -> 0 | V185: 0
B186: R730xd Conf.2 | D186: ='RACK, Accessori e Servizi'!H56 -> 0 | E186: ='RACK, Accessori e Servizi'!I56 -> 0 | F186: ='RACK, Accessori e Servizi'!J56 -> 0 | G186: ='RACK, Accessori e Servizi'!K56 -> 0 | I186: ='RACK, Accessori e Servizi'!L56 -> 0 | J186: ='RACK, Accessori e Servizi'!M56 -> 0 | K186: ='RACK, Accessori e Servizi'!N56 -> 0 | L186: ='RACK, Accessori e Servizi'!O56 -> 0 | M186: ='RACK, Accessori e Servizi'!P56 -> 0 | N186: ='RACK, Accessori e Servizi'!Q56 -> 0 | V186: 0
B187: R730xd Conf.3 | D187: ='RACK, Accessori e Servizi'!H57 -> 0 | E187: ='RACK, Accessori e Servizi'!I57 -> 0 | F187: ='RACK, Accessori e Servizi'!J57 -> 0 | G187: ='RACK, Accessori e Servizi'!K57 -> 0 | I187: ='RACK, Accessori e Servizi'!L57 -> 0 | J187: ='RACK, Accessori e Servizi'!M57 -> 0 | K187: ='RACK, Accessori e Servizi'!N57 -> 0 | L187: ='RACK, Accessori e Servizi'!O57 -> 0 | M187: ='RACK, Accessori e Servizi'!P57 -> 0 | N187: ='RACK, Accessori e Servizi'!Q57 -> 0 | V187: 0
D188: ='RACK, Accessori e Servizi'!H58 -> 0 | E188: ='RACK, Accessori e Servizi'!I58 -> 0 | F188: ='RACK, Accessori e Servizi'!J58 -> 0 | G188: ='RACK, Accessori e Servizi'!K58 -> 0 | I188: ='RACK, Accessori e Servizi'!L58 -> 0 | J188: ='RACK, Accessori e Servizi'!M58 -> 0 | K188: ='RACK, Accessori e Servizi'!N58 -> 0 | L188: ='RACK, Accessori e Servizi'!O58 -> 0 | M188: ='RACK, Accessori e Servizi'!P58 -> 0 | N188: ='RACK, Accessori e Servizi'!Q58 -> 0
B189: OpzGUIRack | D189: ='RACK, Accessori e Servizi'!H59 -> 0 | E189: ='RACK, Accessori e Servizi'!I59 -> 0 | F189: ='RACK, Accessori e Servizi'!J59 -> 0 | G189: ='RACK, Accessori e Servizi'!K59 -> 0 | I189: ='RACK, Accessori e Servizi'!L59 -> 0 | J189: ='RACK, Accessori e Servizi'!M59 -> 0 | K189: ='RACK, Accessori e Servizi'!N59 -> 0 | L189: ='RACK, Accessori e Servizi'!O59 -> 0 | M189: ='RACK, Accessori e Servizi'!P59 -> 0 | N189: ='RACK, Accessori e Servizi'!Q59 -> 0 | V189: 0
D190: ='RACK, Accessori e Servizi'!H60 -> 0 | E190: ='RACK, Accessori e Servizi'!I60 -> 0 | F190: ='RACK, Accessori e Servizi'!J60 -> 0 | G190: ='RACK, Accessori e Servizi'!K60 -> 0 | I190: ='RACK, Accessori e Servizi'!L60 -> 0 | J190: ='RACK, Accessori e Servizi'!M60 -> 0 | K190: ='RACK, Accessori e Servizi'!N60 -> 0 | L190: ='RACK, Accessori e Servizi'!O60 -> 0 | M190: ='RACK, Accessori e Servizi'!P60 -> 0 | N190: ='RACK, Accessori e Servizi'!Q60 -> 0
B191: OpzSWGUIRack | C191: 0 | D191: ='RACK, Accessori e Servizi'!H61 -> 0 | E191: ='RACK, Accessori e Servizi'!I61 -> 0 | F191: ='RACK, Accessori e Servizi'!J61 -> 0 | G191: ='RACK, Accessori e Servizi'!K61 -> 0 | I191: ='RACK, Accessori e Servizi'!L61 -> 0 | J191: ='RACK, Accessori e Servizi'!M61 -> 0 | K191: ='RACK, Accessori e Servizi'!N61 -> 0 | L191: ='RACK, Accessori e Servizi'!O61 -> 0 | M191: ='RACK, Accessori e Servizi'!P61 -> 0 | N191: ='RACK, Accessori e Servizi'!Q61 -> 0 | V191: 0
D192: ='RACK, Accessori e Servizi'!H62 -> 0 | E192: ='RACK, Accessori e Servizi'!I62 -> 0 | F192: ='RACK, Accessori e Servizi'!J62 -> 0 | G192: ='RACK, Accessori e Servizi'!K62 -> 0 | I192: ='RACK, Accessori e Servizi'!L62 -> 0 | J192: ='RACK, Accessori e Servizi'!M62 -> 0 | K192: ='RACK, Accessori e Servizi'!N62 -> 0 | L192: ='RACK, Accessori e Servizi'!O62 -> 0 | M192: ='RACK, Accessori e Servizi'!P62 -> 0 | N192: ='RACK, Accessori e Servizi'!Q62 -> 0
B193: OpzUPS 3000VA | C193: 0 | D193: ='RACK, Accessori e Servizi'!H63 -> 0 | E193: ='RACK, Accessori e Servizi'!I63 -> 0 | F193: ='RACK, Accessori e Servizi'!J63 -> 0 | G193: ='RACK, Accessori e Servizi'!K63 -> 0 | I193: ='RACK, Accessori e Servizi'!L63 -> 0 | J193: ='RACK, Accessori e Servizi'!M63 -> 0 | K193: ='RACK, Accessori e Servizi'!N63 -> 0 | L193: ='RACK, Accessori e Servizi'!O63 -> 0 | M193: ='RACK, Accessori e Servizi'!P63 -> 0 | N193: ='RACK, Accessori e Servizi'!Q63 -> 0 | V193: 0
V194: 0
V195: 0
V196: =IF($B$51>="",0,1) -> 0
B197: PowerEdge T630 Conf.1 | E197: =SRV_C -> 0 | F197: Server | V197: =IF($B$51>="",0,1) -> 0
V198: 0
B199: =IF(SRV_C>0,"1","-") -> - | C199: =IF(B199="-","-",CONCATENATE(MID(C51,1,24)," - ",G51)) -> - | V199: 0
B200: =IF(X52=0,"-",X52) -> - | C200: - | V200: =IF(V52=0,0,1) -> 0
... 47 more rows

Sheet Server10 Lotto1 R630 2
A5: Server10 Lotto1 R630 | H5: List Price *
H6: =F17*C16 -> 0
A11: Components: Server DELL PowerEdge R630 (1CPU Intel® Xeon® E5-2640 v4, 32GB RDIMM, 2xHDD 300GB 10K RPM SAS 12Gbps 2.5in)
A15: PowerEdge R630 | B15: Category: Server | F15: =1806 -> 1806
B16: Quantity: | F16: =SUM(F20:F148) -> 0
F17: =SUM(F15:F16) -> 1806
B19: Base
B20: PowerEdge R630 for Intel v4 CPUs, 8HDD | C20: 1 | E20: [210-ACXS][329-BCZI]
B22: Configurazione dello chassis
B23: Chassis with up to 8, 2.5" Hard Drives, up to 2 PCIe Slots (With Optional Riser) | C23: 1 | E23: [321-BBKJ]
B25: Processore
B26: Intel Xeon E5-2640 v4 2.4GHz 25M Cache 8.0GT/s QPI Turbo HT 10C/20T (90W) Max Mem 2133MHz | C26: 1 | E26: [338-BJDL]
B28: Processore aggiuntivo
B29: No Additional Processor | C29: =VLOOKUP($B$29, CPU_A, 2, FALSE) -> 0 | D29: =VLOOKUP($B$29, CPU_A, 3, FALSE) ->  | E29: =VLOOKUP($B$29, CPU_A, 5, FALSE) -> [374-BBBX] | F29: =VLOOKUP(B29, CPU_A, 12, FALSE) -> 
B31: Processor Thermal Configuration
B32: 1 CPU up to 120W | C32: 1 | E32: [370-ABWN][412-AAEE]
B33: =VLOOKUP($B$29, CPU_A, 6, FALSE) ->  | C33: =VLOOKUP($B$29, CPU_A, 7, FALSE) ->  | E33: =VLOOKUP($B$29, CPU_A, 8, FALSE) -> 
B35: Tipo di configurazione memoria
B36: Performance Optimized | C36: 1 | E36: [370-AAIP]
B38: Memoria Totale in GB | D38: =IF(('Server10 Lotto1 R630'!$D$12=0),"",'Server10 Lotto1 R630'!#REF!) -> 
B39: 32
B41: Tipo e velocità della memoria DIMM
B42: 2400MT/s RDIMMs | C42: 1 | E42: [370-ACPH]
B44: Capacità di memoria
B45: =IF($B$29="No Additional Processor",VLOOKUP($B$39, MEM_A1, 8, FALSE),VLOOKUP($B$39, MEM_A2, 8, FALSE)) -> 16GB RDIMM, 2400MT/s, Dual Rank, x8 Data Width | C45: =IF($B$29="No Additional Processor",VLOOKUP($B$39, MEM_A1, 9, FALSE),VLOOKUP($B$39, MEM_A2, 9, FALSE)) -> 2 | E45: =IF($B$29="No Additional Processor",VLOOKUP($B$39, MEM_A1, 10, FALSE),VLOOKUP($B$39, MEM_A2, 10, FALSE)) -> [370-ACNX]
B47: =IF($B$29="No Additional Processor",VLOOKUP($B$39, MEM_A1, 2, FALSE),VLOOKUP($B$39, MEM_A2, 2, FALSE)) ->  | C47: =IF($B$29="No Additional Processor",VLOOKUP($B$39, MEM_A1, 3, FALSE),VLOOKUP($B$39, MEM_A2, 3, FALSE)) ->  | D47: =IF($B$29="No Additional Processor",VLOOKUP($B$39, MEM_A1, 4, FALSE),VLOOKUP($B$39, MEM_A2, 4, FALSE)) ->  | E47: =IF($B$29="No Additional Processor",VLOOKUP($B$39, MEM_A1, 6, FALSE),VLOOKUP($B$39, MEM_A2, 6, FALSE)) ->  | F47: =IF($B$29="No Additional Processor",VLOOKUP($B$39, MEM_A1, 7, FALSE),VLOOKUP($B$39, MEM_A2, 7, FALSE)) -> 
B49: =IF($B$29="No Additional Processor",VLOOKUP($B$39, MEM_A1, 11, FALSE),VLOOKUP($B$39, MEM_A2, 11, FALSE)) ->  | C49: =IF($B$29="No Additional Processor",VLOOKUP($B$39, MEM_A1, 12, FALSE),VLOOKUP($B$39, MEM_A2, 12, FALSE)) ->  | D49: =IF($B$29="No Additional Processor",VLOOKUP($B$39, MEM_A1, 13, FALSE),VLOOKUP($B$39, MEM_A2, 13, FALSE)) ->  | E49: =IF($B$29="No Additional Processor",VLOOKUP($B$39, MEM_A1, 15, FALSE),VLOOKUP($B$39, MEM_A2, 15, FALSE)) ->  | F49: =IF($B$29="No Additional Processor",VLOOKUP($B$39, MEM_A1, 16, FALSE),VLOOKUP($B$39, MEM_A2, 16, FALSE)) -> 
B51: Sistema operativo preinstallato
B52: No Operating System | C52: =VLOOKUP($B$52, OS_A, 2, FALSE) ->  | D52: =VLOOKUP($B$52, OS_A, 3, FALSE) ->  | E52: =VLOOKUP($B$52, OS_A, 5, FALSE) -> [611-BBBF] | F52: =VLOOKUP($B$52, OS_A, 6, FALSE) -> 
B54: OS Media Kits
B55: No Media Required | C55: 1 | E55: [605-BBFN]
B57: Client Access Licenses
B58: =VLOOKUP($B$52, OS_A, 7, FALSE) -> None | D58: =VLOOKUP($B$52, OS_A, 9, FALSE) ->  | E58: =VLOOKUP($B$52, OS_A, 11, FALSE) ->  | F58: =VLOOKUP($B$52, OS_A, 12, FALSE)*C58 -> 0
B60: =VLOOKUP($B$52, OS_A, 13, FALSE) -> None | D60: =VLOOKUP($B$52, OS_A, 15, FALSE) ->  | E60: =VLOOKUP($B$52, OS_A, 17, FALSE) ->  | F60: =VLOOKUP($B$52, OS_A, 18, FALSE)*C60 -> 0
B62: Controller RAID
B63: PERC H330 RAID Controller | C63: 1 | E63: [405-AAEF]
B65: Dischi rigidi
B66: 300GB 10K RPM SAS 12Gbps 2.5in Hot-plug Hard Drive | C66: 2 | E66: [400-AJPK]
B68: 300GB 10K RPM SAS 12Gbps 2.5in Hot-plug Hard Drive,CusKit | D68: =VLOOKUP($B$68, HDD_A,3, FALSE) -> 10L1-HDD300GB | E68: =VLOOKUP($B$68, HDD_A,5, FALSE) -> [400-AJOQ] | F68: =VLOOKUP($B$68, HDD_A,6, FALSE)*C68 -> 0
B70: 1TB 7.2K RPM NLSAS 6Gbps 2.5in Hot-plug Hard Drive,13G,CusKit | D70: =VLOOKUP($B$70, HDD_A,3, FALSE) -> 10L1-HDD1TB | E70: =VLOOKUP($B$70, HDD_A,5, FALSE) -> [400-AEFF] | F70: =VLOOKUP($B$70, HDD_A,6, FALSE)*C70 -> 0
B72: Configurazione RAID HDD 300GB
B73: C3 - RAID 1 for H330 (2 HDDs) | C73: 1 | E73: =VLOOKUP($B$73, RAID_AA1, 2, FALSE) -> [780-BBJK]
B74: Hot Spare for 300GB HDD | C74: No
B76: Configurazione RAID HDD 1TB
C77: 1 | E77: =VLOOKUP($B$77, RAID_AA2, 2, FALSE) -> 
B78: Hot Spare for 1TB HDD | C78: No
B80: Impostazioni del BIOS per la gestione dell'alimentazione
B81: Performance BIOS Setting | C81: 1 | E81: [384-BBBL]
B83: Alimentatore
B84: Dual, Hot-plug, Redundant Power Supply (1+1), 750W, Titanium, 200-240VAC | C84: 1 | E84: [450-ADWT]
B86: Cavi di alimentazione
B87: Rack Power Cord 2M (C13/C14 12A) | C87: 2 | E87: [450-AADY]
B89: PCIe Riser
B90: =VLOOKUP(B29, CPU_A, 9, FALSE) -> Riser with up to 1, x8 PCIe Slots + 1, x16 PCIe Slots for x8, 2 PCIe Chassis with 1 Processor | C90: =VLOOKUP($B$29, CPU_A, 10, FALSE) -> 1 | E90: =VLOOKUP($B$29, CPU_A, 11, FALSE) -> [330-BBCS]
B92: TPM Module
B93: PowerEdge Server FIPS TPM 2.0 | C93: 1 | E93: [461-AADM]
B95: Embedded Systems Management
B96: iDrac8, Enterprise with Open Manage Essentials | C96: 1 | E96: [385-BBHO][634-BBWU]
B98: Adattatore di rete
B99: Broadcom 5720 QP 1Gb Network Daughter Card | C99: 1 | E99: [540-BBBW]
B101: Additional Card for PCIe Slot 1 (Low Profile)
B102: None | C102: =VLOOKUP($B$102, PCI_A1, 2, FALSE) ->  | D102: =VLOOKUP($B$102, PCI_A1, 3, FALSE) ->  | E102: =VLOOKUP($B$102, PCI_A1, 5, FALSE) ->  | F102: =VLOOKUP($B$102, PCI_A1, 6, FALSE) -> 
B104: Additional Card for PCIe Slot 2 (Full height)
B105: None | C105: =VLOOKUP($B$105, PCI_A2, 2, FALSE) ->  | D105: =VLOOKUP($B$105, PCI_A2, 3, FALSE) ->  | E105: =VLOOKUP($B$105, PCI_A2, 5, FALSE) ->  | F105: =VLOOKUP($B$105, PCI_A2, 6, FALSE) -> 
B107: Pannello frontale
B108: Bezel 8 Drive Chassis | C108: 1 | E108: [325-BBII]
B110: Guide per rack
B111: ReadyRails™ Sliding Rails Without Cable Management Arm | C111: 1 | E111: [770-BBBC]
B113: Unità ottica interna
B114: No Internal Optical Drive for 8 HDD Chassis | C114: 1 | E114: [429-AAQN]
B116: Accessori Server
B117: PowerEdge SFP+, 10GbE SR/SX, Optical Tranceiver, LC Connector, for Intel and Broadcom,CusKit | C117: =(VLOOKUP(B105,PCI_A2,8,FALSE))+((VLOOKUP(B102,PCI_A1,8,FALSE))) -> 0 | E117: [407-BBQE]
B119: Sistema documentazione
B120: Electronic System Documentation and OpenManage DVD Kit | C120: 1 | E120: [343-BBDK]
B122: SHIPPING
B123: R630 Shipping - 8 Drive Chassis, EMEA1 (English/French/German/Spanish/Russian/Hebrew) | C123: 1 | E123: [340-AMIN]
B125: Order Information
B126: PowerEdge Order - EMEA | C126: 1 | E126: [800-11671]
B128: Base warranty
B129: 3Yr Basic Warranty - Next Business Day - Minimum Warranty | C129: 1 | E129: [709-12767][709-12768]
B131: Servizi di assitenza
B132: Dell Channel Order - Service Info only | C132: 1 | E132: [710-31085]
B134: Aggiornamenti della garanzia
B135: None | C135: =VLOOKUP($B$135, SO_A1, 2, FALSE) ->  | D135: =VLOOKUP($B$135, SO_A1, 3, FALSE) ->  | E135: =VLOOKUP($B$135, SO_A1, 5, FALSE) ->  | F135: =VLOOKUP($B$135, SO_A1, 6, FALSE) -> 
B137: Protezione dei dati - Keep Your Hard Drive
B138: None | C138: =VLOOKUP($B$138, SO_A2, 2, FALSE) ->  | D138: =VLOOKUP($B$138, SO_A2, 3, FALSE) ->  | E138: =VLOOKUP($B$138, SO_A2,5, FALSE) ->  | F138: =VLOOKUP($B$138, SO_A2, 6, FALSE) -> 
B140: Servizi di Installazione
B141: No Installation Service Selected | C141: 1 | E141: [683-11870]
B143: Channel only - Support Extension
B144: Channel 39M Basic Warranty - Next Business Day | C144: 1 | E144: [723-28776]
B146: Warranty Upgrades - Non-Std/Local POS
B147: CSTM CONSIP - 39M Onsite Labor Support for CRU for Servers with Basic Warranty | C147: 1 | E147: [681-24467]

Sheet Server10 Lotto1 R630 3
A5: Server10 Lotto1 R630 | H5: List Price *
H6: =F17*C16 -> 0
A11: Components: Server DELL PowerEdge R630 (1CPU Intel® Xeon® E5-2640 v4, 32GB RDIMM, 2xHDD 300GB 10K RPM SAS 12Gbps 2.5in)
A15: PowerEdge R630 | B15: Category: Server | F15: =1806 -> 1806
B16: Quantity: | F16: =SUM(F20:F148) -> 0
F17: =SUM(F15:F16) -> 1806
B19: Base
B20: PowerEdge R630 for Intel v4 CPUs, 8HDD | C20: 1 | E20: [210-ACXS][329-BCZI]
B22: Configurazione dello chassis
B23: Chassis with up to 8, 2.5" Hard Drives, up to 2 PCIe Slots (With Optional Riser) | C23: 1 | E23: [321-BBKJ]
B25: Processore
B26: Intel Xeon E5-2640 v4 2.4GHz 25M Cache 8.0GT/s QPI Turbo HT 10C/20T (90W) Max Mem 2133MHz | C26: 1 | E26: [338-BJDL]
B28: Processore aggiuntivo
B29: No Additional Processor | C29: =VLOOKUP($B$29, CPU_A, 2, FALSE) -> 0 | D29: =VLOOKUP($B$29, CPU_A, 3, FALSE) ->  | E29: =VLOOKUP($B$29, CPU_A, 5, FALSE) -> [374-BBBX] | F29: =VLOOKUP(B29, CPU_A, 12, FALSE) -> 
B31: Processor Thermal Configuration
B32: 1 CPU up to 120W | C32: 1 | E32: [370-ABWN][412-AAEE]
B33: =VLOOKUP($B$29, CPU_A, 6, FALSE) ->  | C33: =VLOOKUP($B$29, CPU_A, 7, FALSE) ->  | E33: =VLOOKUP($B$29, CPU_A, 8, FALSE) -> 
B35: Tipo di configurazione memoria
B36: Performance Optimized | C36: 1 | E36: [370-AAIP]
B38: Memoria Totale in GB | D38: =IF(('Server10 Lotto1 R630'!$D$12=0),"",'Server10 Lotto1 R630'!#REF!) -> 
B39: 32
B41: Tipo e velocità della memoria DIMM
B42: 2400MT/s RDIMMs | C42: 1 | E42: [370-ACPH]
B44: Capacità di memoria
B45: =IF($B$29="No Additional Processor",VLOOKUP($B$39, MEM_A1, 8, FALSE),VLOOKUP($B$39, MEM_A2, 8, FALSE)) -> 16GB RDIMM, 2400MT/s, Dual Rank, x8 Data Width | C45: =IF($B$29="No Additional Processor",VLOOKUP($B$39, MEM_A1, 9, FALSE),VLOOKUP($B$39, MEM_A2, 9, FALSE)) -> 2 | E45: =IF($B$29="No Additional Processor",VLOOKUP($B$39, MEM_A1, 10, FALSE),VLOOKUP($B$39, MEM_A2, 10, FALSE)) -> [370-ACNX]
B47: =IF($B$29="No Additional Processor",VLOOKUP($B$39, MEM_A1, 2, FALSE),VLOOKUP($B$39, MEM_A2, 2, FALSE)) ->  | C47: =IF($B$29="No Additional Processor",VLOOKUP($B$39, MEM_A1, 3, FALSE),VLOOKUP($B$39, MEM_A2, 3, FALSE)) ->  | D47: =IF($B$29="No Additional Processor",VLOOKUP($B$39, MEM_A1, 4, FALSE),VLOOKUP($B$39, MEM_A2, 4, FALSE)) ->  | E47: =IF($B$29="No Additional Processor",VLOOKUP($B$39, MEM_A1, 6, FALSE),VLOOKUP($B$39, MEM_A2, 6, FALSE)) ->  | F47: =IF($B$29="No Additional Processor",VLOOKUP($B$39, MEM_A1, 7, FALSE),VLOOKUP($B$39, MEM_A2, 7, FALSE)) -> 
B49: =IF($B$29="No Additional Processor",VLOOKUP($B$39, MEM_A1, 11, FALSE),VLOOKUP($B$39, MEM_A2, 11, FALSE)) ->  | C49: =IF($B$29="No Additional Processor",VLOOKUP($B$39, MEM_A1, 12, FALSE),VLOOKUP($B$39, MEM_A2, 12, FALSE)) ->  | D49: =IF($B$29="No Additional Processor",VLOOKUP($B$39, MEM_A1, 13, FALSE),VLOOKUP($B$39, MEM_A2, 13, FALSE)) ->  | E49: =IF($B$29="No Additional Processor",VLOOKUP($B$39, MEM_A1, 15, FALSE),VLOOKUP($B$39, MEM_A2, 15, FALSE)) ->  | F49: =IF($B$29="No Additional Processor",VLOOKUP($B$39, MEM_A1, 16, FALSE),VLOOKUP($B$39, MEM_A2, 16, FALSE)) -> 
B51: Sistema operativo preinstallato
B52: No Operating System | C52: =VLOOKUP($B$52, OS_A, 2, FALSE) ->  | D52: =VLOOKUP($B$52, OS_A, 3, FALSE) ->  | E52: =VLOOKUP($B$52, OS_A, 5, FALSE) -> [611-BBBF] | F52: =VLOOKUP($B$52, OS_A, 6, FALSE) -> 
B54: OS Media Kits
B55: No Media Required | C55: 1 | E55: [605-BBFN]
B57: Client Access Licenses
B58: =VLOOKUP($B$52, OS_A, 7, FALSE) -> None | D58: =VLOOKUP($B$52, OS_A, 9, FALSE) ->  | E58: =VLOOKUP($B$52, OS_A, 11, FALSE) ->  | F58: =VLOOKUP($B$52, OS_A, 12, FALSE)*C58 -> 0
B60: =VLOOKUP($B$52, OS_A, 13, FALSE) -> None | D60: =VLOOKUP($B$52, OS_A, 15, FALSE) ->  | E60: =VLOOKUP($B$52, OS_A, 17, FALSE) ->  | F60: =VLOOKUP($B$52, OS_A, 18, FALSE)*C60 -> 0
B62: Controller RAID
B63: PERC H330 RAID Controller | C63: 1 | E63: [405-AAEF]
B65: Dischi rigidi
B66: 300GB 10K RPM SAS 12Gbps 2.5in Hot-plug Hard Drive | C66: 2 | E66: [400-AJPK]
B68: 300GB 10K RPM SAS 12Gbps 2.5in Hot-plug Hard Drive,CusKit | D68: =VLOOKUP($B$68, HDD_A,3, FALSE) -> 10L1-HDD300GB | E68: =VLOOKUP($B$68, HDD_A,5, FALSE) -> [400-AJOQ] | F68: =VLOOKUP($B$68, HDD_A,6, FALSE)*C68 -> 0
B70: 1TB 7.2K RPM NLSAS 6Gbps 2.5in Hot-plug Hard Drive,13G,CusKit | D70: =VLOOKUP($B$70, HDD_A,3, FALSE) -> 10L1-HDD1TB | E70: =VLOOKUP($B$70, HDD_A,5, FALSE) -> [400-AEFF] | F70: =VLOOKUP($B$70, HDD_A,6, FALSE)*C70 -> 0
B72: Configurazione RAID HDD 300GB
B73: C3 - RAID 1 for H330 (2 HDDs) | C73: 1 | E73: =VLOOKUP($B$73, RAID_AAA1, 2, FALSE) -> [780-BBJK]
B74: Hot Spare for 300GB HDD | C74: No
B76: Configurazione RAID HDD 1TB
C77: 1 | E77: =VLOOKUP($B$77, RAID_AAA2, 2, FALSE) -> 
B78: Hot Spare for 1TB HDD | C78: No
B80: Impostazioni del BIOS per la gestione dell'alimentazione
B81: Performance BIOS Setting | C81: 1 | E81: [384-BBBL]
B83: Alimentatore
B84: Dual, Hot-plug, Redundant Power Supply (1+1), 750W, Titanium, 200-240VAC | C84: 1 | E84: [450-ADWT]
B86: Cavi di alimentazione
B87: Rack Power Cord 2M (C13/C14 12A) | C87: 2 | E87: [450-AADY]
B89: PCIe Riser
B90: =VLOOKUP(B29, CPU_A, 9, FALSE) -> Riser with up to 1, x8 PCIe Slots + 1, x16 PCIe Slots for x8, 2 PCIe Chassis with 1 Processor | C90: =VLOOKUP($B$29, CPU_A, 10, FALSE) -> 1 | E90: =VLOOKUP($B$29, CPU_A, 11, FALSE) -> [330-BBCS]
B92: TPM Module
B93: PowerEdge Server FIPS TPM 2.0 | C93: 1 | E93: [461-AADM]
B95: Embedded Systems Management
B96: iDrac8, Enterprise with Open Manage Essentials | C96: 1 | E96: [385-BBHO][634-BBWU]
B98: Adattatore di rete
B99: Broadcom 5720 QP 1Gb Network Daughter Card | C99: 1 | E99: [540-BBBW]
B101: Additional Card for PCIe Slot 1 (Low Profile)
B102: None | C102: =VLOOKUP($B$102, PCI_A1, 2, FALSE) ->  | D102: =VLOOKUP($B$102, PCI_A1, 3, FALSE) ->  | E102: =VLOOKUP($B$102, PCI_A1, 5, FALSE) ->  | F102: =VLOOKUP($B$102, PCI_A1, 6, FALSE) -> 
B104: Additional Card for PCIe Slot 2 (Full height)
B105: None | C105: =VLOOKUP($B$105, PCI_A2, 2, FALSE) ->  | D105: =VLOOKUP($B$105, PCI_A2, 3, FALSE) ->  | E105: =VLOOKUP($B$105, PCI_A2, 5, FALSE) ->  | F105: =VLOOKUP($B$105, PCI_A2, 6, FALSE) -> 
B107: Pannello frontale
B108: Bezel 8 Drive Chassis | C108: 1 | E108: [325-BBII]
B110: Guide per rack
B111: ReadyRails™ Sliding Rails Without Cable Management Arm | C111: 1 | E111: [770-BBBC]
B113: Unità ottica interna
B114: No Internal Optical Drive for 8 HDD Chassis | C114: 1 | E114: [429-AAQN]
B116: Accessori Server
B117: PowerEdge SFP+, 10GbE SR/SX, Optical Tranceiver, LC Connector, for Intel and Broadcom,CusKit | C117: =(VLOOKUP(B105,PCI_A2,8,FALSE))+((VLOOKUP(B102,PCI_A1,8,FALSE))) -> 0 | E117: [407-BBQE]
B119: Sistema documentazione
B120: Electronic System Documentation and OpenManage DVD Kit | C120: 1 | E120: [343-BBDK]
B122: SHIPPING
B123: R630 Shipping - 8 Drive Chassis, EMEA1 (English/French/German/Spanish/Russian/Hebrew) | C123: 1 | E123: [340-AMIN]
B125: Order Information
B126: PowerEdge Order - EMEA | C126: 1 | E126: [800-11671]
B128: Base warranty
B129: 3Yr Basic Warranty - Next Business Day - Minimum Warranty | C129: 1 | E129: [709-12767][709-12768]
B131: Servizi di assitenza
B132: Dell Channel Order - Service Info only | C132: 1 | E132: [710-31085]
B134: Aggiornamenti della garanzia
B135: None | C135: =VLOOKUP($B$135, SO_A1, 2, FALSE) ->  | D135: =VLOOKUP($B$135, SO_A1, 3, FALSE) ->  | E135: =VLOOKUP($B$135, SO_A1, 5, FALSE) ->  | F135: =VLOOKUP($B$135, SO_A1, 6, FALSE) -> 
B137: Protezione dei dati - Keep Your Hard Drive
B138: None | C138: =VLOOKUP($B$138, SO_A2, 2, FALSE) ->  | D138: =VLOOKUP($B$138, SO_A2, 3, FALSE) ->  | E138: =VLOOKUP($B$138, SO_A2,5, FALSE) ->  | F138: =VLOOKUP($B$138, SO_A2, 6, FALSE) -> 
B140: Servizi di Installazione
B141: No Installation Service Selected | C141: 1 | E141: [683-11870]
B143: Channel only - Support Extension
B144: Channel 39M Basic Warranty - Next Business Day | C144: 1 | E144: [723-28776]
B146: Warranty Upgrades - Non-Std/Local POS
B147: CSTM CONSIP - 39M Onsite Labor Support for CRU for Servers with Basic Warranty | C147: 1 | E147: [681-24467]

Sheet Server10 Lotto1 R730xd 2
A5: Server10 Lotto1 R730xd | H5: List Price *
H6: =F17*C16 -> 0
A11: Components: Server DELL PowerEdge R730xd (1CPU Intel® Xeon® E5-2620 v4, 32GB RDIMM, 2xHDD 300GB 10K RPM SAS 12Gbps 2.5in)
A15: PowerEdge R730xd | B15: Category: Server | F15: =1728 -> 1728
B16: Quantity: | F16: =SUM(F20:F157) -> 0
F17: =SUM(F15:F16) -> 1728
B19: Base
B20: PowerEdge R730xd for Intel v4 CPUs | C20: 1 | E20: [210-ADBC][329-BCZK]
B22: Configurazione dello chassis
B23: Chassis with up to 24, 2.5" Hard Drives | C23: 1 | E23: [350-BBFD]
B25: Processore
B26: Intel Xeon E5-2620 v4 2.1GHz 20M Cache 8.0GT/s QPI Turbo HT 8C/16T (85W) Max Mem 2133MHz | C26: 1 | E26: [338-BJCZ]
B28: Processore aggiuntivo
B29: No Additional Processor | C29: =VLOOKUP($B$29, CPU_B, 2, FALSE) -> 0 | D29: =VLOOKUP($B$29, CPU_B, 3, FALSE) ->  | E29: =VLOOKUP($B$29, CPU_B, 5, FALSE) -> [374-BBBX] | F29: =VLOOKUP(B29, CPU_B, 12, FALSE) -> 
B31: Processor Thermal Configuration
B32: 1 CPU Standard | C32: 1 | E32: [370-ABWF][374-BBHM][750-AAEL]
B33: =VLOOKUP($B$29, CPU_B, 6, FALSE) ->  | C33: =VLOOKUP($B$29, CPU_B, 7, FALSE) ->  | E33: =VLOOKUP($B$29, CPU_B, 8, FALSE) -> 
B35: Tipo di configurazione memoria
B36: Performance Optimized | C36: 1 | E36: [370-AAIP]
B38: Memoria Totale in GB | D38: =IF(('Server10 Lotto1 R730xd'!$D$12=0),"",'Server10 Lotto1 R730xd'!#REF!) -> 
B39: 32
B41: Tipo e velocità della memoria DIMM
B42: 2400MT/s RDIMMs | C42: 1 | E42: [370-ACPH]
B44: Capacità di memoria
B45: 16GB RDIMM, 2400MT/s, Dual Rank, x8 Data Width | C45: =IF($B$29="No Additional Processor",VLOOKUP($B$39, MEM_B1, 9, FALSE),VLOOKUP($B$39, MEM_B2, 9, FALSE)) -> 2 | E45: =IF($B$29="No Additional Processor",VLOOKUP($B$39, MEM_B1, 10, FALSE),VLOOKUP($B$39, MEM_B2, 10, FALSE)) -> [370-ACNX]
B47: =IF($B$29="No Additional Processor",VLOOKUP($B$39, MEM_B1, 2, FALSE),VLOOKUP($B$39, MEM_B2, 2, FALSE)) ->  | C47: =IF($B$29="No Additional Processor",VLOOKUP($B$39, MEM_B1, 3, FALSE),VLOOKUP($B$39, MEM_B2, 3, FALSE)) ->  | D47: =IF($B$29="No Additional Processor",VLOOKUP($B$39, MEM_B1, 4, FALSE),VLOOKUP($B$39, MEM_B2, 4, FALSE)) ->  | E47: =IF($B$29="No Additional Processor",VLOOKUP($B$39, MEM_B1, 6, FALSE),VLOOKUP($B$39, MEM_B2, 6, FALSE)) ->  | F47: =IF($B$29="No Additional Processor",VLOOKUP($B$39, MEM_B1, 7, FALSE),VLOOKUP($B$39, MEM_B2, 7, FALSE)) -> 
B49: =IF($B$29="No Additional Processor",VLOOKUP($B$39, MEM_B1, 11, FALSE),VLOOKUP($B$39, MEM_B2, 11, FALSE)) ->  | C49: =IF($B$29="No Additional Processor",VLOOKUP($B$39, MEM_B1, 12, FALSE),VLOOKUP($B$39, MEM_B2, 12, FALSE)) ->  | D49: =IF($B$29="No Additional Processor",VLOOKUP($B$39, MEM_B1, 13, FALSE),VLOOKUP($B$39, MEM_B2, 13, FALSE)) ->  | E49: =IF($B$29="No Additional Processor",VLOOKUP($B$39, MEM_B1, 15, FALSE),VLOOKUP($B$39, MEM_B2, 15, FALSE)) ->  | F49: =IF($B$29="No Additional Processor",VLOOKUP($B$39, MEM_B1, 16, FALSE),VLOOKUP($B$39, MEM_B2, 16, FALSE)) -> 
B51: Sistema operativo preinstallato
B52: No Operating System | C52: =VLOOKUP($B$52, OS_B, 2, FALSE) ->  | D52: =VLOOKUP($B$52, OS_B, 3, FALSE) ->  | E52: =VLOOKUP($B$52, OS_B, 5, FALSE) -> [611-BBBF] | F52: =VLOOKUP($B$52, OS_B, 6, FALSE) -> 
B54: OS Media Kits
B55: No Media Required | C55: 1 | E55: [605-BBFN]
B57: Client Access Licenses
B58: =VLOOKUP($B$52, OS_B, 7, FALSE) -> None | D58: =VLOOKUP($B$52, OS_B, 9, FALSE) ->  | E58: =VLOOKUP($B$52, OS_B, 11, FALSE) ->  | F58: =VLOOKUP($B$52, OS_B, 12, FALSE)*C58 -> 0
B60: =VLOOKUP($B$52, OS_B, 13, FALSE) -> None | D60: =VLOOKUP($B$52, OS_B, 15, FALSE) ->  | E60: =VLOOKUP($B$52, OS_B, 17, FALSE) ->  | F60: =VLOOKUP($B$52, OS_B, 18, FALSE)*C60 -> 0
B62: Controller RAID
B63: PERC H330 RAID Controller | C63: 1 | E63: [405-AAEF]
B65: Dischi rigidi
B66: 300GB 10K RPM SAS 12Gbps 2.5in Hot-plug Hard Drive | C66: 2 | E66: [400-AJPK]
B68: 300GB 10K RPM SAS 12Gbps 2.5in Hot-plug Hard Drive,CusKit | D68: =VLOOKUP($B$68, HDD_A,3, FALSE) -> 10L1-HDD300GB | E68: =VLOOKUP($B$68, HDD_A,5, FALSE) -> [400-AJOQ] | F68: =VLOOKUP($B$68, HDD_A,6, FALSE)*C68 -> 0
B70: 1TB 7.2K RPM NLSAS 6Gbps 2.5in Hot-plug Hard Drive,13G,CusKit | D70: =VLOOKUP($B$70, HDD_A,3, FALSE) -> 10L1-HDD1TB | E70: =VLOOKUP($B$70, HDD_A,5, FALSE) -> [400-AEFF] | F70: =VLOOKUP($B$70, HDD_A,6, FALSE)*C70 -> 0
B72: Configurazione RAID HDD 300GB
B73: C3 - RAID 1 for H330 (2 HDDs) | C73: 1 | E73: =VLOOKUP($B$73, RAID_BB1, 2, FALSE) -> [780-BBJK]
B74: Hot Spare for 300GB HDD | C74: No
B76: Configurazione RAID HDD 1TB
C77: 1 | E77: =VLOOKUP($B$77, RAID_BB2, 2, FALSE) -> 
B78: Hot Spare for 1TB HDD | C78: No
B80: Impostazioni del BIOS per la gestione dell'alimentazione
B81: Performance BIOS Setting | C81: 1 | E81: [384-BBBL]
B83: Alimentatore
B84: Dual, Hot-plug, Redundant Power Supply (1+1), 750W, Titanium, 200-240VAC | C84: 1 | E84: [450-ADWT]
B86: Cavi di alimentazione
B87: Rack Power Cord 2M (C13/C14 12A) | C87: 2 | E87: [450-AADY]
B89: PCIe Riser
B90: Risers with up to 4, x8 PCIe Slots + 2, x16 PCIe Slots | C90: 1 | E90: [330-BBCO][330-BBCR]
B92: TPM Module
B93: PowerEdge Server FIPS TPM 2.0 | C93: 1 | E93: [461-AADM]
B95: Embedded Systems Management
B96: iDRAC8 Enterprise, integrated Dell Remote Access Controller, Enterprise | C96: 1 | E96: [385-BBHO]
B98: Adattatore di rete
B99: Broadcom 5720 QP 1Gb Network Daughter Card | C99: 1 | E99: [540-BBBW]
B101: Additional Card for PCIe Slot 6 (Full height) (CPU 1)
B102: None | C102: =VLOOKUP($B$102, PCI_B1, 2, FALSE) ->  | D102: =VLOOKUP($B$102, PCI_B1, 3, FALSE) ->  | E102: =VLOOKUP($B$102, PCI_B1, 5, FALSE) ->  | F102: =VLOOKUP($B$102, PCI_B1, 6, FALSE) -> 
B104: Additional Card for PCIe Slot 5 (Full height) (CPU 1)
B105: None | C105: =VLOOKUP($B$105, PCI_B2, 2, FALSE) ->  | D105: =VLOOKUP($B$105, PCI_B2, 3, FALSE) ->  | E105: =VLOOKUP($B$105, PCI_B2, 5, FALSE) ->  | F105: =VLOOKUP($B$105, PCI_B2, 6, FALSE) -> 
B107: Additional Card for PCIe Slot 4 (Full height) (CPU 2)
B108: None | C108: =IF(B108="Aggiungere Secondo Processore","",(VLOOKUP(B108,PCI_B3, 2, FALSE))) ->  | D108: =IF(B108="Aggiungere Secondo Processore","",(VLOOKUP(B108, PCI_B3, 3, FALSE))) ->  | E108: =VLOOKUP($B$108, PCI_B3, 5, FALSE) ->  | F108: =VLOOKUP($B$108, PCI_B3, 6, FALSE) -> 
B110: Additional Card for PCIe Slot 3 (Low Profile) (CPU 2)
B111: None | C111: =IF(B111="Aggiungere Secondo Processore","",(VLOOKUP(B111,PCI_B4, 2, FALSE))) ->  | D111: =IF(B111="Aggiungere Secondo Processore","",(VLOOKUP(B111, PCI_B4, 3, FALSE))) ->  | E111: =VLOOKUP($B$111, PCI_B4, 5, FALSE) ->  | F111: =VLOOKUP($B$111, PCI_B4, 6, FALSE) -> 
B113: Additional Card for PCIe Slot 2 (Low Profile) (CPU 2)
B114: None | C114: =IF(B114="Aggiungere Secondo Processore","",(VLOOKUP(B114,PCI_B5, 2, FALSE))) ->  | D114: =IF(B114="Aggiungere Secondo Processore","",(VLOOKUP(B114, PCI_B5, 3, FALSE))) ->  | E114: =VLOOKUP($B$114, PCI_B5, 5, FALSE) ->  | F114: =VLOOKUP($B$114, PCI_B5, 6, FALSE) -> 
B116: Additional Card for PCIe Slot 1 (Low Profile) (CPU 2)
B117: None | C117: =IF(B117="Aggiungere Secondo Processore","",(VLOOKUP(B117,PCI_B6, 2, FALSE))) ->  | D117: =IF(B117="Aggiungere Secondo Processore","",(VLOOKUP(B117, PCI_B6, 3, FALSE))) ->  | E117: =VLOOKUP($B$117, PCI_B5, 5, FALSE) ->  | F117: =VLOOKUP($B$117, PCI_B5, 6, FALSE) -> 
B119: Pannello frontale
B120: Bezel | C120: 1 | E120: [350-BBEJ]
B122: Guide per rack
B123: ReadyRails™ Sliding Rails Without Cable Management Arm | C123: 1 | E123: [770-BBBQ]
B125: Server Accessories
B126: PowerEdge SFP+, 10GbE SR/SX, Optical Tranceiver, LC Connector, for Intel and Broadcom,CusKit | C126: =(VLOOKUP(B117,PCI_A2,8,FALSE))+((VLOOKUP(B102,PCI_A1,8,FALSE))) -> 0 | E126: [407-BBQE]
B128: System Documentation
B129: Electronic System Documentation and OpenManage DVD Kit | C129: 1 | E129: [631-AAJG]
B131: SHIPPING
B132: PowerEdge R730xd Shipping EMEA1 (English/French/German/Spanish/Russian/Hebrew) | C132: 1 | E132: [340-AMGS]
B134: Order Information
B135: PowerEdge Order - EMEA | C135: 1 | E135: [800-11671]
B137: Base warranty
B138: 3Yr Basic Warranty - Next Business Day - Minimum Warranty | C138: 1 | E138: [709-12780][709-12781]
B140: Servizi di assitenza
B141: Dell Channel Order - Service Info only | C141: 1 | E141: [710-31085]
B143: Aggiornamenti della garanzia
B144: None | C144: =VLOOKUP($B$144, SO_B1,2, FALSE) ->  | D144: =VLOOKUP($B$144, SO_B1, 3, FALSE) ->  | E144: =VLOOKUP($B$144, SO_B1, 5, FALSE) ->  | F144: =VLOOKUP($B$144, SO_B1, 6, FALSE) -> 
B146: Protezione dei dati - Keep Your Hard Drive
B147: None | C147: =VLOOKUP($B$147, SO_BB2, 2, FALSE) ->  | D147: =VLOOKUP($B$147, SO_BB2, 3, FALSE) ->  | E147: =VLOOKUP($B$147, SO_BB2,5, FALSE) ->  | F147: =VLOOKUP($B$147, SO_BB2, 6, FALSE) -> 
B149: Servizi di Installazione
B150: No Installation Service Selected | C150: 1 | E150: [683-11870]
B152: Channel only - Support Extension
B153: Channel 39M Basic Warranty - Next Business Day | C153: 1 | E153: [723-28780]
B155: Warranty Upgrades - Non-Std/Local POS
B156: CSTM CONSIP - 39M Onsite Labor Support for CRU for Servers with Basic Warranty | C156: 1 | E156: [681-24467]

Sheet Server10 Lotto1 R730xd 3
A5: Server10 Lotto1 R730xd | H5: List Price *
H6: =F17*C16 -> 0
A11: Components: Server DELL PowerEdge R730xd (1CPU Intel® Xeon® E5-2620 v4, 32GB RDIMM, 2xHDD 300GB 10K RPM SAS 12Gbps 2.5in)
A15: PowerEdge R730xd | B15: Category: Server | F15: =1728 -> 1728
B16: Quantity: | F16: =SUM(F20:F157) -> 0
F17: =SUM(F15:F16) -> 1728
B19: Base
B20: PowerEdge R730xd for Intel v4 CPUs | C20: 1 | E20: [210-ADBC][329-BCZK]
B22: Configurazione dello chassis
B23: Chassis with up to 24, 2.5" Hard Drives | C23: 1 | E23: [350-BBFD]
B25: Processore
B26: Intel Xeon E5-2620 v4 2.1GHz 20M Cache 8.0GT/s QPI Turbo HT 8C/16T (85W) Max Mem 2133MHz | C26: 1 | E26: [338-BJCZ]
B28: Processore aggiuntivo
B29: No Additional Processor | C29: =VLOOKUP($B$29, CPU_B, 2, FALSE) -> 0 | D29: =VLOOKUP($B$29, CPU_B, 3, FALSE) ->  | E29: =VLOOKUP($B$29, CPU_B, 5, FALSE) -> [374-BBBX] | F29: =VLOOKUP(B29, CPU_B, 12, FALSE) -> 
B31: Processor Thermal Configuration
B32: 1 CPU Standard | C32: 1 | E32: [370-ABWF][374-BBHM][750-AAEL]
B33: =VLOOKUP($B$29, CPU_B, 6, FALSE) ->  | C33: =VLOOKUP($B$29, CPU_B, 7, FALSE) ->  | E33: =VLOOKUP($B$29, CPU_B, 8, FALSE) -> 
B35: Tipo di configurazione memoria
B36: Performance Optimized | C36: 1 | E36: [370-AAIP]
B38: Memoria Totale in GB | D38: =IF(('Server10 Lotto1 R730xd'!$D$12=0),"",'Server10 Lotto1 R730xd'!#REF!) -> 
B39: 32
B41: Tipo e velocità della memoria DIMM
B42: 2400MT/s RDIMMs | C42: 1 | E42: [370-ACPH]
B44: Capacità di memoria
B45: 16GB RDIMM, 2400MT/s, Dual Rank, x8 Data Width | C45: =IF($B$29="No Additional Processor",VLOOKUP($B$39, MEM_B1, 9, FALSE),VLOOKUP($B$39, MEM_B2, 9, FALSE)) -> 2 | E45: =IF($B$29="No Additional Processor",VLOOKUP($B$39, MEM_B1, 10, FALSE),VLOOKUP($B$39, MEM_B2, 10, FALSE)) -> [370-ACNX]
B47: =IF($B$29="No Additional Processor",VLOOKUP($B$39, MEM_B1, 2, FALSE),VLOOKUP($B$39, MEM_B2, 2, FALSE)) ->  | C47: =IF($B$29="No Additional Processor",VLOOKUP($B$39, MEM_B1, 3, FALSE),VLOOKUP($B$39, MEM_B2, 3, FALSE)) ->  | D47: =IF($B$29="No Additional Processor",VLOOKUP($B$39, MEM_B1, 4, FALSE),VLOOKUP($B$39, MEM_B2, 4, FALSE)) ->  | E47: =IF($B$29="No Additional Processor",VLOOKUP($B$39, MEM_B1, 6, FALSE),VLOOKUP($B$39, MEM_B2, 6, FALSE)) ->  | F47: =IF($B$29="No Additional Processor",VLOOKUP($B$39, MEM_B1, 7, FALSE),VLOOKUP($B$39, MEM_B2, 7, FALSE)) -> 
B49: =IF($B$29="No Additional Processor",VLOOKUP($B$39, MEM_B1, 11, FALSE),VLOOKUP($B$39, MEM_B2, 11, FALSE)) ->  | C49: =IF($B$29="No Additional Processor",VLOOKUP($B$39, MEM_B1, 12, FALSE),VLOOKUP($B$39, MEM_B2, 12, FALSE)) ->  | D49: =IF($B$29="No Additional Processor",VLOOKUP($B$39, MEM_B1, 13, FALSE),VLOOKUP($B$39, MEM_B2, 13, FALSE)) ->  | E49: =IF($B$29="No Additional Processor",VLOOKUP($B$39, MEM_B1, 15, FALSE),VLOOKUP($B$39, MEM_B2, 15, FALSE)) ->  | F49: =IF($B$29="No Additional Processor",VLOOKUP($B$39, MEM_B1, 16, FALSE),VLOOKUP($B$39, MEM_B2, 16, FALSE)) -> 
B51: Sistema operativo preinstallato
B52: No Operating System | C52: =VLOOKUP($B$52, OS_B, 2, FALSE) ->  | D52: =VLOOKUP($B$52, OS_B, 3, FALSE) ->  | E52: =VLOOKUP($B$52, OS_B, 5, FALSE) -> [611-BBBF] | F52: =VLOOKUP($B$52, OS_B, 6, FALSE) -> 
B54: OS Media Kits
B55: No Media Required | C55: 1 | E55: [605-BBFN]
B57: Client Access Licenses
B58: =VLOOKUP($B$52, OS_B, 7, FALSE) -> None | D58: =VLOOKUP($B$52, OS_B, 9, FALSE) ->  | E58: =VLOOKUP($B$52, OS_B, 11, FALSE) ->  | F58: =VLOOKUP($B$52, OS_B, 12, FALSE)*C58 -> 0
B60: =VLOOKUP($B$52, OS_B, 13, FALSE) -> None | D60: =VLOOKUP($B$52, OS_B, 15, FALSE) ->  | E60: =VLOOKUP($B$52, OS_B, 17, FALSE) ->  | F60: =VLOOKUP($B$52, OS_B, 18, FALSE)*C60 -> 0
B62: Controller RAID
B63: PERC H330 RAID Controller | C63: 1 | E63: [405-AAEF]
B65: Dischi rigidi
B66: 300GB 10K RPM SAS 12Gbps 2.5in Hot-plug Hard Drive | C66: 2 | E66: [400-AJPK]
B68: 300GB 10K RPM SAS 12Gbps 2.5in Hot-plug Hard Drive,CusKit | C68: 0 | D68: =VLOOKUP($B$68, HDD_A,3, FALSE) -> 10L1-HDD300GB | E68: =VLOOKUP($B$68, HDD_A,5, FALSE) -> [400-AJOQ] | F68: =VLOOKUP($B$68, HDD_A,6, FALSE)*C68 -> 0
B70: 1TB 7.2K RPM NLSAS 6Gbps 2.5in Hot-plug Hard Drive,13G,CusKit | C70: 0 | D70: =VLOOKUP($B$70, HDD_A,3, FALSE) -> 10L1-HDD1TB | E70: =VLOOKUP($B$70, HDD_A,5, FALSE) -> [400-AEFF] | F70: =VLOOKUP($B$70, HDD_A,6, FALSE)*C70 -> 0
B72: Configurazione RAID HDD 300GB
B73: C3 - RAID 1 for H330 (2 HDDs) | C73: 1 | E73: =VLOOKUP($B$73, RAID_BBB1, 2, FALSE) -> [780-BBJK]
B74: Hot Spare for 300GB HDD | C74: No
B76: Configurazione RAID HDD 1TB
C77: 1 | E77: =VLOOKUP($B$77, RAID_BBB2, 2, FALSE) -> 
B78: Hot Spare for 1TB HDD | C78: No
B80: Impostazioni del BIOS per la gestione dell'alimentazione
B81: Performance BIOS Setting | C81: 1 | E81: [384-BBBL]
B83: Alimentatore
B84: Dual, Hot-plug, Redundant Power Supply (1+1), 750W, Titanium, 200-240VAC | C84: 1 | E84: [450-ADWT]
B86: Cavi di alimentazione
B87: Rack Power Cord 2M (C13/C14 12A) | C87: 2 | E87: [450-AADY]
B89: PCIe Riser
B90: Risers with up to 4, x8 PCIe Slots + 2, x16 PCIe Slots | C90: 1 | E90: [330-BBCO][330-BBCR]
B92: TPM Module
B93: PowerEdge Server FIPS TPM 2.0 | C93: 1 | E93: [461-AADM]
B95: Embedded Systems Management
B96: iDRAC8 Enterprise, integrated Dell Remote Access Controller, Enterprise | C96: 1 | E96: [385-BBHO]
B98: Adattatore di rete
B99: Broadcom 5720 QP 1Gb Network Daughter Card | C99: 1 | E99: [540-BBBW]
B101: Additional Card for PCIe Slot 6 (Full height) (CPU 1)
B102: None | C102: =VLOOKUP($B$102, PCI_B1, 2, FALSE) ->  | D102: =VLOOKUP($B$102, PCI_B1, 3, FALSE) ->  | E102: =VLOOKUP($B$102, PCI_B1, 5, FALSE) ->  | F102: =VLOOKUP($B$102, PCI_B1, 6, FALSE) -> 
B104: Additional Card for PCIe Slot 5 (Full height) (CPU 1)
B105: None | C105: =VLOOKUP($B$105, PCI_B2, 2, FALSE) ->  | D105: =VLOOKUP($B$105, PCI_B2, 3, FALSE) ->  | E105: =VLOOKUP($B$105, PCI_B2, 5, FALSE) ->  | F105: =VLOOKUP($B$105, PCI_B2, 6, FALSE) -> 
B107: Additional Card for PCIe Slot 4 (Full height) (CPU 2)
B108: None | C108: =IF(B108="Aggiungere Secondo Processore","",(VLOOKUP(B108,PCI_B3, 2, FALSE))) ->  | D108: =IF(B108="Aggiungere Secondo Processore","",(VLOOKUP(B108, PCI_B3, 3, FALSE))) ->  | E108: =VLOOKUP($B$108, PCI_B3, 5, FALSE) ->  | F108: =VLOOKUP($B$108, PCI_B3, 6, FALSE) -> 
B110: Additional Card for PCIe Slot 3 (Low Profile) (CPU 2)
B111: None | C111: =IF(B111="Aggiungere Secondo Processore","",(VLOOKUP(B111,PCI_B4, 2, FALSE))) ->  | D111: =IF(B111="Aggiungere Secondo Processore","",(VLOOKUP(B111, PCI_B4, 3, FALSE))) ->  | E111: =VLOOKUP($B$111, PCI_B4, 5, FALSE) ->  | F111: =VLOOKUP($B$111, PCI_B4, 6, FALSE) -> 
B113: Additional Card for PCIe Slot 2 (Low Profile) (CPU 2)
B114: None | C114: =IF(B114="Aggiungere Secondo Processore","",(VLOOKUP(B114,PCI_B5, 2, FALSE))) ->  | D114: =IF(B114="Aggiungere Secondo Processore","",(VLOOKUP(B114, PCI_B5, 3, FALSE))) ->  | E114: =VLOOKUP($B$114, PCI_B5, 5, FALSE) ->  | F114: =VLOOKUP($B$114, PCI_B5, 6, FALSE) -> 
B116: Additional Card for PCIe Slot 1 (Low Profile) (CPU 2)
B117: None | C117: =IF(B117="Aggiungere Secondo Processore","",(VLOOKUP(B117,PCI_B6, 2, FALSE))) ->  | D117: =IF(B117="Aggiungere Secondo Processore","",(VLOOKUP(B117, PCI_B6, 3, FALSE))) ->  | E117: =VLOOKUP($B$117, PCI_B5, 5, FALSE) ->  | F117: =VLOOKUP($B$117, PCI_B5, 6, FALSE) -> 
B119: Pannello frontale
B120: Bezel | C120: 1 | E120: [350-BBEJ]
B122: Guide per rack
B123: ReadyRails™ Sliding Rails Without Cable Management Arm | C123: 1 | E123: [770-BBBQ]
B125: Server Accessories
B126: PowerEdge SFP+, 10GbE SR/SX, Optical Tranceiver, LC Connector, for Intel and Broadcom,CusKit | C126: =(VLOOKUP(B117,PCI_A2,8,FALSE))+((VLOOKUP(B102,PCI_A1,8,FALSE))) -> 0 | E126: [407-BBQE]
B128: System Documentation
B129: Electronic System Documentation and OpenManage DVD Kit | C129: 1 | E129: [631-AAJG]
B131: SHIPPING
B132: PowerEdge R730xd Shipping EMEA1 (English/French/German/Spanish/Russian/Hebrew) | C132: 1 | E132: [340-AMGS]
B134: Order Information
B135: PowerEdge Order - EMEA | C135: 1 | E135: [800-11671]
B137: Base warranty
B138: 3Yr Basic Warranty - Next Business Day - Minimum Warranty | C138: 1 | E138: [709-12780][709-12781]
B140: Servizi di assitenza
B141: Dell Channel Order - Service Info only | C141: 1 | E141: [710-31085]
B143: Aggiornamenti della garanzia
B144: None | C144: =VLOOKUP($B$144, SO_B1,2, FALSE) ->  | D144: =VLOOKUP($B$144, SO_B1, 3, FALSE) ->  | E144: =VLOOKUP($B$144, SO_B1, 5, FALSE) ->  | F144: =VLOOKUP($B$144, SO_B1, 6, FALSE) -> 
B146: Protezione dei dati - Keep Your Hard Drive
B147: None | C147: =VLOOKUP($B$147, SO_BBB2, 2, FALSE) ->  | D147: =VLOOKUP($B$147, SO_BBB2, 3, FALSE) ->  | E147: =VLOOKUP($B$147, SO_BBB2,5, FALSE) ->  | F147: =VLOOKUP($B$147, SO_BBB2, 6, FALSE) -> 
B149: Servizi di Installazione
B150: No Installation Service Selected | C150: 1 | E150: [683-11870]
B152: Channel only - Support Extension
B153: Channel 39M Basic Warranty - Next Business Day | C153: 1 | E153: [723-28780]
B155: Warranty Upgrades - Non-Std/Local POS
B156: CSTM CONSIP - 39M Onsite Labor Support for CRU for Servers with Basic Warranty | C156: 1 | E156: [681-24467]

Sheet Codici (hidden)
A1: Codici
A2: 10L1-R630-U | B2: Server prestazionale | C2: 1806 | D2: 1 | E2: Server DELL PowerEdge R630 V4 (1CPU Intel® Xeon® E5-2640 v4, 32GB RDIMM, 2xHDD 300GB 10K RPM SAS 12Gbps 2.5in)
A3: ="" ->  | B3: ="" ->  | C3: ="" ->  | D3: ="" ->  | E3: ="" -> 
A4: 10L1-WIN | B4: OpzWinServ1 | C4: 505 | D4: 1 | E4: WIN SERVER 2012 R2 Standard (Kit Windows Server 2012 R2, Standard Edition, 2 Socket, 2VM, ROK, COA + Media)
A5: 10L1-CALDEV | B5: OpzDeviceCal | C5: 25 | D5: 1 | E5: MS Windows Srv 2012 CAL 1 DEV (1-pack of Windows Server 2012 Device CALs (Standard or Datacenter))
D6: 1 | E6: CS_Consip9_Windows Server CAL 2012 Italian 1pk DSP OEI 1 Clt Device CAL
A7: 10L1-CALUSER | B7: OpzUserCal | C7: 25 | D7: 1 | E7: MS Windows Srv 2012 CAL 1 USR (1-pack of Windows Server 2012 User CALs (Standard or Datacenter))
D8: 1 | E8: CS_Consip9_Windows Server CAL 2012 Italian 1pk DSP OEI 1 Clt User CAL
A9: 10L1-LINUX | B9: OpzOpenSource | C9: 45 | E9: DVD Linux Centos 7.x
A10: 10L1-CPU-P-U | B10: Opz1P | C10: 800 | D10: 1 | E10: Intel Xeon Processor E5-2640 V4 (Intel Xeon E5-2640 v4 2.4GHz 25M Cache 8.0GT/s QPI Turbo HT 10C/20T)
D11: 1 | E11: R630 PCIe Riser for up to 2, x16 PCIe Slots for x8, 2 PCIe Chassis with 2 Processors,CusKit
D12: 1 | E12: Kit - 120W Heatsink for PowerEdge R630
A13: 10L1-16GB-U | B13: OpzRam16 | C13: 160 | D13: 1 | E13: Kit Upgrade Ram 16GB V4 (16GB RDIMM, 2400MT/s, Dual Rank, x8 Data Width,CusKit)
A14: 10L1-32GB-U | B14: OpzRam32 | C14: 320 | D14: 1 | E14: Kit Upgrade Ram 32GB V4 (32GB RDIMM, 2400MT/s, Dual Rank, x4 Data Width,CusKit)
A15: 10L1-32GB-L | B15: OpzRam32 | C15: 320 | D15: 1 | E15: Kit Upgrade Ram 32GB
A16: 10L1-64GB-U | B16: OpzRam64 | C16: 644 | D16: 1 | E16: Kit Upgrade Ram 64GB V4
A17: 10L1-LAN1GB-LP | B17: OpzGigabit | C17: 35 | D17: 1 | E17: Scheda Lan Gigabit Low (Broadcom 5720 DP 1Gb Network Interface Card, Low Profile,CusKit)
A18: 10L1-LAN1GB | B18: OpzGigabit | C18: 35 | D18: 1 | E18: Scheda Lan Gigabit Full (Broadcom 5720 DP 1Gb Network Interface Card,Full Height,CusKit)
A19: 10L1-LAN10GB-LP | B19: OpzGigabit 10GB | C19: 417 | D19: 1 | E19: QLogic 57810 Dual Port 10Gb Low (QLogic 57810 Dual Port 10Gb Direct Attach/SFP+ Low Profile Network Adapter,CusKit)
D20: 2 | E20: PowerEdge SFP+, 10GbE SR/SX, Optical Tranceiver, LC Connector, for Intel and Broadcom,CusKit
A21: 10L1-LAN10GB | B21: OpzGigabit 10GB | C21: 417 | D21: 1 | E21: QLogic 57810 Dual Port 10Gb Full (QLogic 57810 Dual Port 10Gb Direct Attach/SFP+ Network Adapter,Full Height,CusKit)
D22: 2 | E22: PowerEdge SFP+, 10GbE SR/SX, Optical Tranceiver, LC Connector, for Intel and Broadcom,CusKit
A23: 10L1-CNA10-LP | B23: OpzGigabit 10GB CNA | C23: 774 | D23: 1 | E23: QLogic 57810 Dual Port 10Gb CNA Low (QLogic 57810 Dual Port 10Gb Direct Attach/SFP+ (CNA), Low Profile,CusKit)
D24: 2 | E24: PowerEdge SFP+, 10GbE SR/SX, Optical Tranceiver, LC Connector, for Intel and Broadcom,CusKit
A25: 10L1-CNA10 | B25: OpzGigabit 10GB CNA | C25: 774 | D25: 1 | E25: QLogic 57810 DualPort 10GbCNA Full (QLogic 57810 Dual Port 10Gb Direct Attach/SFP+ (CNA),Full Height,CusKit)
D26: 2 | E26: PowerEdge SFP+, 10GbE SR/SX, Optical Tranceiver, LC Connector, for Intel and Broadcom,CusKit
A27: 10L1-HDD300GB | B27: OpzStorage300 | C27: 140 | D27: 1 | E27: HDD 300GB SAS (300GB 10K RPM SAS 12Gbps 2.5in Hot-plug Hard Drive,CusKit)
A28: 10L1-HDD1TB | B28: OpzStorage1Tb | C28: 296 | D28: 1 | E28: HDD 1TB NLSAS (1TB 7.2K RPM NLSAS 6Gbps 2.5in Hot-plug Hard Drive,13G,CusKit)
A29: 10L1-FC-LP-U | B29: OpzFibreChannel | C29: 940 | D29: 1 | E29: QLogic 2562 DP Low (Qlogic 2562 Dual Channel 8Gb Optical Fibre Channel HBA PCIe, Low Profile,CusKit)
A30: 10L1-FC-U | B30: OpzFibreChannel | C30: 940 | D30: 1 | E30: QLogic 2562 DP Full (QLogic 2562, Dual Port 8Gb Optical Fibre Channel HBA,Full Height,CusKit)
A33: 10L1-UPS | B33: OpzUPS 3000VA | C33: 422 | D33: 1 | E33: UPS MSR 3000 VA
A35: 10L1-GUI | B35: OpzGUIRack | C35: 461 | D35: 1 | E35: Console KVM per rack
A36: 10L1-KVMIP | B36: OpzSWGUIRack | C36: 550 | D36: 1 | E36: KVM Switch IP per GUI con cavi
A40: 10L1-RACK | B40: OpzRack | C40: 497 | E40: Armadio Rack 42U
A42: 10L1-SO-WIN | B42: ServOpzSysManWindows | C42: 193 | D42: 1 | E42: System-Network Mng. svc Windows
A43: 10L1-SO-LINUX | B43: ServOpzSysManOS | C43: 193 | D43: 1 | E43: System-Network Mng. svc Linux
A44: 10L1-SO-PREV | B44: Manutenzione Preventiva | C44: 193 | D44: 1 | E44: Servizi di manutenzione Preventiva
A45: 10L1-SO-HDD | B45: Hard-Disk retention | C45: 150 | D45: 1 | E45: Servizio HDD Retention
D46: 1 | E46: Servizio HDD Retention 36 mesi
D47: 1 | E47: Servizio HDD Retention 48 mesi
D48: 1 | E48: Servizio HDD Retention 60 mesi
A49: 10L1-SO-12M-P | B49: OpzEstensione12 | C49: 175 | D49: 1 | E49: Estensione garanzia 12 mesi Agg.
A50: 10L1-SO-24M-P | B50: OpzEstensione24 | C50: 350 | D50: 1 | E50: Estensione garanzia 24 mesi Agg.
A52: 10L1-R730xd-U | B52: Server scalabile storage | C52: 1728 | D52: 1 | E52: DELL PowerEdge R730xd V4 (1CPU Intel® Xeon® E5-2620 v4, 32GB RDIMM, 2xHDD 300GB 10K RPM SAS 12Gbps 2.5in)
A53: ="" ->  | B53: ="" ->  | C53: ="" ->  | D53: ="" ->  | E53: ="" -> 
A54: 10L1-WIN | B54: OpzWinServ1 | C54: 505 | D54: 1 | E54: WIN SERVER 2012 R2 Standard (Kit Windows Server 2012 R2, Standard Edition, 2 Socket, 2VM, ROK, COA + Media)
A55: 10L1-CALDEV | B55: OpzDeviceCal | C55: 25 | D55: 1 | E55: MS Windows Srv 2012 CAL 1 DEV
D56: 1 | E56: CS_Consip9_Windows Server CAL 2012 Italian 1pk DSP OEI 1 Clt Device CAL
A57: 10L1-CALUSER | B57: OpzUserCal | C57: 25 | D57: 1 | E57: MS Windows Srv 2012 CAL 1 USR
D58: 1 | E58: CS_Consip9_Windows Server CAL 2012 Italian 1pk DSP OEI 1 Clt User CAL
A59: 10L1-LINUX | B59: OpzOpenSource | C59: 45 | D59: 1 | E59: DVD Linux Centos 7.x
A60: 10L1-CPU-S-U | B60: Opz1P | C60: 500 | D60: 1 | E60: Intel Xeon Processor E5-2620 V4 (Intel Xeon E5-2620 v4 2.1GHz,20M Cache,8.0GT/s QPI,Turbo,HT,8C/16T)
D61: 1 | E61: Kit - 2U CPU Heatsink for PowerEdge R730 without GPU, or PowerEdge R730x
A63: 10L1-16GB-U | B63: OpzRam16 | C63: 160 | D63: 1 | E63: Kit Upgrade Ram 16GB V4 (16GB RDIMM, 2400MT/s, Dual Rank, x8 Data Width,CusKit)
A64: 10L1-32GB-U | B64: OpzRam32 | C64: 320 | D64: 1 | E64: Kit Upgrade Ram 32GB V4 (32GB RDIMM, 2400MT/s, Dual Rank, x4 Data Width,CusKit)
A65: 10L1-32GB-L | B65: OpzRam32 | C65: 320 | D65: 1 | E65: Kit Upgrade Ram 32GB
A66: 10L1-64GB-U | B66: OpzRam64 | C66: 644 | D66: 1 | E66: Kit Upgrade Ram 64GB V4
A67: 10L1-LAN1GB-LP | B67: OpzGigabit | C67: 35 | D67: 1 | E67: Scheda Lan Gigabit Low (Broadcom 5720 DP 1Gb Network Interface Card, Low Profile,CusKit)
A68: 10L1-LAN1GB | B68: OpzGigabit | C68: 35 | D68: 1 | E68: Scheda Lan Gigabit Full (Broadcom 5720 DP 1Gb Network Interface Card,Full Height,CusKit)
A69: 10L1-LAN10GB-LP | B69: OpzGigabit 10GB | C69: 417 | D69: 1 | E69: QLogic 57810 Dual Port 10Gb Low (QLogic 57810 Dual Port 10Gb Direct Attach/SFP+ Low Profile Network Adapter,CusKit)
D70: 2 | E70: PowerEdge SFP+, 10GbE SR/SX, Optical Tranceiver, LC Connector, for Intel and Broadcom,CusKit
A71: 10L1-LAN10GB | B71: OpzGigabit 10GB | C71: 417 | D71: 1 | E71: QLogic 57810 Dual Port 10Gb Full (QLogic 57810 Dual Port 10Gb Direct Attach/SFP+ Network Adapter,Full Height,CusKit)
D72: 2 | E72: PowerEdge SFP+, 10GbE SR/SX, Optical Tranceiver, LC Connector, for Intel and Broadcom,CusKit
A73: 10L1-CNA10-LP | B73: OpzGigabit 10GB CNA | C73: 774 | D73: 1 | E73: QLogic 57810 Dual Port 10Gb CNA Low (QLogic 57810 Dual Port 10Gb Direct Attach/SFP+ (CNA), Low Profile,CusKit)
D74: 2 | E74: PowerEdge SFP+, 10GbE SR/SX, Optical Tranceiver, LC Connector, for Intel and Broadcom,CusKit
A75: 10L1-CNA10 | B75: OpzGigabit 10GB CNA | C75: 774 | D75: 1 | E75: QLogic 57810 DualPort 10GbCNA Full (QLogic 57810 Dual Port 10Gb Direct Attach/SFP+ (CNA),Full Height,CusKit)
D76: 2 | E76: PowerEdge SFP+, 10GbE SR/SX, Optical Tranceiver, LC Connector, for Intel and Broadcom,CusKit
A77: 10L1-HDD300GB | B77: OpzStorage300 | C77: 140 | D77: 1 | E77: HDD 300GB SAS (300GB 10K RPM SAS 12Gbps 2.5in Hot-plug Hard Drive,CusKit)
A78: 10L1-HDD1TB | B78: OpzStorage1Tb | C78: 296 | D78: 1 | E78: HDD 1TB NLSAS (1TB 7.2K RPM NLSAS 6Gbps 2.5in Hot-plug Hard Drive,13G,CusKit)
A79: 10L1-FC-LP-U | B79: OpzFibreChannel | C79: 940 | D79: 1 | E79: QLogic 2562 DP Low (Qlogic 2562 Dual Channel 8Gb Optical Fibre Channel HBA PCIe, Low Profile,CusKit)
A80: 10L1-FC-U | B80: OpzFibreChannel | C80: 940 | D80: 1 | E80: QLogic 2562 DP Full (QLogic 2562, Dual Port 8Gb Optical Fibre Channel HBA,Full Height,CusKit)
A83: 10L1-UPS | B83: OpzUPS 3000VA | C83: 422 | D83: 1 | E83: UPS MSR 3000 VA
A85: 10L1-GUI | B85: OpzGUIRack | C85: 461 | D85: 1 | E85: Console KVM per rack
A86: 10L1-KVMIP | B86: OpzSWGUIRack | C86: 550 | D86: 1 | E86: KVM Switch IP per GUI con cavi
A90: 10L1-RACK | B90: OpzRack | C90: 497 | E90: Armadio Rack 42U
A92: 10L1-SO-WIN | B92: ServOpzSysManWindows | C92: 193 | D92: 1 | E92: System-Network Mng. svc Windows
A93: 10L1-SO-LINUX | B93: ServOpzSysManOS | C93: 193 | D93: 1 | E93: System-Network Mng. svc Linux
A94: 10L1-SO-PREV | B94: Manutenzione Preventiva | C94: 193 | D94: 1 | E94: Servizi di manutenzione Preventiva
A95: 10L1-SO-HDD | B95: Hard-Disk retention | C95: 150 | D95: 1 | E95: Servizio HDD Retention
D96: 1 | E96: Servizio HDD Retention 36 mesi
D97: 1 | E97: Servizio HDD Retention 48 mesi
D98: 1 | E98: Servizio HDD Retention 60 mesi
A99: 10L1-SO-12M-S | B99: OpzEstensione12 | C99: 175 | D99: 1 | E99: Estensione garanzia 12 mesi Agg.
A100: 10L1-SO-24M-S | B100: OpzEstensione24 | C100: 350 | D100: 1 | E100: Estensione garanzia 24 mesi Agg.
A102: 10L1-T630-U | B102: Server Tower | C102: 2340 | D102: 1 | E102: DELL PowerEdge T630 V4 (1CPU Intel® Xeon® E5-2640 v4, 32GB RDIMM, 2xHDD 300GB 10K RPM SAS 12Gbps 2.5in)
A103: ="" ->  | B103: ="" ->  | C103: ="" ->  | D103: ="" ->  | E103: ="" -> 
A104: 10L1-WIN | B104: OpzWinServ1 | C104: 505 | D104: 1 | E104: WIN SERVER 2012 R2 Standard (Kit Windows Server 2012 R2, Standard Edition, 2 Socket, 2VM, ROK, COA + Media) | F104: 1-pack of Windows Server 2012 Device CALs (Standard or Datacenter)
A105: 10L1-CALUSER | B105: OpzUserCal | C105: 25 | D105: 1 | E105: MS Windows Srv 2012 CAL 1 DEV (1-pack of Windows Server 2012 Device CALs (Standard or Datacenter))
D106: 1 | E106: CS_Consip9_Windows Server CAL 2012 Italian 1pk DSP OEI 1 Clt Device CAL
A107: 10L1-CALDEV | B107: OpzDeviceCal | C107: 25 | D107: 1 | E107: MS Windows Srv 2012 CAL 1 USR (1-pack of Windows Server 2012 User CALs (Standard or Datacenter))
D108: 1 | E108: CS_Consip9_Windows Server CAL 2012 Italian 1pk DSP OEI 1 Clt User CAL
A109: 10L1-LINUX | B109: OpzOpenSource | C109: 45 | E109: DVD Linux Centos 7.x
A110: 10L1-CPU-T-U | B110: Opz1P | C110: 800 | D110: 1 | E110: Intel Xeon Processor E5-2640 V4 (Intel Xeon E5-2640 v4 2.4GHz 25M Cache 8.0GT/s QPI Turbo HT 10C/20T)
D111: 1 | E111: Kit - 105W Heatsink for T630
A113: 10L1-16GB-U | B113: OpzRam16 | C113: 160 | D113: 1 | E113: Kit Upgrade Ram 16GB V4 (16GB RDIMM, 2400MT/s, Dual Rank, x8 Data Width,CusKit)
A114: 10L1-32GB-U | B114: OpzRam32 | C114: 320 | D114: 1 | E114: Kit Upgrade Ram 32GB V4 (32GB RDIMM, 2400MT/s, Dual Rank, x4 Data Width,CusKit)
A115: 10L1-32GB-L | B115: OpzRam32 | C115: 320 | D115: 1 | E115: Kit Upgrade Ram 32GB
A116: 10L1-64GB-U | B116: OpzRam64 | C116: 644 | D116: 1 | E116: Kit Upgrade Ram 64GB V4
A118: 10L1-LAN1GB | B118: OpzGigabit | C118: 35 | D118: 1 | E118: Scheda Lan Gigabit Full (Broadcom 5720 DP 1Gb Network Interface Card,Full Height,CusKit)
A121: 10L1-LAN10GB | B121: OpzGigabit 10GB | C121: 417 | D121: 1 | E121: QLogic 57810 Dual Port 10Gb Full (QLogic 57810 Dual Port 10Gb Direct Attach/SFP+ Network Adapter,Full Height,CusKit)
D122: 2 | E122: PowerEdge SFP+, 10GbE SR/SX, Optical Tranceiver, LC Connector, for Intel and Broadcom,CusKit
A127: 10L1-HDD300GB-T | B127: OpzStorage300 | C127: 91 | D127: 1 | E127: HDD 300GB SAS (300GB 10K RPM SAS 12Gbps 2.5in Hot-plug Hard Drive,CusKit)
A128: 10L1-HDD1TB | B128: OpzStorage1Tb | C128: 296 | D128: 1 | E128: HDD 1TB NLSAS (1TB 7.2K RPM NLSAS 6Gbps 2.5in Hot-plug Hard Drive,13G,CusKit)
A130: 10L1-FC-U | B130: OpzFibreChannel | C130: 940 | D130: 1 | E130: QLogic 2562 DP Full (QLogic 2562, Dual Port 8Gb Optical Fibre Channel HBA,Full Height,CusKit)
A131: 10L1-RDX | B131: OpzRDX | C131: 365 | D131: 1 | E131: RDX USB External + 3 Tape 500GB
A133: 10L1-UPS-T | B133: OpzUPS 3000VA | C133: 407 | D133: 1 | E133: UPS MSR 3000 VA
A137: 10L1-GUI-T | B137: OpzGUIDesk | C137: 96 | D137: 1 | E137: KIT Monitor 19" + Mouse + Keyboard
D138: 1 | E138: Mice : Dell USB Dual Tone Mouse - Grey - 2 button & Scrollwheel - kit
D139: 1 | E139: Dell 19 Monitor | E1916H - 47cm(18.5") Black ITL
A142: 10L1-SO-WIN | B142: ServOpzSysManWindows | C142: 193 | D142: 1 | E142: System-Network Mng. svc Windows
A143: 10L1-SO-LINUX | B143: ServOpzSysManOS | C143: 193 | D143: 1 | E143: System-Network Mng. svc Linux
A144: 10L1-SO-PREV | B144: Manutenzione Preventiva | C144: 193 | D144: 1 | E144: Servizi di manutenzione Preventiva
A145: 10L1-SO-HDD | B145: Hard-Disk retention | C145: 150 | D145: 1 | E145: Servizio HDD Retention
D146: 1 | E146: Servizio HDD Retention 36 mesi
D147: 1 | E147: Servizio HDD Retention 48 mesi
D148: 1 | E148: Servizio HDD Retention 60 mesi
A149: 10L1-SO-12M-T | B149: OpzEstensione12 | C149: 175 | D149: 1 | E149: Estensione garanzia 12 mesi Agg.
A150: 10L1-SO-24M-T | B150: OpzEstensione24 | C150: 350 | D150: 1 | E150: Estensione garanzia 24 mesi Agg.

Sheet Processor (hidden)
A1: Additional Processor
A2: Server R630 | C2: CPU-A
A3: No Additional Processor | B3: 0 | C3: ="" ->  | E3: [374-BBBX] | F3: ="" ->  | G3: ="" ->  | H3: ="" ->  | I3: Riser with up to 1, x8 PCIe Slots + 1, x16 PCIe Slots for x8, 2 PCIe Chassis with 1 Processor | J3: 1 | K3: [330-BBCS] | L3: ="" -> 
A4: Intel Xeon E5-2640 v4 2.4GHz,25M Cache,8.0GT/s QPI,Turbo,HT,10C/20T (90W) Max Mem 2133MHz,processor only,Cust Kit | B4: 1 | C4: 10L1-CPU-P-U | D4: S10L1-R630-CPU | E4: [338-BJET] | F4: Kit - 120W Heatsink for PowerEdge R630 | G4: 1 | H4: [412-AAFB] | I4: R630 PCIe Riser for up to 2, x16 PCIe Slots for x8, 2 PCIe Chassis with 2 Processors,CusKit | J4: 1 | K4: [330-BBCM] | L4: 800
A6: Server R730xd | C6: CPU-B
A7: No Additional Processor | B7: 0 | C7: ="" ->  | E7: [374-BBBX] | F7: ="" ->  | G7: ="" ->  | H7: ="" ->  | L7: ="" -> 
A8: Intel Xeon E5-2620 v4 2.1GHz,20M Cache,8.0GT/s QPI,Turbo,HT,8C/16T (85W) Max Mem 2133MHz, processor only,Cust Kit | B8: 1 | C8: 10L1-CPU-S-U | D8: S10L1-R730xd-CPU | E8: [338-BJEU] | F8: Kit - 2U CPU Heatsink for PowerEdge R730 without GPU, or PowerEdge R730x | G8: 1 | H8: [412-AAFW] | L8: 500
A10: Server T630 | C10: CPU-C
A11: No Additional Processor | B11: 0 | C11: ="" ->  | E11: [374-BBBX] | F11: ="" ->  | G11: ="" ->  | H11: ="" ->  | L11: ="" -> 
A12: Intel Xeon E5-2640 v4 2.4GHz,25M Cache,8.0GT/s QPI,Turbo,HT,10C/20T (90W) Max Mem 2133MHz,processor only,Cust Kit | B12: 1 | C12: 10L1-CPU-T-U | D12: S10L1-T630-CPU | E12: [338-BJET] | F12: Kit - 105W Heatsink for T630 | G12: 1 | H12: [412-AADU] | L12: 800

Sheet Memory (hidden)
B1: Total Memory
B3: 16GB RDIMM, 2400MT/s, Dual Rank, x8 Data Width,CusKit | C3: 1 | D3: 10L1-16GB-U | E3: S10L1-R630-16GB | F3: A8711887 | G3: 160
B4: 32GB LRDIMM, 2133 MT/s, Quad Rank, x4 Data Width,CusKit | C4: 1 | D4: 10L1-32GB-U | E4: S10L1-R630-32GB | F4: A8711888 | G4: 320
B5: 32GB RDIMM, 2400MT/s, Dual Rank, x4 Data Width,CusKit | C5: 1 | D5: 10L1-32GB-L | E5: S10L1-R630-32GB-L | F5: 370-ABUL | G5: 320
B6: 64GB LRDIMM, 2133 MT/s, Quad Rank, x4 Data Width,CusKit | C6: 1 | D6: 10L1-64GB | E6: S10L1-R630-64GB | F6: A8451131 | G6: 644
A9: 1CPU | B9: MEMORY A
A10: 32 | B10: ="" ->  | C10: ="" ->  | D10: ="" ->  | E10: ="" ->  | F10: ="" ->  | G10: ="" ->  | H10: 16GB RDIMM, 2400MT/s, Dual Rank, x8 Data Width | I10: 2 | J10: [370-ACNX] | K10: ="" ->  | L10: ="" ->  | M10: ="" ->  | N10: ="" ->  | O10: ="" ->  | P10: ="" -> 
A11: 64 | B11: 16GB RDIMM, 2400MT/s, Dual Rank, x8 Data Width,CusKit | C11: 2 | D11: 10L1-16GB-U | E11: S10L1-R630-16GB | F11: A8711887 | G11: =$G$3*C11 -> 320 | H11: 16GB RDIMM, 2400MT/s, Dual Rank, x8 Data Width | I11: 2 | J11: [370-ACNX] | K11: ="" ->  | L11: ="" ->  | M11: ="" ->  | N11: ="" ->  | O11: ="" ->  | P11: ="" -> 
A12: 80 | B12: 16GB RDIMM, 2400MT/s, Dual Rank, x8 Data Width,CusKit | C12: 3 | D12: 10L1-16GB-U | E12: S10L1-R630-16GB | F12: A8711887 | G12: =$G$3*C12 -> 480 | H12: 16GB RDIMM, 2400MT/s, Dual Rank, x8 Data Width | I12: 2 | J12: [370-ACNX] | K12: ="" ->  | L12: ="" ->  | M12: ="" ->  | N12: ="" ->  | O12: ="" ->  | P12: ="" -> 
A13: 96 | B13: 16GB RDIMM, 2400MT/s, Dual Rank, x8 Data Width,CusKit | C13: 4 | D13: 10L1-16GB-U | E13: S10L1-R630-16GB | F13: A8711887 | G13: =$G$3*C13 -> 640 | H13: 16GB RDIMM, 2400MT/s, Dual Rank, x8 Data Width | I13: 2 | J13: [370-ACNX] | K13: ="" ->  | L13: ="" ->  | M13: ="" ->  | N13: ="" ->  | O13: ="" ->  | P13: ="" -> 
A14: 128 | B14: 16GB RDIMM, 2400MT/s, Dual Rank, x8 Data Width,CusKit | C14: 6 | D14: 10L1-16GB-U | E14: S10L1-R630-16GB | F14: A8711887 | G14: =$G$3*C14 -> 960 | H14: 16GB RDIMM, 2400MT/s, Dual Rank, x8 Data Width | I14: 2 | J14: [370-ACNX] | K14: ="" ->  | L14: ="" ->  | M14: ="" ->  | N14: ="" ->  | O14: ="" ->  | P14: ="" -> 
A15: 160 | B15: 16GB RDIMM, 2400MT/s, Dual Rank, x8 Data Width,CusKit | C15: 8 | D15: 10L1-16GB-U | E15: S10L1-R630-16GB | F15: A8711887 | G15: 1280 | H15: 16GB RDIMM, 2400MT/s, Dual Rank, x8 Data Width | I15: 2 | J15: [370-ACNX] | K15: ="" ->  | L15: ="" ->  | M15: ="" ->  | N15: ="" ->  | O15: ="" ->  | P15: ="" -> 
A16: 192 | B16: 16GB RDIMM, 2400MT/s, Dual Rank, x8 Data Width,CusKit | C16: 10 | D16: 10L1-16GB-U | E16: S10L1-R630-16GB | F16: A8711887 | G16: 1600 | H16: 16GB RDIMM, 2400MT/s, Dual Rank, x8 Data Width | I16: 2 | J16: [370-ACNX] | K16: ="" ->  | L16: ="" ->  | M16: ="" ->  | N16: ="" ->  | O16: ="" ->  | P16: ="" -> 
A17: 256 | B17: 16GB RDIMM, 2400MT/s, Dual Rank, x8 Data Width,CusKit | C17: 6 | D17: 10L1-16GB-U | E17: S10L1-R630-16GB | F17: A8711887 | G17: 960 | H17: 16GB RDIMM, 2400MT/s, Dual Rank, x8 Data Width | I17: 2 | J17: [370-ACNX] | K17: 32GB RDIMM, 2400MT/s, Dual Rank, x4 Data Width,CusKit | L17: 4 | M17: 10L1-32GB-U | N17: S10L1-R630-32GB | O17: A8711888 | P17: =$G$4*L17 -> 1280
A18: 2CPU
A19: 32 | B19: ="" ->  | C19: ="" ->  | D19: ="" ->  | E19: ="" ->  | F19: ="" ->  | G19: ="" ->  | H19: 16GB RDIMM, 2400MT/s, Dual Rank, x8 Data Width | I19: 2 | J19: [370-ACNX] | K19: ="" ->  | L19: ="" ->  | M19: ="" ->  | N19: ="" ->  | O19: ="" ->  | P19: ="" -> 
A20: 64 | B20: 16GB RDIMM, 2400MT/s, Dual Rank, x8 Data Width,CusKit | C20: 2 | D20: 10L1-16GB-U | E20: S10L1-R630-16GB | F20: A8711887 | G20: =$G$3*C20 -> 320 | H20: 16GB RDIMM, 2400MT/s, Dual Rank, x8 Data Width | I20: 2 | J20: [370-ACNX] | K20: ="" ->  | L20: ="" ->  | M20: ="" ->  | N20: ="" ->  | O20: ="" ->  | P20: ="" -> 
A21: 80 | B21: 16GB RDIMM, 2400MT/s, Dual Rank, x8 Data Width,CusKit | C21: 3 | D21: 10L1-16GB-U | E21: S10L1-R630-16GB | F21: A8711887 | G21: =$G$3*C21 -> 480 | H21: 16GB RDIMM, 2400MT/s, Dual Rank, x8 Data Width | I21: 2 | J21: [370-ACNX] | K21: ="" ->  | L21: ="" ->  | M21: ="" ->  | N21: ="" ->  | O21: ="" ->  | P21: ="" -> 
A22: 96 | B22: 16GB RDIMM, 2400MT/s, Dual Rank, x8 Data Width,CusKit | C22: 4 | D22: 10L1-16GB-U | E22: S10L1-R630-16GB | F22: A8711887 | G22: =$G$3*C22 -> 640 | H22: 16GB RDIMM, 2400MT/s, Dual Rank, x8 Data Width | I22: 2 | J22: [370-ACNX] | K22: ="" ->  | L22: ="" ->  | M22: ="" ->  | N22: ="" ->  | O22: ="" ->  | P22: ="" -> 
A23: 128 | B23: 16GB RDIMM, 2400MT/s, Dual Rank, x8 Data Width,CusKit | C23: 6 | D23: 10L1-16GB-U | E23: S10L1-R630-16GB | F23: A8711887 | G23: 960 | H23: 16GB RDIMM, 2400MT/s, Dual Rank, x8 Data Width | I23: 2 | J23: [370-ACNX] | K23: ="" ->  | L23: ="" ->  | M23: ="" ->  | N23: ="" ->  | O23: ="" ->  | P23: ="" -> 
A24: 160 | B24: 16GB RDIMM, 2400MT/s, Dual Rank, x8 Data Width,CusKit | C24: 8 | D24: 10L1-16GB-U | E24: S10L1-R630-16GB | F24: A8711887 | G24: 1280 | H24: 16GB RDIMM, 2400MT/s, Dual Rank, x8 Data Width | I24: 2 | J24: [370-ACNX] | K24: ="" ->  | L24: ="" ->  | M24: ="" ->  | N24: ="" ->  | O24: ="" ->  | P24: ="" -> 
A25: 192 | B25: 16GB RDIMM, 2400MT/s, Dual Rank, x8 Data Width,CusKit | C25: 10 | D25: 10L1-16GB-U | E25: S10L1-R630-16GB | F25: A8711887 | G25: 1600 | H25: 16GB RDIMM, 2400MT/s, Dual Rank, x8 Data Width | I25: 2 | J25: [370-ACNX] | K25: ="" ->  | L25: ="" ->  | M25: ="" ->  | N25: ="" ->  | O25: ="" ->  | P25: ="" -> 
A26: 256 | B26: 16GB RDIMM, 2400MT/s, Dual Rank, x8 Data Width,CusKit | C26: 14 | D26: 10L1-16GB-U | E26: S10L1-R630-16GB | F26: A8711887 | G26: 2240 | H26: 16GB RDIMM, 2400MT/s, Dual Rank, x8 Data Width | I26: 2 | J26: [370-ACNX] | K26: ="" ->  | L26: ="" ->  | M26: ="" ->  | N26: ="" ->  | O26: ="" ->  | P26: ="" -> 
A27: 320 | B27: 16GB RDIMM, 2400MT/s, Dual Rank, x8 Data Width,CusKit | C27: 18 | D27: 10L1-16GB-U | E27: S10L1-R630-16GB | F27: A8711887 | G27: =$G$3*C27 -> 2880 | H27: 16GB RDIMM, 2400MT/s, Dual Rank, x8 Data Width | I27: 2 | J27: [370-ACNX] | K27: ="" ->  | L27: ="" ->  | M27: ="" ->  | N27: ="" ->  | O27: ="" ->  | P27: ="" -> 
A28: 384 | B28: 16GB RDIMM, 2400MT/s, Dual Rank, x8 Data Width,CusKit | C28: 22 | D28: 10L1-16GB-U | E28: S10L1-R630-16GB | F28: A8711887 | G28: 3520 | H28: 16GB RDIMM, 2400MT/s, Dual Rank, x8 Data Width | I28: 2 | J28: [370-ACNX] | K28: ="" ->  | L28: ="" ->  | M28: ="" ->  | N28: ="" ->  | O28: ="" ->  | P28: ="" -> 
A29: 512 | B29: 16GB RDIMM, 2400MT/s, Dual Rank, x8 Data Width,CusKit | C29: 14 | D29: 10L1-16GB-U | E29: S10L1-R630-16GB | F29: A8711887 | G29: =$G$3*C29 -> 2240 | H29: 16GB RDIMM, 2400MT/s, Dual Rank, x8 Data Width | I29: 2 | J29: [370-ACNX] | K29: 32GB RDIMM, 2400MT/s, Dual Rank, x4 Data Width,CusKit | L29: 8 | M29: 10L1-32GB-U | N29: S10L1-R630-32GB | O29: A8711888 | P29: =$G$4*L29 -> 2560
A32: 1CPU | B32: MEMORY B
A33: 32 | B33: ="" ->  | C33: ="" ->  | D33: ="" ->  | E33: ="" ->  | F33: ="" ->  | G33: ="" ->  | H33: 16GB RDIMM, 2400MT/s, Dual Rank, x8 Data Width | I33: 2 | J33: [370-ACNX] | K33: ="" ->  | L33: ="" ->  | M33: ="" ->  | N33: ="" ->  | O33: ="" ->  | P33: ="" -> 
A34: 64 | B34: 16GB RDIMM, 2400MT/s, Dual Rank, x8 Data Width,CusKit | C34: 2 | D34: 10L1-16GB-U | E34: S10L1-R730xd-16GB | F34: A8711887 | G34: =$G$3*C34 -> 320 | H34: 16GB RDIMM, 2400MT/s, Dual Rank, x8 Data Width | I34: 2 | J34: [370-ACNX] | K34: ="" ->  | L34: ="" ->  | M34: ="" ->  | N34: ="" ->  | O34: ="" ->  | P34: ="" -> 
A35: 96 | B35: 16GB RDIMM, 2400MT/s, Dual Rank, x8 Data Width,CusKit | C35: 4 | D35: 10L1-16GB-U | E35: S10L1-R630-16GB | F35: A8711887 | G35: =$G$3*C35 -> 640 | H35: 16GB RDIMM, 2400MT/s, Dual Rank, x8 Data Width | I35: 2 | J35: [370-ACNX] | K35: ="" ->  | L35: ="" ->  | M35: ="" ->  | N35: ="" ->  | O35: ="" ->  | P35: ="" -> 
A36: 128 | B36: 16GB RDIMM, 2400MT/s, Dual Rank, x8 Data Width,CusKit | C36: 6 | D36: 10L1-16GB-U | E36: S10L1-R730xd-16GB | F36: A8711887 | G36: =$G$3*C36 -> 960 | H36: 16GB RDIMM, 2400MT/s, Dual Rank, x8 Data Width | I36: 2 | J36: [370-ACNX] | K36: ="" ->  | L36: ="" ->  | M36: ="" ->  | N36: ="" ->  | O36: ="" ->  | P36: ="" -> 
A37: 160 | B37: 16GB RDIMM, 2400MT/s, Dual Rank, x8 Data Width,CusKit | C37: 8 | D37: 10L1-16GB-U | E37: S10L1-R730xd-16GB | F37: A8711887 | G37: 1280 | H37: 16GB RDIMM, 2400MT/s, Dual Rank, x8 Data Width | I37: 2 | J37: [370-ACNX] | K37: ="" ->  | L37: ="" ->  | M37: ="" ->  | N37: ="" ->  | O37: ="" ->  | P37: ="" -> 
A38: 192 | B38: 16GB RDIMM, 2400MT/s, Dual Rank, x8 Data Width,CusKit | C38: 10 | D38: 10L1-16GB-U | E38: S10L1-R730xd-16GB | F38: A8711887 | G38: 1600 | H38: 16GB RDIMM, 2400MT/s, Dual Rank, x8 Data Width | I38: 2 | J38: [370-ACNX] | K38: ="" ->  | L38: ="" ->  | M38: ="" ->  | N38: ="" ->  | O38: ="" ->  | P38: ="" -> 
A39: 256 | B39: 16GB RDIMM, 2400MT/s, Dual Rank, x8 Data Width,CusKit | C39: 6 | D39: 10L1-16GB-U | E39: S10L1-R730xd-16GB | F39: A8711887 | G39: 960 | H39: 16GB RDIMM, 2400MT/s, Dual Rank, x8 Data Width | I39: 2 | J39: [370-ACNX] | K39: 32GB RDIMM, 2400MT/s, Dual Rank, x4 Data Width,CusKit | L39: 4 | M39: 10L1-32GB-U | N39: S10L1-R730xd-32GB | O39: A8711888 | P39: =$G$4*L39 -> 1280
A40: 2CPU
A41: 32 | B41: ="" ->  | C41: ="" ->  | D41: ="" ->  | E41: ="" ->  | F41: ="" ->  | G41: ="" ->  | H41: 16GB RDIMM, 2400MT/s, Dual Rank, x8 Data Width | I41: 2 | J41: [370-ACNX] | K41: ="" ->  | L41: ="" ->  | M41: ="" ->  | N41: ="" ->  | O41: ="" ->  | P41: ="" -> 
A42: 64 | B42: 16GB RDIMM, 2400MT/s, Dual Rank, x8 Data Width,CusKit | C42: 2 | D42: 10L1-16GB-U | E42: S10L1-R730xd-16GB | F42: A8711887 | G42: =$G$3*C42 -> 320 | H42: 16GB RDIMM, 2400MT/s, Dual Rank, x8 Data Width | I42: 2 | J42: [370-ACNX] | K42: ="" ->  | L42: ="" ->  | M42: ="" ->  | N42: ="" ->  | O42: ="" ->  | P42: ="" -> 
A43: 96 | B43: 16GB RDIMM, 2400MT/s, Dual Rank, x8 Data Width,CusKit | C43: 4 | D43: 10L1-16GB-U | E43: S10L1-R630-16GB | F43: A8711887 | G43: =$G$3*C43 -> 640 | H43: 16GB RDIMM, 2400MT/s, Dual Rank, x8 Data Width | I43: 2 | J43: [370-ACNX] | K43: ="" ->  | L43: ="" ->  | M43: ="" ->  | N43: ="" ->  | O43: ="" ->  | P43: ="" -> 
A44: 128 | B44: 16GB RDIMM, 2400MT/s, Dual Rank, x8 Data Width,CusKit | C44: 6 | D44: 10L1-16GB-U | E44: S10L1-R730xd-16GB | F44: A8711887 | G44: 960 | H44: 16GB RDIMM, 2400MT/s, Dual Rank, x8 Data Width | I44: 2 | J44: [370-ACNX] | K44: ="" ->  | L44: ="" ->  | M44: ="" ->  | N44: ="" ->  | O44: ="" ->  | P44: ="" -> 
A45: 160 | B45: 16GB RDIMM, 2400MT/s, Dual Rank, x8 Data Width,CusKit | C45: 8 | D45: 10L1-16GB-U | E45: S10L1-R730xd-16GB | F45: A8711887 | G45: 1280 | H45: 16GB RDIMM, 2400MT/s, Dual Rank, x8 Data Width | I45: 2 | J45: [370-ACNX] | K45: ="" ->  | L45: ="" ->  | M45: ="" ->  | N45: ="" ->  | O45: ="" ->  | P45: ="" -> 
A46: 192 | B46: 16GB RDIMM, 2400MT/s, Dual Rank, x8 Data Width,CusKit | C46: 10 | D46: 10L1-16GB-U | E46: S10L1-R730xd-16GB | F46: A8711887 | G46: 1600 | H46: 16GB RDIMM, 2400MT/s, Dual Rank, x8 Data Width | I46: 2 | J46: [370-ACNX] | K46: ="" ->  | L46: ="" ->  | M46: ="" ->  | N46: ="" ->  | O46: ="" ->  | P46: ="" -> 
A47: 256 | B47: 16GB RDIMM, 2400MT/s, Dual Rank, x8 Data Width,CusKit | C47: 14 | D47: 10L1-16GB-U | E47: S10L1-R730xd-16GB | F47: A8711887 | G47: 2240 | H47: 16GB RDIMM, 2400MT/s, Dual Rank, x8 Data Width | I47: 2 | J47: [370-ACNX] | K47: ="" ->  | L47: ="" ->  | M47: ="" ->  | N47: ="" ->  | O47: ="" ->  | P47: ="" -> 
A48: 320 | B48: 16GB RDIMM, 2400MT/s, Dual Rank, x8 Data Width,CusKit | C48: 18 | D48: 10L1-16GB-U | E48: S10L1-R730xd-16GB | F48: A8711887 | G48: 2880 | H48: 16GB RDIMM, 2400MT/s, Dual Rank, x8 Data Width | I48: 2 | J48: [370-ACNX] | K48: ="" ->  | L48: ="" ->  | M48: ="" ->  | N48: ="" ->  | O48: ="" ->  | P48: ="" -> 
A49: 384 | B49: 16GB RDIMM, 2400MT/s, Dual Rank, x8 Data Width,CusKit | C49: 22 | D49: 10L1-16GB-U | E49: S10L1-R730xd-16GB | F49: A8711887 | G49: 3520 | H49: 16GB RDIMM, 2400MT/s, Dual Rank, x8 Data Width | I49: 2 | J49: [370-ACNX] | K49: ="" ->  | L49: ="" ->  | M49: ="" ->  | N49: ="" ->  | O49: ="" ->  | P49: ="" -> 
A50: 512 | B50: 16GB RDIMM, 2400MT/s, Dual Rank, x8 Data Width,CusKit | C50: 14 | D50: 10L1-16GB-U | E50: S10L1-R730xd-16GB | F50: A8711887 | G50: 2240 | H50: 16GB RDIMM, 2400MT/s, Dual Rank, x8 Data Width | I50: 2 | J50: [370-ACNX] | K50: 32GB RDIMM, 2400MT/s, Dual Rank, x4 Data Width,CusKit | L50: 8 | M50: 10L1-32GB-U | N50: S10L1-R730xd-32GB | O50: A8711888 | P50: =$G$4*L50 -> 2560
A53: 1CPU | B53: MEMORY C
A54: 32 | B54: ="" ->  | C54: ="" ->  | D54: ="" ->  | E54: ="" ->  | F54: ="" ->  | G54: ="" ->  | H54: 16GB RDIMM, 2400MT/s, Dual Rank, x8 Data Width | I54: 2 | J54: [370-ACNX] | K54: ="" ->  | L54: ="" ->  | M54: ="" ->  | N54: ="" ->  | O54: ="" ->  | P54: ="" -> 
A55: 64 | B55: 16GB RDIMM, 2400MT/s, Dual Rank, x8 Data Width,CusKit | C55: 2 | D55: 10L1-16GB-U | E55: S10L1-T630-16GB | F55: A8711887 | G55: =$G$3*C55 -> 320 | H55: 16GB RDIMM, 2400MT/s, Dual Rank, x8 Data Width | I55: 2 | J55: [370-ACNX] | K55: ="" ->  | L55: ="" ->  | M55: ="" ->  | N55: ="" ->  | O55: ="" ->  | P55: ="" -> 
A56: 96 | B56: 16GB RDIMM, 2400MT/s, Dual Rank, x8 Data Width,CusKit | C56: 4 | D56: 10L1-16GB-U | E56: S10L1-R630-16GB | F56: A8711887 | G56: =$G$3*C56 -> 640 | H56: 16GB RDIMM, 2400MT/s, Dual Rank, x8 Data Width | I56: 2 | J56: [370-ACNX] | K56: ="" ->  | L56: ="" ->  | M56: ="" ->  | N56: ="" ->  | O56: ="" ->  | P56: ="" -> 
A57: 128 | B57: 16GB RDIMM, 2400MT/s, Dual Rank, x8 Data Width,CusKit | C57: 6 | D57: 10L1-16GB-U | E57: S10L1-T630-16GB | F57: A8711887 | G57: =$G$3*C57 -> 960 | H57: 16GB RDIMM, 2400MT/s, Dual Rank, x8 Data Width | I57: 2 | J57: [370-ACNX] | K57: ="" ->  | L57: ="" ->  | M57: ="" ->  | N57: ="" ->  | O57: ="" ->  | P57: ="" -> 
A58: 160 | B58: 16GB RDIMM, 2400MT/s, Dual Rank, x8 Data Width,CusKit | C58: 8 | D58: 10L1-16GB-U | E58: S10L1-T630-16GB | F58: A8711887 | G58: 1280 | H58: 16GB RDIMM, 2400MT/s, Dual Rank, x8 Data Width | I58: 2 | J58: [370-ACNX] | K58: ="" ->  | L58: ="" ->  | M58: ="" ->  | N58: ="" ->  | O58: ="" ->  | P58: ="" -> 
A59: 192 | B59: 16GB RDIMM, 2400MT/s, Dual Rank, x8 Data Width,CusKit | C59: 10 | D59: 10L1-16GB-U | E59: S10L1-T630-16GB | F59: A8711887 | G59: 1600 | H59: 16GB RDIMM, 2400MT/s, Dual Rank, x8 Data Width | I59: 2 | J59: [370-ACNX] | K59: ="" ->  | L59: ="" ->  | M59: ="" ->  | N59: ="" ->  | O59: ="" ->  | P59: ="" -> 
A60: 256 | B60: 16GB RDIMM, 2400MT/s, Dual Rank, x8 Data Width,CusKit | C60: 6 | D60: 10L1-16GB-U | E60: S10L1-T630-16GB | F60: A8711887 | G60: 960 | H60: 16GB RDIMM, 2400MT/s, Dual Rank, x8 Data Width | I60: 2 | J60: [370-ACNX] | K60: 32GB RDIMM, 2400MT/s, Dual Rank, x4 Data Width,CusKit | L60: 4 | M60: 10L1-32GB-U | N60: S10L1-T630-32GB | O60: A8711888 | P60: =$G$4*L60 -> 1280
A61: 2CPU
A62: 32 | B62: ="" ->  | C62: ="" ->  | D62: ="" ->  | E62: ="" ->  | F62: ="" ->  | G62: ="" ->  | H62: 16GB RDIMM, 2400MT/s, Dual Rank, x8 Data Width | I62: 2 | J62: [370-ACNX] | K62: ="" ->  | L62: ="" ->  | M62: ="" ->  | N62: ="" ->  | O62: ="" ->  | P62: ="" -> 
A63: 64 | B63: 16GB RDIMM, 2400MT/s, Dual Rank, x8 Data Width,CusKit | C63: 2 | D63: 10L1-16GB-U | E63: S10L1-T630-16GB | F63: A8711887 | G63: =$G$3*C63 -> 320 | H63: 16GB RDIMM, 2400MT/s, Dual Rank, x8 Data Width | I63: 2 | J63: [370-ACNX] | K63: ="" ->  | L63: ="" ->  | M63: ="" ->  | N63: ="" ->  | O63: ="" ->  | P63: ="" -> 
A64: 96 | B64: 16GB RDIMM, 2400MT/s, Dual Rank, x8 Data Width,CusKit | C64: 4 | D64: 10L1-16GB-U | E64: S10L1-R630-16GB | F64: A8711887 | G64: =$G$3*C64 -> 640 | H64: 16GB RDIMM, 2400MT/s, Dual Rank, x8 Data Width | I64: 2 | J64: [370-ACNX] | K64: ="" ->  | L64: ="" ->  | M64: ="" ->  | N64: ="" ->  | O64: ="" ->  | P64: ="" -> 
A65: 128 | B65: 16GB RDIMM, 2400MT/s, Dual Rank, x8 Data Width,CusKit | C65: 6 | D65: 10L1-16GB-U | E65: S10L1-T630-16GB | F65: A8711887 | G65: 960 | H65: 16GB RDIMM, 2400MT/s, Dual Rank, x8 Data Width | I65: 2 | J65: [370-ACNX] | K65: ="" ->  | L65: ="" ->  | M65: ="" ->  | N65: ="" ->  | O65: ="" ->  | P65: ="" -> 
A66: 160 | B66: 16GB RDIMM, 2400MT/s, Dual Rank, x8 Data Width,CusKit | C66: 8 | D66: 10L1-16GB-U | E66: S10L1-T630-16GB | F66: A8711887 | G66: 1280 | H66: 16GB RDIMM, 2400MT/s, Dual Rank, x8 Data Width | I66: 2 | J66: [370-ACNX] | K66: ="" ->  | L66: ="" ->  | M66: ="" ->  | N66: ="" ->  | O66: ="" ->  | P66: ="" -> 
A67: 192 | B67: 16GB RDIMM, 2400MT/s, Dual Rank, x8 Data Width,CusKit | C67: 10 | D67: 10L1-16GB-U | E67: S10L1-T630-16GB | F67: A8711887 | G67: 1600 | H67: 16GB RDIMM, 2400MT/s, Dual Rank, x8 Data Width | I67: 2 | J67: [370-ACNX] | K67: ="" ->  | L67: ="" ->  | M67: ="" ->  | N67: ="" ->  | O67: ="" ->  | P67: ="" -> 
A68: 256 | B68: 16GB RDIMM, 2400MT/s, Dual Rank, x8 Data Width,CusKit | C68: 14 | D68: 10L1-16GB-U | E68: S10L1-T630-16GB | F68: A8711887 | G68: 2240 | H68: 16GB RDIMM, 2400MT/s, Dual Rank, x8 Data Width | I68: 2 | J68: [370-ACNX] | K68: ="" ->  | L68: ="" ->  | M68: ="" ->  | N68: ="" ->  | O68: ="" ->  | P68: ="" -> 
A69: 320 | B69: 16GB RDIMM, 2400MT/s, Dual Rank, x8 Data Width,CusKit | C69: 18 | D69: 10L1-16GB-U | E69: S10L1-T630-16GB | F69: A8711887 | G69: 2880 | H69: 16GB RDIMM, 2400MT/s, Dual Rank, x8 Data Width | I69: 2 | J69: [370-ACNX] | K69: ="" ->  | L69: ="" ->  | M69: ="" ->  | N69: ="" ->  | O69: ="" ->  | P69: ="" -> 
A70: 384 | B70: 16GB RDIMM, 2400MT/s, Dual Rank, x8 Data Width,CusKit | C70: 22 | D70: 10L1-16GB-U | E70: S10L1-T630-16GB | F70: A8711887 | G70: 3520 | H70: 16GB RDIMM, 2400MT/s, Dual Rank, x8 Data Width | I70: 2 | J70: [370-ACNX] | K70: ="" ->  | L70: ="" ->  | M70: ="" ->  | N70: ="" ->  | O70: ="" ->  | P70: ="" -> 
A71: 512 | B71: 16GB RDIMM, 2400MT/s, Dual Rank, x8 Data Width,CusKit | C71: 14 | D71: 10L1-16GB-U | E71: S10L1-T630-16GB | F71: A8711887 | G71: 2240 | H71: 16GB RDIMM, 2400MT/s, Dual Rank, x8 Data Width | I71: 2 | J71: [370-ACNX] | K71: 32GB RDIMM, 2400MT/s, Dual Rank, x4 Data Width,CusKit | L71: 8 | M71: 10L1-32GB-U | N71: S10L1-T630-32GB | O71: A8711888 | P71: =$G$4*L71 -> 2560

Sheet Operating System (hidden)
A1: Operating System
A2: R630
A3: No Operating System | B3: ="" ->  | C3: ="" ->  | D3: ="" ->  | E3: [611-BBBF] | F3: ="" ->  | G3: None | H3: ="" ->  | I3: ="" ->  | J3: ="" ->  | K3: ="" ->  | M3: None | N3: ="" ->  | O3: ="" ->  | P3: ="" ->  | Q3: ="" -> 
A4: Kit Windows Server 2012 R2, Standard Edition, 2 Socket, 2VM, ROK, COA + Media | B4: 1 | C4: 10L1-WIN | D4: S10L1-R630-WIN | E4: [638-BBBD] | F4: 505 | G4: 1-pack of Windows Server 2012 User CALs (Standard or Datacenter) | H4: 1 | I4: 10L1-CALUSER | J4: S10L1-R630-USR | K4: [618-10778] | L4: 25 | M4: 1-pack of Windows Server 2012 Device CALs (Standard or Datacenter) | N4: 1 | O4: 10L1-CALDEV | P4: S10L1-R630-DEV | Q4: [618-10777] | R4: 25
A5: CentOS 7.0 | B5: 1 | C5: 10L1-LINUX | D5: S10L1-R630-LINUX | E5: ="" ->  | F5: 45 | G5: None | H5: ="" ->  | I5: ="" ->  | J5: ="" ->  | K5: ="" ->  | M5: None | N5: ="" ->  | O5: ="" ->  | P5: ="" ->  | Q5: ="" -> 
A8: R730xd
A9: No Operating System | B9: ="" ->  | C9: ="" ->  | D9: ="" ->  | E9: [611-BBBF] | F9: ="" ->  | G9: None | H9: ="" ->  | I9: ="" ->  | J9: ="" ->  | K9: ="" ->  | M9: None | N9: ="" ->  | O9: ="" ->  | P9: ="" ->  | Q9: ="" -> 
A10: Kit Windows Server 2012 R2, Standard Edition, 2 Socket, 2VM, ROK, COA + Media | B10: 1 | C10: 10L1-WIN | D10: S10L1-R730xd-WIN | E10: [638-BBBD] | F10: 505 | G10: 1-pack of Windows Server 2012 User CALs (Standard or Datacenter) | H10: 1 | I10: 10L1-CALUSER | J10: S10L1-R730xd-USR | K10: [618-10778] | L10: 25 | M10: 1-pack of Windows Server 2012 Device CALs (Standard or Datacenter) | N10: 1 | O10: 10L1-CALDEV | P10: S10L1-R730xd-DEV | Q10: [618-10777] | R10: 25
A11: CentOS 7.0 | B11: 1 | C11: 10L1-LINUX | D11: S10L1-R730xd-LINUX | E11: ="" ->  | F11: 45 | G11: None | H11: ="" ->  | I11: ="" ->  | J11: ="" ->  | K11: ="" ->  | M11: None | N11: ="" ->  | O11: ="" ->  | P11: ="" ->  | Q11: ="" -> 
A14: T630
A15: No Operating System | B15: ="" ->  | C15: ="" ->  | D15: ="" ->  | E15: [611-BBBF] | F15: ="" ->  | G15: None | H15: ="" ->  | I15: ="" ->  | J15: ="" ->  | K15: ="" ->  | M15: None | N15: ="" ->  | O15: ="" ->  | P15: ="" ->  | Q15: ="" -> 
A16: Kit Windows Server 2012 R2, Standard Edition, 2 Socket, 2VM, ROK, COA + Media | B16: 1 | C16: 10L1-WIN | D16: S10L1-T630-WIN | E16: [638-BBBD] | F16: 505 | G16: 1-pack of Windows Server 2012 User CALs (Standard or Datacenter) | H16: 1 | I16: 10L1-CALUSER | J16: S10L1-T630-USR | K16: [618-10778] | L16: 25 | M16: 1-pack of Windows Server 2012 Device CALs (Standard or Datacenter) | N16: 1 | O16: 10L1-CALDEV | P16: S10L1-T630-DEV | Q16: [618-10777] | R16: 25
A17: CentOS 7.0 | B17: 1 | C17: 10L1-LINUX | D17: S10L1-T630-LINUX | E17: ="" ->  | F17: 45 | G17: None | H17: ="" ->  | I17: ="" ->  | J17: ="" ->  | K17: ="" ->  | M17: None | N17: ="" ->  | O17: ="" ->  | P17: ="" ->  | Q17: ="" -> 

Sheet HDD (hidden)
A1: Hard Drives
A2: R630
A3: 300GB 10K RPM SAS 12Gbps 2.5in Hot-plug Hard Drive,CusKit | C3: 10L1-HDD300GB | D3: S10L1-R630-HDD300 | E3: [400-AJOQ] | F3: 140
A4: 1TB 7.2K RPM NLSAS 6Gbps 2.5in Hot-plug Hard Drive,13G,CusKit | C4: 10L1-HDD1TB | D4: S10L1-R630-HDD1000 | E4: [400-AEFF] | F4: 296
B5: R630 | C5: R630 1 | D5: R630 2
A6: HDD max | B6: 8 | C6: 8 | D6: 8
A7: HDD 300GB Base | B7: 2 | C7: 2 | D7: 2 | E7: Hot Spare for 300GB HDD | F7: ='Server10 Lotto1 R630'!$C$74 -> No | G7: =IF(F7="Yes",1,0) -> 0 | H7: ='Server10 Lotto1 R630 2'!$C$74 -> No | I7: =IF(H7="Yes",1,0) -> 0 | J7: ='Server10 Lotto1 R630 3'!$C$74 -> No | K7: =IF(J7="Yes",1,0) -> 0
A8: HDD 300GB Selected | B8: ='Server10 Lotto1 R630'!$C$68 -> 0 | C8: ='Server10 Lotto1 R630 2'!$C$68 -> 0 | D8: ='Server10 Lotto1 R630 2'!$C$68 -> 0
A9: 300GB 10K RPM SAS 12Gbps 2.5in Hot-plug Hard Drive,CusKit | B9: 0 | C9: 0 | D9: 0
B10: 1 | C10: 1 | D10: 1
B11: 2 | C11: 2 | D11: 2
B12: 3 | C12: 3 | D12: 3
B13: 4 | C13: 4 | D13: 4
B14: 5 | C14: 5 | D14: 5
B15: 6 | C15: 6 | D15: 6
A16: HDD max | B16: 8 | C16: 8 | D16: 8
A17: HDD 300GB | B17: =B7+B8 -> 2 | C17: =C7+C8 -> 2 | D17: 2
A18: HDD 1TB Selected | B18: ='Server10 Lotto1 R630'!$C$70 -> 0 | C18: ='Server10 Lotto1 R630 2'!$C$70 -> 0 | D18: ='Server10 Lotto1 R630 3'!$C$70 -> 0 | E18: Hot Spare for 1TB HDD | F18: ='Server10 Lotto1 R630'!$C$78 -> No | G18: =IF(F18="Yes",1,0) -> 0 | H18: ='Server10 Lotto1 R630 2'!$C$78 -> No | I18: =IF(H18="Yes",1,0) -> 0 | J18: ='Server10 Lotto1 R630 3'!$C$78 -> No | K18: =IF(J18="Yes",1,0) -> 0
A19: 1TB 7.2K RPM NLSAS 6Gbps 2.5in Hot-plug Hard Drive,13G,CusKit | B19: =B$6-B$7-B$8 -> 6 | C19: =C$6-C$7-C$8 -> 6 | D19: 6
B20: =IF(B19-1<1,0,B19-1) -> 5 | C20: 5 | D20: 5
B21: 4 | C21: 4 | D21: 4
B22: 3 | C22: 3 | D22: 3
B23: 2 | C23: 2 | D23: 2
B24: 1 | C24: 1 | D24: 1
B25: 0 | C25: 0 | D25: 0
B26: 0
B27: 0
A29: Hot Spare | B29: Yes
B30: No
A32: RAID Configuration | D32: HDD 300GB R630 | F32: HDD 1TB R630 | H32: HDD 300GB R630 2 | J32: HDD 1TB R630 2 | L32: HDD 300GB R630 3 | N32: HDD 1TB R630 3
A33: RAID Personalizzato | B33: =IF($B$134<=8,0,"") -> 0 | C33: [780-BBJC] | D33: RAID Personalizzato | E33: [780-BBJC] | F33: RAID Personalizzato | G33: [780-BBJC] | H33: RAID Personalizzato | I33: [780-BBJC] | J33: RAID Personalizzato | K33: [780-BBJC] | L33: RAID Personalizzato | M33: [780-BBJC] | N33: RAID Personalizzato | O33: [780-BBJC]
A34: C10 - Unconfigured RAID for H330 (1-8 HDDs) | B34: 1 | C34: [780-BBJD] | D34: =IF($G$7=0,A34,"") -> C10 - Unconfigured RAID for H330 (1-8 HDDs) | E34: =IF($G$7=0,C34,"") -> [780-BBJD] | F34: =IF($G$18=0,A34,"") -> C10 - Unconfigured RAID for H330 (1-8 HDDs) | G34: =IF($G$18=0,C34,"") -> [780-BBJD] | H34: =IF(I7=0,$A$34,"") -> C10 - Unconfigured RAID for H330 (1-8 HDDs) | I34: =IF(I7=0,$C$34,"") -> [780-BBJD] | J34: =IF(I18=0,$A$34,"") -> C10 - Unconfigured RAID for H330 (1-8 HDDs) | K34: =IF(I18=0,$C$34,"") -> [780-BBJD] | L34: =IF(K7=0,$A$34,"") -> C10 - Unconfigured RAID for H330 (1-8 HDDs) | M34: =IF(K7=0,$C$34,"") -> [780-BBJD] | N34: =IF(K18=0,$A$34,"") -> C10 - Unconfigured RAID for H330 (1-8 HDDs) | O34: =IF(K18=0,$C$34,"") -> [780-BBJD]
A35: C2 - RAID 0 for H330 (1-8 HDDs) | B35: 1 | C35: [780-BBJF] | D35: =IF($G$7=0,A35,"") -> C2 - RAID 0 for H330 (1-8 HDDs) | E35: =IF($G$7=0,C35,"") -> [780-BBJF] | F35: =IF($G$18=0,A35,"") -> C2 - RAID 0 for H330 (1-8 HDDs) | G35: =IF($G$18=0,C35,"") -> [780-BBJF] | H35: =IF(I7=0,$A$35,"") -> C2 - RAID 0 for H330 (1-8 HDDs) | I35: =IF(I7=0,$C$35,"") -> [780-BBJF] | J35: =IF(I18=0,$A$35,"") -> C2 - RAID 0 for H330 (1-8 HDDs) | K35: =IF(I18=0,$C$35,"") -> [780-BBJF] | L35: =IF(K7=0,$A$35,"") -> C2 - RAID 0 for H330 (1-8 HDDs) | M35: =IF(K7=0,$C$35,"") -> [780-BBJF] | N35: =IF(K18=0,$A$35,"") -> C2 - RAID 0 for H330 (1-8 HDDs) | O35: =IF(K18=0,$C$35,"") -> [780-BBJF]
A36: C3 - RAID 1 for H330 (2 HDDs) | B36: 1 | C36: [780-BBJK] | D36: =IF($B$7+$B$8-$G$7=2,A36,"") -> C3 - RAID 1 for H330 (2 HDDs) | E36: =IF($B$7+$B$8-$G$7=2,C36,"") -> [780-BBJK] | F36: =IF($B$18-$G$18=2,A36,"") ->  | G36: =IF($B$18-$G$18=2,C36,"") ->  | H36: =IF($C$7+$C$8-I7=2,$A$36,"") -> C3 - RAID 1 for H330 (2 HDDs) | I36: =IF($C$7+$C$8-I7=2,$C$36,"") -> [780-BBJK] | J36: =IF($C$18-I18=2,A36,"") ->  | K36: =IF($C$18-I18=2,$C$36,"") ->  | L36: =IF($C$7+$C$8-K7=2,$A$36,"") -> C3 - RAID 1 for H330 (2 HDDs) | M36: =IF($C$7+$C$8-K7=2,$C$36,"") -> [780-BBJK] | N36: =IF($C$18-M18=2,E36,"") ->  | O36: =IF($D$18-K18=2,$C$36,"") -> 
A37: C4 - RAID 5 for H330 (3-8 HDDs) | B37: 1 | C37: [780-BBJL] | D37: =IF($B$7+$B$8-$G$7>=3,A37,"") ->  | E37: =IF($B$7+$B$8-$G$7>=3,C37,"") ->  | F37: =IF($B$18-$G$18>=3,A37,"") ->  | G37: =IF($B$18-$G$18>=3,C37,"") ->  | H37: =IF($C$7+$C$8-I7>=3,$A$37,"") ->  | I37: =IF($C$7+$C$8-I7>=3,$C$37,"") ->  | J37: =IF($C$18-I18>=3,$A$37,"") ->  | K37: =IF($C$18-I18>=3,$C$37,"") ->  | L37: =IF($D$7+$D$8-K7>=3,$A$37,"") ->  | M37: =IF($D$7+$D$8-K7>=3,$C$37,"") ->  | N37: =IF($D$18-K18>=3,$A$37,"") ->  | O37: =IF($D$18-K18>=3,$C$37,"") -> 
A38: C6 - RAID 10 forH330 (4-8 HDDs in pairs) | B38: 1 | C38: [780-BBJN] | D38: =IF($B$7+$B$8-$G$7=4,A38,"") ->  | E38: =IF($B$7+$B$8-$G$7=4,C38,"") ->  | F38: =IF($B$18-$G$18=4,A38,"") ->  | G38: =IF($B$18-$G$18=4,C38,"") ->  | H38: =IF($C$7+$C$8-I7=4,$A$38,"") ->  | I38: =IF($C$7+$C$8-I7=4,$C$38,"") ->  | J38: =IF($C$18-I18=4,$A$38,"") ->  | K38: =IF($C$18-I18=4,$C$38,"") ->  | L38: =IF($D$7+$D$8-K7=4,$A$38,"") ->  | M38: =IF($D$7+$D$8-K7=4,$C$38,"") ->  | N38: =IF($D$18-K18=4,$A$38,"") ->  | O38: =IF($D$18-K18=4,$C$38,"") -> 
A39: C7 - RAID 1+RAID 1 for H330 (2 + 2 HDDs) | B39: 1 | C39: [780-BBJO] | D39: =IF($B$7+$B$8-$G$7=4,A39,"") ->  | E39: =IF($B$7+$B$8-$G$7=4,C39,"") ->  | F39: =IF($B$18-$G$18=4,A39,"") ->  | G39: =IF($B$18-$G$18=4,C39,"") ->  | H39: =IF($C$7+$C$8-I7=4,$A$39,"") ->  | I39: =IF($C$7+$C$8-I7=4,$C$39,"") ->  | J39: =IF($C$18-I18=4,A39,"") ->  | K39: =IF($C$18-I18=4,$C$39,"") ->  | L39: =IF($D$7+$D$8-K7=4,$A$39,"") ->  | M39: =IF($D$7+$D$8-K7=4,$C$39,"") ->  | N39: =IF($D$18-K18=4,A39,"") ->  | O39: =IF($D$18-K18=4,$C$39,"") -> 
A40: C8 - RAID 1+RAID 5 for H330 (2 + 3-8 HDDs) | B40: 1 | C40: [780-BBJP] | D40: =IF($B$7+$B$8-$G$7>=5,A40,"") ->  | E40: =IF($B$7+$B$8-$G$7>=5,C40,"") ->  | F40: =IF($B$18-$G$18>=5,A40,"") ->  | G40: =IF($B$18-$G$18>=5,C40,"") ->  | H40: =IF($C$7+$C$8-I7>=5,$A$40,"") ->  | I40: =IF($C$7+$C$8-I7>=5,$C$40,"") ->  | J40: =IF($C$18-I18>=5,$A$40,"") ->  | K40: =IF($C$18-I18>=5,$C$40,"") ->  | L40: =IF($D$7+$D$8-K7>=5,$A$40,"") ->  | M40: =IF($D$7+$D$8-K7>=5,$C$40,"") ->  | N40: =IF($D$18-K18>=5,$A$40,"") ->  | O40: =IF($D$18-K18>=5,$C$40,"") -> 
A41: C9 - RAID 1+RAID 10 for H330 (2 + 4 HDDs in pairs) | B41: 1 | C41: [780-BBJQ] | D41: =IF($B$7+$B$8-$G$7=6,A41,"") ->  | E41: =IF($B$7+$B$8-$G$7=6,C41,"") ->  | F41: =IF($B$18-$G$18=6,A41,"") ->  | G41: =IF($B$18-$G$18=6,C41,"") ->  | H41: =IF($C$7+$C$8-I7=6,$A$41,"") ->  | I41: =IF($C$7+$C$8-I7=6,$C$41,"") ->  | J41: =IF($C$18-I18=6,A41,"") ->  | K41: =IF($C$18-I18=6,$C$41,"") ->  | L41: =IF($D$7+$D$8-M7=6,$A$41,"") ->  | M41: =IF($D$7+$D$8-M7=6,$C$41,"") ->  | N41: =IF($D$18-K18=6,A41,"") ->  | O41: =IF($D$18-K18=6,$C$41,"") -> 
A43: R730xd
A44: 300GB 10K RPM SAS 12Gbps 2.5in Hot-plug Hard Drive,CusKit | C44: 10L1-HDD300GB | D44: S10L1-R730xd-HDD300 | E44: [400-AJOQ] | F44: 140
A45: 1TB 7.2K RPM NLSAS 6Gbps 2.5in Hot-plug Hard Drive,13G,CusKit | C45: 10L1-HDD1TB | D45: S10L1-R730xd-HDD1000 | E45: [400-AEFF] | F45: 296
B46: ='Server10 Lotto1 R730xd'!$C$74 -> No | C46: ='Server10 Lotto1 R730xd 2'!$C$74 -> No | D46: ='Server10 Lotto1 R730xd 3'!$C$74 -> No
A47: HDD max | B47: 24 | C47: 24 | D47: 24
A48: HDD 300GB Base | B48: 2 | C48: 2 | D48: 2
A49: Hot Spare for 300GB HDD | B49: =IF(B46="Yes",1,0) -> 0 | C49: =IF(C46="Yes",1,0) -> 0 | D49: =IF(D46="Yes",1,0) -> 0
A50: HDD 300GB Selected | B50: ='Server10 Lotto1 R730xd'!$C$68 -> 0 | C50: ='Server10 Lotto1 R730xd 2'!$C$68 -> 0 | D50: ='Server10 Lotto1 R730xd 3'!$C$68 -> 0
A51: 300GB 10K RPM SAS 12Gbps 2.5in Hot-plug Hard Drive,CusKit | B51: 0 | C51: 0 | D51: 0
B52: 1 | C52: 1 | D52: 1
B53: 2 | C53: 2 | D53: 2
B54: 3 | C54: 3 | D54: 3
B55: 4 | C55: 4 | D55: 4
B56: 5 | C56: 5 | D56: 5
B57: 6 | C57: 6 | D57: 6
B58: 7 | C58: 7 | D58: 7
B59: 8 | C59: 8 | D59: 8
B60: 9 | C60: 9 | D60: 9
B61: 10 | C61: 10 | D61: 10
B62: 11 | C62: 11 | D62: 11
B63: 12 | C63: 12 | D63: 12
B64: 13 | C64: 13 | D64: 13
B65: 14 | C65: 14 | D65: 14
B66: 15 | C66: 15 | D66: 15
B67: 16 | C67: 16 | D67: 16
B68: 17 | C68: 17 | D68: 17
B69: 18 | C69: 18 | D69: 18
B70: 19 | C70: 19 | D70: 19
B71: 20 | C71: 20 | D71: 20
B72: 21 | C72: 21 | D72: 21
B73: 22 | C73: 22 | D73: 22
B80: ='Server10 Lotto1 R730xd'!$C$78 -> No | C80: ='Server10 Lotto1 R730xd 2'!$C$78 -> No | D80: ='Server10 Lotto1 R730xd 3'!$C$78 -> No
A81: HDD max | B81: 24 | C81: 24 | D81: 24
A82: HDD 300GB | B82: =B48+B50 -> 2 | C82: =C48+C50 -> 2 | D82: =D48+D50 -> 2
A83: Hot Spare for 1TB HDD | B83: =IF(B80="Yes",1,0) -> 0 | C83: =IF(C80="Yes",1,0) -> 0 | D83: =IF(D80="Yes",1,0) -> 0
A84: HDD 1TB Selected | B84: ='Server10 Lotto1 R730xd'!$C$70 -> 0 | C84: ='Server10 Lotto1 R730xd 2'!$C$70 -> 0 | D84: ='Server10 Lotto1 R730xd 3'!$C$70 -> 0
A85: 1TB 7.2K RPM NLSAS 6Gbps 2.5in Hot-plug Hard Drive,13G,CusKit | B85: =$B$81-$B$82-$B$84 -> 22 | C85: =$C$81-$C$82-$C$84 -> 22 | D85: =$D$81-$D$82-$D$84 -> 22
B86: =IF(B85-1<1,0,B85-1) -> 21 | C86: 21 | D86: =IF(D85-1<1,0,D85-1) -> 21
B87: 20 | C87: 20 | D87: =IF(D86-1<1,0,D86-1) -> 20
B88: 19 | C88: 19 | D88: =IF(D87-1<1,0,D87-1) -> 19
B89: 18 | C89: 18 | D89: =IF(D88-1<1,0,D88-1) -> 18
B90: 17 | C90: 17 | D90: =IF(D89-1<1,0,D89-1) -> 17
B91: 16 | C91: 16 | D91: =IF(D90-1<1,0,D90-1) -> 16
B92: 15 | C92: 15 | D92: =IF(D91-1<1,0,D91-1) -> 15
B93: 14 | C93: 14 | D93: =IF(D92-1<1,0,D92-1) -> 14
B94: =IF(B93-1<1,0,B93-1) -> 13 | C94: 13 | D94: =IF(D93-1<1,0,D93-1) -> 13
B95: 12 | C95: 12 | D95: =IF(D94-1<1,0,D94-1) -> 12
B96: 11 | C96: 11 | D96: =IF(D95-1<1,0,D95-1) -> 11
B97: 10 | C97: 10 | D97: =IF(D96-1<1,0,D96-1) -> 10
B98: 9 | C98: 9 | D98: =IF(D97-1<1,0,D97-1) -> 9
B99: 8 | C99: 8 | D99: =IF(D98-1<1,0,D98-1) -> 8
B100: 7 | C100: 7 | D100: =IF(D99-1<1,0,D99-1) -> 7
B101: 6 | C101: 6 | D101: =IF(D100-1<1,0,D100-1) -> 6
B102: 5 | C102: 5 | D102: =IF(D101-1<1,0,D101-1) -> 5
B103: 4 | C103: 4 | D103: =IF(D102-1<1,0,D102-1) -> 4
B104: 3 | C104: 3 | D104: =IF(D103-1<1,0,D103-1) -> 3
B105: 2 | C105: 2 | D105: =IF(D104-1<1,0,D104-1) -> 2
B106: 1 | C106: 1 | D106: =IF(D105-1<1,0,D105-1) -> 1
B107: 0 | C107: 0 | D107: =IF(D106-1<1,0,D106-1) -> 0
A117: RAID Configuration | D117: HDD 300GB R730xd | F117: HDD 1TB R730xd | H117: HDD 300GB R730xd 2 | J117: HDD 1TB R730xd 2 | L117: HDD 300GB R730xd 3 | N117: HDD 1TB R730xd 3
A118: RAID Personalizzato | B118: =IF($B$134<=8,0,"") -> 0 | C118: [780-BBJC] | D118: RAID Personalizzato | E118: [780-BBJC] | F118: RAID Personalizzato | G118: [780-BBJC] | H118: RAID Personalizzato | I118: [780-BBJC] | J118: RAID Personalizzato | K118: [780-BBJC] | L118: RAID Personalizzato | M118: [780-BBJC] | N118: RAID Personalizzato | O118: [780-BBJC]
A119: C10 - Unconfigured RAID for H330 (1-8 HDDs) | B119: 1 | C119: [780-BBJD] | D119: =IF($B$49=0,A119,"") -> C10 - Unconfigured RAID for H330 (1-8 HDDs) | E119: =IF($B$49=0,C119,"") -> [780-BBJD] | F119: =IF($B$83=0,A119,"") -> C10 - Unconfigured RAID for H330 (1-8 HDDs) | G119: =IF($B$83=0,C119,"") -> [780-BBJD] | H119: =IF($C$49=0,A119,"") -> C10 - Unconfigured RAID for H330 (1-8 HDDs) | I119: =IF($C$49=0,C119,"") -> [780-BBJD] | J119: =IF($C$83=0,A119,"") -> C10 - Unconfigured RAID for H330 (1-8 HDDs) | K119: =IF($C$83=0,C119,"") -> [780-BBJD] | L119: =IF($D$49=0,A119,"") -> C10 - Unconfigured RAID for H330 (1-8 HDDs) | M119: =IF($D$49=0,C119,"") -> [780-BBJD] | N119: =IF($D$83=0,A119,"") -> C10 - Unconfigured RAID for H330 (1-8 HDDs) | O119: =IF($D$83=0,C119,"") -> [780-BBJD]
A120: C2 - RAID 0 for H330 (1-8 HDDs) | B120: 1 | C120: [780-BBJF] | D120: =IF($B$49=0,A120,"") -> C2 - RAID 0 for H330 (1-8 HDDs) | E120: =IF($B$49=0,C120,"") -> [780-BBJF] | F120: =IF($B$83=0,A120,"") -> C2 - RAID 0 for H330 (1-8 HDDs) | G120: =IF($B$83=0,C120,"") -> [780-BBJF] | H120: =IF($C$49=0,A120,"") -> C2 - RAID 0 for H330 (1-8 HDDs) | I120: =IF($C$49=0,C120,"") -> [780-BBJF] | J120: =IF($C$83=0,A120,"") -> C2 - RAID 0 for H330 (1-8 HDDs) | K120: =IF($C$83=0,C120,"") -> [780-BBJF] | L120: =IF($D$49=0,A120,"") -> C2 - RAID 0 for H330 (1-8 HDDs) | M120: =IF($D$49=0,C120,"") -> [780-BBJF] | N120: =IF($D$83=0,A120,"") -> C2 - RAID 0 for H330 (1-8 HDDs) | O120: =IF($D$83=0,C120,"") -> [780-BBJF]
A121: C3 - RAID 1 for H330 (2 HDDs) | B121: 1 | C121: [780-BBJK] | D121: =IF($B$48+$B$50-$B$49=2,A121,"") -> C3 - RAID 1 for H330 (2 HDDs) | E121: =IF($B$48+$B$50-$B$49=2,C121,"") -> [780-BBJK] | F121: =IF($B$84-$B$83=2,A121,"") ->  | G121: =IF($B$84-$B$83=2,C121,"") ->  | H121: =IF($C$48+$C$50-$C$49=2,A121,"") -> C3 - RAID 1 for H330 (2 HDDs) | I121: =IF($C$48+$C$50-$C$49=2,C121,"") -> [780-BBJK] | J121: =IF($C$84-$C$83=2,A121,"") ->  | K121: =IF($C$84-$C$83=2,C121,"") ->  | L121: =IF($D$48+$D$50-$D$49=2,A121,"") -> C3 - RAID 1 for H330 (2 HDDs) | M121: =IF($D$48+$D$50-$D$49=2,C121,"") -> [780-BBJK] | N121: =IF($D$84-$D$83=2,A121,"") ->  | O121: =IF($D$84-$D$83=2,C121,"") -> 
A122: C4 - RAID 5 for H330 (3-8 HDDs) | B122: 1 | C122: [780-BBJL] | D122: =IF($B$48+$B$50-$B$49>=3,A122,"") ->  | E122: =IF($B$48+$B$50-$B$49>=3,C122,"") ->  | F122: =IF($B$84-$B$83>=3,A122,"") ->  | G122: =IF($B$84-$B$83>=3,C122,"") ->  | H122: =IF($C$48+$C$50-$C$49>=3,A122,"") ->  | I122: =IF($C$48+$C$50-$C$49>=3,C122,"") ->  | J122: =IF($C$84-$C$83>=3,A122,"") ->  | K122: =IF($C$84-$C$83>=3,C122,"") ->  | L122: =IF($D$48+$D$50-$D$49>=3,A122,"") ->  | M122: =IF($D$48+$D$50-$D$49>=3,C122,"") ->  | N122: =IF($D$84-$D$83>=3,A122,"") ->  | O122: =IF($D$84-$D$83>=3,C122,"") -> 
A123: C6 - RAID 10 forH330 (4-8 HDDs in pairs) | B123: 1 | C123: [780-BBJN] | D123: =IF($B$48+$B$50-$B$49=4,A123,"") ->  | E123: =IF($B$48+$B$50-$B$49=4,C123,"") ->  | F123: =IF($B$84-$B$83=4,A123,"") ->  | G123: =IF($B$84-$B$83=4,C123,"") ->  | H123: =IF($C$48+$C$50-$C$49=4,A123,"") ->  | I123: =IF($C$48+$C$50-$C$49=4,C123,"") ->  | J123: =IF($C$84-$C$83=4,A123,"") ->  | K123: =IF($C$84-$C$83=4,C123,"") ->  | L123: =IF($D$48+$D$50-$D$49=4,A123,"") ->  | M123: =IF($D$48+$D$50-$D$49=4,C123,"") ->  | N123: =IF($D$84-$D$83=4,A123,"") ->  | O123: =IF($D$84-$D$83=4,C123,"") -> 
A124: C7 - RAID 1+RAID 1 for H330 (2 + 2 HDDs) | B124: 1 | C124: [780-BBJO] | D124: =IF($B$48+$B$50-$B$49=4,A124,"") ->  | E124: =IF($B$48+$B$50-$B$49=4,C124,"") ->  | F124: =IF($B$84-$B$83=4,A124,"") ->  | G124: =IF($B$84-$B$83=4,C124,"") ->  | H124: =IF($C$48+$C$50-$C$49=4,A124,"") ->  | I124: =IF($C$48+$C$50-$C$49=4,C124,"") ->  | J124: =IF($C$84-$C$83=4,A124,"") ->  | K124: =IF($C$84-$C$83=4,C124,"") ->  | L124: =IF($D$48+$D$50-$D$49=4,A124,"") ->  | M124: =IF($D$48+$D$50-$D$49=4,C124,"") ->  | N124: =IF($D$84-$D$83=4,A124,"") ->  | O124: =IF($D$84-$D$83=4,C124,"") -> 
A125: C8 - RAID 1+RAID 5 for H330 (2 + 3-8 HDDs) | B125: 1 | C125: [780-BBJP] | D125: =IF($B$48+$B$50-$B$49>=5,A125,"") ->  | E125: =IF($B$48+$B$50-$B$49>=5,C125,"") ->  | F125: =IF($B$84-$B$83>=5,A125,"") ->  | G125: =IF($B$84-$B$83>=5,C125,"") ->  | H125: =IF($C$48+$C$50-$C$49>=5,A125,"") ->  | I125: =IF($C$48+$C$50-$C$49>=5,C125,"") ->  | J125: =IF($C$84-$C$83>=5,A125,"") ->  | K125: =IF($C$84-$C$83>=5,C125,"") ->  | L125: =IF($D$48+$D$50-$D$49>=5,A125,"") ->  | M125: =IF($D$48+$D$50-$D$49>=5,C125,"") ->  | N125: =IF($D$84-$D$83>=5,A125,"") ->  | O125: =IF($D$84-$D$83>=5,C125,"") -> 
A126: C9 - RAID 1+RAID 10 for H330 (2 + 4 HDDs in pairs) | B126: 1 | C126: [780-BBJQ] | D126: =IF($B$48+$B$50-$B$49=6,A126,"") ->  | E126: =IF($B$48+$B$50-$B$49=6,C126,"") ->  | F126: =IF($B$84-$B$83=6,A126,"") ->  | G126: =IF($B$84-$B$83=6,C126,"") ->  | H126: =IF($C$48+$C$50-$C$49=6,A126,"") ->  | I126: =IF($C$48+$C$50-$C$49=6,C126,"") ->  | J126: =IF($C$84-$C$83=6,A126,"") ->  | K126: =IF($C$84-$C$83=6,C126,"") ->  | L126: =IF($D$48+$D$50-$D$49=6,A126,"") ->  | M126: =IF($D$48+$D$50-$D$49=6,C126,"") ->  | N126: =IF($D$84-$D$83=6,A126,"") ->  | O126: =IF($D$84-$D$83=6,C126,"") -> 
A133: T630
A134: 300GB 10K RPM SAS 12Gbps 2.5in Hot-plug Hard Drive,CusKit | C134: 10L1-HDD300GB-T | D134: S10L1-T630-HDD300 | E134: [400-AJOQ] | F134: 91
A135: 1TB 7.2K RPM NLSAS 6Gbps 2.5in Hot-plug Hard Drive,13G,CusKit | C135: 10L1-HDD1TB | D135: S10L1-T630-HDD1000 | E135: [400-AEFF] | F135: 296
A137: HDD max | B137: 32
A138: HDD 300GB Base | B138: 2
A139: HDD 300GB Selected | B139: ='Server10 Lotto1 T630'!C64 -> 0
A140: 300GB 10K RPM SAS 12Gbps 2.5in Hot-plug Hard Drive,CusKit | B140: 0 | D140: Hot Spare for 300GB HDD | E140: ='Server10 Lotto1 T630'!C70 -> No | F140: =IF(E140="Yes",1,0) -> 0
B141: 1
B142: 2
B143: 3
B144: 4
B145: 5
B146: 6
B147: 7
B148: 8
B149: 9
B150: 10
B151: 11
B152: 12
B153: 13
B154: 14
B155: 15
B156: 16
B157: 17
B158: 18
B159: 19
B160: 20
B161: 21
B162: 22
B163: 23
B164: 24
B165: 25
B166: 26
B167: 27
B168: 28
B169: 29
B170: 30
A171: HDD max | B171: 32
A172: HDD 300GB | B172: =B138+B139 -> 2
A173: HDD 1TB Selected | B173: ='Server10 Lotto1 T630'!C66 -> 0 | D173: Hot Spare for 1TB HDD | E173: ='Server10 Lotto1 T630'!C74 -> No | F173: =IF(E173="Yes",1,0) -> 0
A174: 1TB 7.2K RPM NLSAS 6Gbps 2.5in Hot-plug Hard Drive,13G,CusKit | B174: =$B$171-$B$172-$B$173 -> 30
B175: =IF(B174-1<1,0,B174-1) -> 29
B176: 28
B177: 27
B178: 26
B179: 25
B180: 24
B181: 23
B182: 22
B183: =IF(B182-1<1,0,B182-1) -> 21
B184: 20
B185: 19
B186: 18
B187: 17
B188: 16
B189: 15
B190: 14
B191: 13
B192: 12
B193: 11
B194: 10
B195: 9
B196: 8
B197: 7
B198: 6
B199: 5
B200: 4
B201: 3
B202: 2
B203: 1
B204: 0
A206: RAID Configuration | D206: HDD 300GB | F206: HDD 1TB
A207: RAID Personalizzato | B207: =IF($B$134<=8,0,"") -> 0 | C207: [780-BBJC] | D207: RAID Personalizzato | E207: [780-BBJC] | F207: RAID Personalizzato | G207: [780-BBJC]
A208: C10 - Unconfigured RAID for H330 (1-8 HDDs) | B208: 1 | C208: [780-BBJD] | D208: =IF($F$140=0,A208,"") -> C10 - Unconfigured RAID for H330 (1-8 HDDs) | E208: =IF($F$140=0,C208,"") -> [780-BBJD] | F208: =IF($F$173=0,A208,"") -> C10 - Unconfigured RAID for H330 (1-8 HDDs) | G208: =IF($F$173=0,C208,"") -> [780-BBJD]
A209: C2 - RAID 0 for H330 (1-8 HDDs) | B209: 1 | C209: [780-BBJF] | D209: =IF($F$140=0,A209,"") -> C2 - RAID 0 for H330 (1-8 HDDs) | E209: =IF($F$140=0,C209,"") -> [780-BBJF] | F209: =IF($F$173=0,A209,"") -> C2 - RAID 0 for H330 (1-8 HDDs) | G209: =IF($F$173=0,C209,"") -> [780-BBJF]
A210: C3 - RAID 1 for H330 (2 HDDs) | B210: 1 | C210: [780-BBJK] | D210: =IF($B$138+$B$139-$F$140=2,A210,"") -> C3 - RAID 1 for H330 (2 HDDs) | E210: =IF($B$138+$B$139-$F$140=2,C210,"") -> [780-BBJK] | F210: =IF($B$173-$F$173=2,A210,"") ->  | G210: =IF($B$173-$F$173=2,C210,"") -> 
A211: C4 - RAID 5 for H330 (3-8 HDDs) | B211: 1 | C211: [780-BBJL] | D211: =IF($B$138+$B$139-$F$140>=3,A211,"") ->  | E211: =IF($B$138+$B$139-$F$140>=3,C211,"") ->  | F211: =IF($B$173-$F$173>=3,A211,"") ->  | G211: =IF($B$173-$F$173>=3,C211,"") -> 
A212: C6 - RAID 10 forH330 (4-8 HDDs in pairs) | B212: 1 | C212: [780-BBJN] | D212: =IF($B$138+$B$139-$F$140=4,A212,"") ->  | E212: =IF($B$138+$B$139-$F$140=4,C212,"") ->  | F212: =IF($B$173-$F$173=4,A212,"") ->  | G212: =IF($B$173-$F$173=4,C212,"") -> 
A213: C7 - RAID 1+RAID 1 for H330 (2 + 2 HDDs) | B213: 1 | C213: [780-BBJO] | D213: =IF($B$138+$B$139-$F$140=4,A213,"") ->  | E213: =IF($B$138+$B$139-$F$140=4,C213,"") ->  | F213: =IF($B$173-$F$173=4,A213,"") ->  | G213: =IF($B$173-$F$173=4,C213,"") -> 
A214: C8 - RAID 1+RAID 5 for H330 (2 + 3-8 HDDs) | B214: 1 | C214: [780-BBJP] | D214: =IF($B$138+$B$139-$F$140>=5,A214,"") ->  | E214: =IF($B$138+$B$139-$F$140>=5,C214,"") ->  | F214: =IF($B$173-$F$173>=5,A214,"") ->  | G214: =IF($B$173-$F$173>=5,C214,"") -> 
A215: C9 - RAID 1+RAID 10 for H330 (2 + 4 HDDs in pairs) | B215: 1 | C215: [780-BBJQ] | D215: =IF($B$138+$B$139-$F$140=6,A215,"") ->  | E215: =IF($B$138+$B$139-$F$140=6,C215,"") ->  | F215: =IF($B$173-$F$173=6,A215,"") ->  | G215: =IF($B$173-$F$173=6,C215,"") -> 

Sheet PCI (hidden)
A1: Additional Card for PCIe Slot 1 (Low Profile)
A2: R630
A3: None | B3: ="" ->  | C3: ="" ->  | D3: ="" ->  | E3: ="" ->  | F3: ="" ->  | G3: ="" ->  | H3: 0 | I3: ="" -> 
A4: Broadcom 5720 DP 1Gb Network Interface Card, Low Profile,CusKit | B4: 1 | C4: 10L1-LAN1GB-LP | D4: S10L1-R630-LAN1-LP | E4: [540-BBGW] | F4: 35 | H4: 0
A5: QLogic 57810 Dual Port 10Gb Direct Attach/SFP+ Converged Network Adapter (CNA), Low Profile,CusKit | B5: 1 | C5: 10L1-CNA10-LP | D5: S10L1-R630-CNA10-LP | E5: [540-BBCV] | F5: 774 | G5: PowerEdge SFP+, 10GbE SR/SX, Optical Tranceiver, LC Connector, for Intel and Broadcom,CusKit | H5: 2 | I5: [407-BBOK]
A6: Qlogic 2562 Dual Channel 8Gb Optical Fibre Channel HBA PCIe, Low Profile,CusKit | B6: 1 | C6: 10L1-FC-LP-U | D6: S10L1-R630-FC-LP-U | E6: [406-BBEL] | F6: 940 | H6: 0
A7: QLogic 57810 Dual Port 10Gb Direct Attach/SFP+ Low Profile Network Adapter,CusKit | B7: 1 | C7: 10L1-LAN10GB-LP | D7: S10L1-R630-LAN10-LP | E7: [540-BBDX] | F7: 417 | G7: PowerEdge SFP+, 10GbE SR/SX, Optical Tranceiver, LC Connector, for Intel and Broadcom,CusKit | H7: 2 | I7: [407-BBOK]
A9: Additional Card for PCIe Slot 2 (Full height)
A10: R630
A11: None | B11: ="" ->  | C11: ="" ->  | D11: ="" ->  | E11: ="" ->  | F11: ="" ->  | G11: ="" ->  | H11: 0 | I11: ="" -> 
A12: Broadcom 5720 DP 1Gb Network Interface Card,Full Height,CusKit | B12: 1 | C12: 10L1-LAN1GB | D12: S10L1-R630-LAN1 | E12: [540-BBGY] | F12: 35 | H12: 0
A13: QLogic 57810 Dual Port 10Gb Direct Attach/SFP+ Converged Network Adapter (CNA),Full Height,CusKit | B13: 1 | C13: 10L1-CNA10 | D13: S10L1-R630-CNA10 | E13: [540-BBCV] | F13: 774 | G13: PowerEdge SFP+, 10GbE SR/SX, Optical Tranceiver, LC Connector, for Intel and Broadcom,CusKit | H13: 2 | I13: [407-BBOK]
A14: QLogic 2562, Dual Port 8Gb Optical Fibre Channel HBA,Full Height,CusKit | B14: 1 | C14: 10L1-FC-U | D14: S10L1-R630-FC-U | E14: [406-BBEK] | F14: 940 | H14: 0
A15: QLogic 57810 Dual Port 10Gb Direct Attach/SFP+ Network Adapter,Full Height,CusKit | B15: 1 | C15: 10L1-LAN10GB | D15: S10L1-R630-LAN10 | E15: [540-BBGS] | F15: 417 | G15: PowerEdge SFP+, 10GbE SR/SX, Optical Tranceiver, LC Connector, for Intel and Broadcom,CusKit | H15: 2 | I15: [407-BBOK]
A18: Additional Card for PCIe Slot 6 (Full height) (CPU 1)
A19: R730xd
A20: None | B20: ="" ->  | C20: ="" ->  | D20: ="" ->  | E20: ="" ->  | F20: ="" ->  | G20: ="" ->  | H20: 0 | I20: ="" -> 
A21: Broadcom 5720 DP 1Gb Network Interface Card,Full Height,CusKit | B21: 1 | C21: 10L1-LAN1GB | D21: S10L1-R730xd-LAN1 | E21: [540-BBGY] | F21: 35 | H21: 0
A22: QLogic 57810 Dual Port 10Gb Direct Attach/SFP+ Converged Network Adapter (CNA),Full Height,CusKit | B22: 1 | C22: 10L1-CNA10 | D22: S10L1-R730xd-CNA10 | E22: [540-BBCV] | F22: 774 | G22: PowerEdge SFP+, 10GbE SR/SX, Optical Tranceiver, LC Connector, for Intel and Broadcom,CusKit | H22: 2 | I22: [407-BBOK]
A23: QLogic 2562, Dual Port 8Gb Optical Fibre Channel HBA,Full Height,CusKit | B23: 1 | C23: 10L1-FC-U | D23: S10L1-R730xd-FC | E23: [406-BBEK] | F23: 940 | H23: 0
A24: QLogic 57810 Dual Port 10Gb Direct Attach/SFP+ Network Adapter,Full Height,CusKit | B24: 1 | C24: 10L1-LAN10GB | D24: S10L1-R730xd-LAN10 | E24: [540-BBGS] | F24: 417 | G24: PowerEdge SFP+, 10GbE SR/SX, Optical Tranceiver, LC Connector, for Intel and Broadcom,CusKit | H24: 2 | I24: [407-BBOK]
A26: Additional Card for PCIe Slot 5 (Full height) (CPU 1)
A27: R730xd
A28: None | B28: ="" ->  | C28: ="" ->  | D28: ="" ->  | E28: ="" ->  | F28: ="" ->  | G28: ="" ->  | H28: 0 | I28: ="" -> 
A29: Broadcom 5720 DP 1Gb Network Interface Card,Full Height,CusKit | B29: 1 | C29: 10L1-LAN1GB | D29: S10L1-R730xd-LAN1 | E29: [540-BBGY] | F29: 35 | H29: 0
A30: QLogic 57810 Dual Port 10Gb Direct Attach/SFP+ Converged Network Adapter (CNA),Full Height,CusKit | B30: 1 | C30: 10L1-CNA10 | D30: S10L1-R730xd-CNA10 | E30: [540-BBCV] | F30: 774 | G30: PowerEdge SFP+, 10GbE SR/SX, Optical Tranceiver, LC Connector, for Intel and Broadcom,CusKit | H30: 2 | I30: [407-BBOK]
A31: QLogic 2562, Dual Port 8Gb Optical Fibre Channel HBA,Full Height,CusKit | B31: 1 | C31: 10L1-FC-U | D31: S10L1-R730xd-FC-U | E31: [406-BBEK] | F31: 940 | H31: 0
A32: QLogic 57810 Dual Port 10Gb Direct Attach/SFP+ Network Adapter,Full Height,CusKit | B32: 1 | C32: 10L1-LAN10GB | D32: S10L1-R730xd-LAN10 | E32: [540-BBGS] | F32: 417 | G32: PowerEdge SFP+, 10GbE SR/SX, Optical Tranceiver, LC Connector, for Intel and Broadcom,CusKit | H32: 2 | I32: [407-BBOK]
A34: Additional Card for PCIe Slot 4 (Full height) (CPU 1)
A35: R730xd
A36: None | B36: ="" ->  | C36: ="" ->  | D36: ="" ->  | E36: ="" ->  | F36: ="" ->  | G36: Aggiungere Secondo Processore | H36: ="" ->  | I36: 0 | J36: ="" -> 
A37: Broadcom 5720 DP 1Gb Network Interface Card,Full Height,CusKit | B37: 1 | C37: 10L1-LAN1GB | D37: S10L1-R730xd-LAN1 | E37: [540-BBGY] | F37: 35 | G37: Aggiungere Secondo Processore | H37: ="" ->  | I37: 0
A38: QLogic 57810 Dual Port 10Gb Direct Attach/SFP+ Converged Network Adapter (CNA),Full Height,CusKit | B38: 1 | C38: 10L1-CNA10 | D38: S10L1-R730xd-CNA10 | E38: [540-BBCV] | F38: 774 | G38: Aggiungere Secondo Processore | H38: PowerEdge SFP+, 10GbE SR/SX, Optical Tranceiver, LC Connector, for Intel and Broadcom,CusKit | I38: 2 | J38: [407-BBOK]
A39: QLogic 2562, Dual Port 8Gb Optical Fibre Channel HBA,Full Height,CusKit | B39: 1 | C39: 10L1-FC-U | D39: S10L1-R730xd-FC-U | E39: [406-BBEK] | F39: 940 | G39: Aggiungere Secondo Processore | H39: ="" ->  | I39: 0 | J39: ="" -> 
A40: QLogic 57810 Dual Port 10Gb Direct Attach/SFP+ Network Adapter,Full Height,CusKit | B40: 1 | C40: 10L1-LAN10GB | D40: S10L1-R730xd-LAN10 | E40: [540-BBGS] | F40: 417 | G40: Aggiungere Secondo Processore | H40: PowerEdge SFP+, 10GbE SR/SX, Optical Tranceiver, LC Connector, for Intel and Broadcom,CusKit | I40: 2 | J40: [407-BBOK]
A42: Additional Card for PCIe Slot 3 (Low Profile) (CPU 2)
A43: R730xd
A44: None | B44: ="" ->  | C44: ="" ->  | D44: ="" ->  | E44: ="" ->  | F44: ="" ->  | G44: Aggiungere Secondo Processore | H44: ="" ->  | I44: 0 | J44: ="" -> 
A45: Broadcom 5720 DP 1Gb Network Interface Card, Low Profile,CusKit | B45: 1 | C45: 10L1-LAN1GB-LP | D45: S10L1-R730xd-LAN1-LP | E45: [540-BBGW] | F45: 35 | G45: Aggiungere Secondo Processore | I45: 0
A46: QLogic 57810 Dual Port 10Gb Direct Attach/SFP+ Converged Network Adapter (CNA), Low Profile,CusKit | B46: 1 | C46: 10L1-CNA10-LP | D46: S10L1-R730xd-CNA10-LP | E46: [540-BBCV] | F46: 774 | G46: Aggiungere Secondo Processore | H46: PowerEdge SFP+, 10GbE SR/SX, Optical Tranceiver, LC Connector, for Intel and Broadcom,CusKit | I46: 2 | J46: [407-BBOK]
A47: Qlogic 2562 Dual Channel 8Gb Optical Fibre Channel HBA PCIe, Low Profile,CusKit | B47: 1 | C47: 10L1-FC-LP-U | D47: S10L1-R730xd-FC-LP-U | E47: [406-BBEL] | F47: 940 | G47: Aggiungere Secondo Processore | I47: 0
A48: QLogic 57810 Dual Port 10Gb Direct Attach/SFP+ Low Profile Network Adapter,CusKit | B48: 1 | C48: 10L1-LAN10GB-LP | D48: S10L1-R730xd-LAN10-LP | E48: [540-BBDX] | F48: 417 | G48: Aggiungere Secondo Processore | H48: PowerEdge SFP+, 10GbE SR/SX, Optical Tranceiver, LC Connector, for Intel and Broadcom,CusKit | I48: 2 | J48: [407-BBOK]
A50: Additional Card for PCIe Slot 2 (Low Profile) (CPU 2)
A51: R730xd
A52: None | B52: ="" ->  | C52: ="" ->  | D52: ="" ->  | E52: ="" ->  | F52: ="" ->  | G52: Aggiungere Secondo Processore | H52: ="" ->  | I52: 0 | J52: ="" -> 
A53: Broadcom 5720 DP 1Gb Network Interface Card, Low Profile,CusKit | B53: 1 | C53: 10L1-LAN1GB-LP | D53: S10L1-R730xd-LAN1-LP | E53: [540-BBGW] | F53: 35 | G53: Aggiungere Secondo Processore | I53: 0
A54: QLogic 57810 Dual Port 10Gb Direct Attach/SFP+ Converged Network Adapter (CNA), Low Profile,CusKit | B54: 1 | C54: 10L1-CNA10-LP | D54: S10L1-R730xd-CNA10-LP | E54: [540-BBCV] | F54: 774 | G54: Aggiungere Secondo Processore | H54: PowerEdge SFP+, 10GbE SR/SX, Optical Tranceiver, LC Connector, for Intel and Broadcom,CusKit | I54: 2 | J54: [407-BBOK]
A55: Qlogic 2562 Dual Channel 8Gb Optical Fibre Channel HBA PCIe, Low Profile,CusKit | B55: 1 | C55: 10L1-FC-LP-U | D55: S10L1-R730xd-FC-LP-U | E55: [406-BBEL] | F55: 940 | G55: Aggiungere Secondo Processore | I55: 0
A56: QLogic 57810 Dual Port 10Gb Direct Attach/SFP+ Low Profile Network Adapter,CusKit | B56: 1 | C56: 10L1-LAN10GB-LP | D56: S10L1-R730xd-LAN10-LP | E56: [540-BBDX] | F56: 417 | G56: Aggiungere Secondo Processore | H56: PowerEdge SFP+, 10GbE SR/SX, Optical Tranceiver, LC Connector, for Intel and Broadcom,CusKit | I56: 2 | J56: [407-BBOK]
A58: Additional Card for PCIe Slot 1 (Low Profile) (CPU 2)
A59: R730xd
A60: None | B60: ="" ->  | C60: ="" ->  | D60: ="" ->  | E60: ="" ->  | F60: ="" ->  | G60: Aggiungere Secondo Processore | H60: ="" ->  | I60: 0 | J60: ="" -> 
A61: Broadcom 5720 DP 1Gb Network Interface Card, Low Profile,CusKit | B61: 1 | C61: 10L1-LAN1GB-LP | D61: S10L1-R730xd-LAN1-LP | E61: [540-BBGW] | F61: 35 | G61: Aggiungere Secondo Processore | I61: 0
A62: QLogic 57810 Dual Port 10Gb Direct Attach/SFP+ Converged Network Adapter (CNA), Low Profile,CusKit | B62: 1 | C62: 10L1-CNA10-LP | D62: S10L1-R730xd-CNA10-LP | E62: [540-BBCV] | F62: 774 | G62: Aggiungere Secondo Processore | H62: PowerEdge SFP+, 10GbE SR/SX, Optical Tranceiver, LC Connector, for Intel and Broadcom,CusKit | I62: 2 | J62: [407-BBOK]
A63: Qlogic 2562 Dual Channel 8Gb Optical Fibre Channel HBA PCIe, Low Profile,CusKit | B63: 1 | C63: 10L1-FC-LP-U | D63: S10L1-R730xd-FC-LP-U | E63: [406-BBEL] | F63: 940 | G63: Aggiungere Secondo Processore | I63: 0
A64: QLogic 57810 Dual Port 10Gb Direct Attach/SFP+ Low Profile Network Adapter,CusKit | B64: 1 | C64: 10L1-LAN10GB-LP | D64: S10L1-R730xd-LAN10-LP | E64: [540-BBDX] | F64: 417 | G64: Aggiungere Secondo Processore | H64: PowerEdge SFP+, 10GbE SR/SX, Optical Tranceiver, LC Connector, for Intel and Broadcom,CusKit | I64: 2 | J64: [407-BBOK]
A67: Additional Card for PCIe Slot 1 (Full height) (CPU1)
A68: T630
A69: None | B69: ="" ->  | C69: ="" ->  | D69: ="" ->  | E69: ="" ->  | F69: ="" ->  | G69: Aggiungere Secondo Processore | H69: ="" ->  | I69: 0 | J69: ="" -> 
A70: Broadcom 5720 DP 1Gb Network Interface Card,Full Height,CusKit | B70: 1 | C70: 10L1-LAN1GB | D70: S10L1-T630-LAN1 | E70: [540-BBGY] | F70: 35 | G70: Aggiungere Secondo Processore | I70: 0
A71: QLogic 2562, Dual Port 8Gb Optical Fibre Channel HBA,Full Height,CusKit | B71: 1 | C71: 10L1-FC-U | D71: S10L1-T630-FC-U | E71: [406-BBEK] | F71: 940 | G71: Aggiungere Secondo Processore | I71: 0
A72: QLogic 57810 Dual Port 10Gb Direct Attach/SFP+ Network Adapter,Full Height,CusKit | B72: 1 | C72: 10L1-LAN10GB | D72: S10L1-T630-LAN10 | E72: [540-BBGS] | F72: 417 | G72: Aggiungere Secondo Processore | H72: PowerEdge SFP+, 10GbE SR/SX, Optical Tranceiver, LC Connector, for Intel and Broadcom,CusKit | I72: 2 | J72: [407-BBOK]
A75: Additional Card for PCIe Slot 2 (Full height) (CPU1)
A76: T630
A77: None | B77: ="" ->  | C77: ="" ->  | D77: ="" ->  | E77: ="" ->  | F77: ="" ->  | G77: Aggiungere Secondo Processore | H77: ="" ->  | I77: 0 | J77: ="" -> 
A78: Broadcom 5720 DP 1Gb Network Interface Card,Full Height,CusKit | B78: 1 | C78: 10L1-LAN1GB | D78: S10L1-T630-LAN1 | E78: [540-BBGY] | F78: 35 | G78: Aggiungere Secondo Processore | I78: 0
A79: QLogic 2562, Dual Port 8Gb Optical Fibre Channel HBA,Full Height,CusKit | B79: 1 | C79: 10L1-FC-U | D79: S10L1-T630-FC-U | E79: [406-BBEK] | F79: 940 | G79: Aggiungere Secondo Processore | I79: 0
A80: QLogic 57810 Dual Port 10Gb Direct Attach/SFP+ Network Adapter,Full Height,CusKit | B80: 1 | C80: 10L1-LAN10GB | D80: S10L1-T630-LAN10 | E80: [540-BBGS] | F80: 417 | G80: Aggiungere Secondo Processore | H80: PowerEdge SFP+, 10GbE SR/SX, Optical Tranceiver, LC Connector, for Intel and Broadcom,CusKit | I80: 2 | J80: [407-BBOK]
A83: Additional Card for PCIe Slot 3 (Full height) (CPU2)
A84: T630
A85: None | B85: ="" ->  | C85: ="" ->  | D85: ="" ->  | E85: ="" ->  | F85: ="" ->  | G85: Aggiungere Secondo Processore | H85: ="" ->  | I85: 0 | J85: ="" -> 
A86: Broadcom 5720 DP 1Gb Network Interface Card,Full Height,CusKit | B86: 1 | C86: 10L1-LAN1GB | D86: S10L1-T630-LAN1 | E86: [540-BBGY] | F86: 35 | G86: Aggiungere Secondo Processore | I86: 0
A87: QLogic 2562, Dual Port 8Gb Optical Fibre Channel HBA,Full Height,CusKit | B87: 1 | C87: 10L1-FC-U | D87: S10L1-R630-FC-U | E87: [406-BBEK] | F87: 940 | G87: Aggiungere Secondo Processore | I87: 0
A88: QLogic 57810 Dual Port 10Gb Direct Attach/SFP+ Network Adapter,Full Height,CusKit | B88: 1 | C88: 10L1-LAN10GB | D88: S10L1-T630-LAN10 | E88: [540-BBGS] | F88: 417 | G88: Aggiungere Secondo Processore | H88: PowerEdge SFP+, 10GbE SR/SX, Optical Tranceiver, LC Connector, for Intel and Broadcom,CusKit | I88: 2 | J88: [407-BBOK]
A91: Additional Card for PCIe Slot 4 (Full height) (CPU2)
A92: T630
A93: None | B93: ="" ->  | C93: ="" ->  | D93: ="" ->  | E93: ="" ->  | F93: ="" ->  | G93: Aggiungere Secondo Processore | H93: ="" ->  | I93: 0 | J93: ="" -> 
A94: Broadcom 5720 DP 1Gb Network Interface Card,Full Height,CusKit | B94: 1 | C94: 10L1-LAN1GB | D94: S10L1-T630-LAN1 | E94: [540-BBGY] | F94: 35 | G94: Aggiungere Secondo Processore | I94: 0
A95: QLogic 2562, Dual Port 8Gb Optical Fibre Channel HBA,Full Height,CusKit | B95: 1 | C95: 10L1-FC-U | D95: S10L1-R630-FC-U | E95: [406-BBEK] | F95: 940 | G95: Aggiungere Secondo Processore | I95: 0
A96: QLogic 57810 Dual Port 10Gb Direct Attach/SFP+ Network Adapter,Full Height,CusKit | B96: 1 | C96: 10L1-LAN10GB | D96: S10L1-T630-LAN10 | E96: [540-BBGS] | F96: 417 | G96: Aggiungere Secondo Processore | H96: PowerEdge SFP+, 10GbE SR/SX, Optical Tranceiver, LC Connector, for Intel and Broadcom,CusKit | I96: 2 | J96: [407-BBOK]
A100: Additional Card for PCIe Slot 5 (Full height) (CPU2)
A101: T630
A102: None | B102: ="" ->  | C102: ="" ->  | D102: ="" ->  | E102: ="" ->  | F102: ="" ->  | G102: Aggiungere Secondo Processore | H102: ="" ->  | I102: 0 | J102: ="" -> 
A103: Broadcom 5720 DP 1Gb Network Interface Card,Full Height,CusKit | B103: 1 | C103: 10L1-LAN1GB | D103: S10L1-T630-LAN1 | E103: [540-BBGY] | F103: 35 | G103: Aggiungere Secondo Processore | I103: 0
A104: QLogic 2562, Dual Port 8Gb Optical Fibre Channel HBA,Full Height,CusKit | B104: 1 | C104: 10L1-FC-U | D104: S10L1-R630-FC-U | E104: [406-BBEK] | F104: 940 | G104: Aggiungere Secondo Processore | I104: 0
A105: QLogic 57810 Dual Port 10Gb Direct Attach/SFP+ Network Adapter,Full Height,CusKit | B105: 1 | C105: 10L1-LAN10GB | D105: S10L1-T630-LAN10 | E105: [540-BBGS] | F105: 417 | G105: Aggiungere Secondo Processore | H105: PowerEdge SFP+, 10GbE SR/SX, Optical Tranceiver, LC Connector, for Intel and Broadcom,CusKit | I105: 2 | J105: [407-BBOK]
A108: Additional Card for PCIe Slot 6 (Full height) (CPU2)
A109: T630
A110: None | B110: ="" ->  | C110: ="" ->  | D110: ="" ->  | E110: ="" ->  | F110: ="" ->  | G110: Aggiungere Secondo Processore | H110: ="" ->  | I110: 0 | J110: ="" -> 
A111: Broadcom 5720 DP 1Gb Network Interface Card,Full Height,CusKit | B111: 1 | C111: 10L1-LAN1GB | D111: S10L1-T630-LAN1 | E111: [540-BBGY] | F111: 35 | G111: Aggiungere Secondo Processore | I111: 0
A112: QLogic 2562, Dual Port 8Gb Optical Fibre Channel HBA,Full Height,CusKit | B112: 1 | C112: 10L1-FC-U | D112: S10L1-T630-FC-U | E112: [406-BBEK] | F112: 940 | G112: Aggiungere Secondo Processore | I112: 0
A113: QLogic 57810 Dual Port 10Gb Direct Attach/SFP+ Network Adapter,Full Height,CusKit | B113: 1 | C113: 10L1-LAN10GB | D113: S10L1-T630-LAN10 | E113: [540-BBGS] | F113: 417 | G113: Aggiungere Secondo Processore | H113: PowerEdge SFP+, 10GbE SR/SX, Optical Tranceiver, LC Connector, for Intel and Broadcom,CusKit | I113: 2 | J113: [407-BBOK]
A116: Aggiungere Secondo Processore

Sheet Servizi Opzionali (hidden)
A1: Warranty Upgrades | G1: Protezione dei dati - Keep Your Hard Drive
A2: R630
A3: None | B3: ="" ->  | C3: ="" ->  | D3: ="" ->  | E3: ="" ->  | F3: ="" ->  | I3: =IF(($A$22=$A$12),"",IF($A$8=$A$3,I13,IF($A$8=$A$4,I14,IF($A$8=$A$5,I15)))) ->  | J3: =IF(($A$22=$A$12),"",IF($A$8=$A$3,J13,IF($A$8=$A$4,J14,IF($A$8=$A$5,J15)))) ->  | K3: =IF(($A$22=$A$12),"",IF($A$8=$A$3,K13,IF($A$8=$A$4,K14,IF($A$8=$A$5,K15)))) ->  | L3: =IF(($A$22=$A$12),"",IF($A$8=$A$3,L13,IF($A$8=$A$4,L14,IF($A$8=$A$5,L15)))) ->  | M3: =IF(($A$22=$A$12),"",IF($A$8=$A$3,M13,IF($A$8=$A$4,M14,IF($A$8=$A$5,M15)))) -> 
A4: 4Yr Warranty upgrade | B4: 1 | C4: 10L1-SO-12M-P | D4: S10L1-R630-S-12M | E4: ="" ->  | F4: 175
A5: 5Yr Warranty upgrade | B5: 1 | C5: 10L1-SO-24M-P | D5: S10L1-R630-S-24M | E5: ="" ->  | F5: 350
A7: Estensione Garanzia Selezionata
A8: ='Server10 Lotto1 R630'!$B$135 -> None | C8: R630
A9: ='Server10 Lotto1 R630 2'!$B$135 -> None | C9: R630 2
A10: ='Server10 Lotto1 R630 3'!$B$135 -> None | C10: R630 3
A12: None | B12: ="" ->  | C12: ="" ->  | D12: ="" ->  | E12: ="" ->  | F12: ="" ->  | H12: None
A13: =IF($A$8=$A$3,H13,IF($A$8=$A$4,H14,IF($A$8=$A$5,H15))) -> 3Yr Data Protection - Keep Your Hard Drive | B13: 1 | C13: 10L1-SO-HDD | D13: S10L1-R630-S-HDD | E13: =IF($A$8=$A$3,L13,IF($A$8=$A$4,L14,IF($A$8=$A$5,L15))) -> [733-10057] | F13: 150 | H13: 3Yr Data Protection - Keep Your Hard Drive | I13: 1 | J13: 10L1-SO-HDD | K13: S10L1-R630-S-HDD | L13: [733-10057] | M13: 150
A14: None | B14: ="" ->  | C14: ="" ->  | D14: ="" ->  | E14: ="" ->  | F14: ="" ->  | H14: 4Yr Data Protection - Keep Your Hard Drive | I14: =I13 -> 1 | J14: =J13 -> 10L1-SO-HDD | K14: =K13 -> S10L1-R630-S-HDD | L14: [733-10058] | M14: =M13 -> 150
A15: =IF(A9=A3,H13,IF(A9=A4,H14,IF(A9=A5,H15))) -> 3Yr Data Protection - Keep Your Hard Drive | B15: 1 | C15: 10L1-SO-HDD | D15: S10L1-R730xd-S-HDD | E15: =IF(A9=A3,L13,IF(A9=A4,L14,IF(A9=A5,L15))) -> [733-10057] | F15: 150 | H15: 5Yr Data Protection - Keep Your Hard Drive | I15: =I13 -> 1 | J15: =J13 -> 10L1-SO-HDD | K15: =K13 -> S10L1-R630-S-HDD | L15: [733-10059] | M15: =M13 -> 150
A16: None | B16: ="" ->  | C16: ="" ->  | D16: ="" ->  | E16: ="" ->  | F16: ="" -> 
A17: =IF(A10=A3,H13,IF(A10=A4,H14,IF(A10=A5,H15))) -> 3Yr Data Protection - Keep Your Hard Drive | B17: 1 | C17: 10L1-SO-HDD | D17: S10L1-R730xd-S-HDD | E17: =IF(A10=A3,L13,IF(A10=A4,L14,IF(A10=A5,L15))) -> [733-10057] | F17: 150
A21: Protezione dei dati Selezionata
A22: ='Server10 Lotto1 R630'!B138 -> None
A24: Servizio Specialistico di System and Network Management per sistema opertivo Windows, erogato on site. | B24: 1 | C24: 10L1-SO-WIN | D24: S10L1-R630-S-WIN | F24: 193
A25: Servizio Specialistico di System and Network Management per sistema opertivo Linux, erogato on site. | B25: 1 | C25: 10L1-SO-LINUX | D25: S10L1-R630-S-LINUX | F25: 193
A27: None | B27: ="" ->  | C27: ="" ->  | D27: ="" ->  | E27: ="" ->  | F27: ="" -> 
A28: =IF('Server10 Lotto1 R630'!$C$16>=5,H28,"None") -> None | B28: =IF('Server10 Lotto1 R630'!$C$16>=5,I28,"") ->  | C28: =IF('Server10 Lotto1 R630'!$C$16>=5,J28,"") ->  | D28: =IF('Server10 Lotto1 R630'!$C$16>=5,K28,"") ->  | E28: =IF('Server10 Lotto1 R630'!$C$16>=5,L28,"") ->  | F28: =IF('Server10 Lotto1 R630'!$C$16>=5,M28,"") ->  | H28: Servizi di manutenzione preventiva | I28: 1 | J28: 10L1-SO-PREV | K28: S10L1-T630-S-PREV | M28: 193
A30: Warranty Upgrades | G30: Protezione dei dati - Keep Your Hard Drive
A31: R730xd
A32: None | B32: ="" ->  | C32: ="" ->  | D32: ="" ->  | E32: ="" ->  | F32: ="" ->  | I32: =IF(($A$22=$A$12),"",IF($A$8=$A$3,I42,IF($A$8=$A$4,I43,IF($A$8=$A$5,I44)))) ->  | J32: =IF(($A$22=$A$12),"",IF($A$8=$A$3,J42,IF($A$8=$A$4,J43,IF($A$8=$A$5,J44)))) ->  | K32: =IF(($A$22=$A$12),"",IF($A$8=$A$3,K42,IF($A$8=$A$4,K43,IF($A$8=$A$5,K44)))) ->  | L32: =IF(($A$22=$A$12),"",IF($A$8=$A$3,L42,IF($A$8=$A$4,L43,IF($A$8=$A$5,L44)))) ->  | M32: =IF(($A$22=$A$12),"",IF($A$8=$A$3,M42,IF($A$8=$A$4,M43,IF($A$8=$A$5,M44)))) -> 
A33: 4Yr Warranty upgrade | B33: 1 | C33: 10L1-SO-12M-S | D33: S10L1-R730xd-S-12M | E33: ="" ->  | F33: 175
A34: 5Yr Warranty upgrade | B34: 1 | C34: 10L1-SO-24M-S | D34: S10L1-R730xd-S-24M | E34: ="" ->  | F34: 350
A36: Estensione Garanzia Selezionata
A37: ='Server10 Lotto1 R730xd'!$B$144 -> None | C37: R730xd
A38: ='Server10 Lotto1 R730xd 2'!$B$144 -> None | C38: R730xd 2
A39: ='Server10 Lotto1 R730xd 3'!$B$144 -> None | C39: R730xd 3
A41: None | B41: ="" ->  | C41: ="" ->  | D41: ="" ->  | E41: ="" ->  | F41: ="" ->  | H41: None
A42: =IF($A$37=$A$32,H42,IF($A$37=$A$33,H43,IF($A$37=$A$34,H44))) -> 3Yr Data Protection - Keep Your Hard Drive | B42: 1 | C42: 10L1-SO-HDD | D42: S10L1-R730xd-S-HDD | E42: =IF($A$37=$A$32,L42,IF($A$37=$A$33,L43,IF($A$37=$A$34,L44))) -> [733-10057] | F42: 150 | H42: 3Yr Data Protection - Keep Your Hard Drive | I42: 1 | J42: 10L1-SO-HDD | K42: S10L1-R730xd-S-HDD | L42: [733-10057] | M42: 150
A43: None | B43: ="" ->  | C43: ="" ->  | D43: ="" ->  | E43: ="" ->  | F43: ="" ->  | H43: 4Yr Data Protection - Keep Your Hard Drive | I43: =I42 -> 1 | J43: =J42 -> 10L1-SO-HDD | K43: =K42 -> S10L1-R730xd-S-HDD | L43: [733-10058] | M43: =M42 -> 150
A44: =IF(A38=A32,H42,IF(A38=A33,H43,IF(A38=A34,H44))) -> 3Yr Data Protection - Keep Your Hard Drive | B44: 1 | C44: 10L1-SO-HDD | D44: S10L1-R730xd-S-HDD | E44: =IF(A38=A32,L42,IF(A38=A33,L43,IF(A38=A34,L44))) -> [733-10057] | F44: 150 | H44: 5Yr Data Protection - Keep Your Hard Drive | I44: =I42 -> 1 | J44: =J42 -> 10L1-SO-HDD | K44: =K42 -> S10L1-R730xd-S-HDD | L44: [733-10059] | M44: =M42 -> 150
A45: None | B45: ="" ->  | C45: ="" ->  | D45: ="" ->  | E45: ="" ->  | F45: ="" -> 
A46: =IF(A39=A32,H42,IF(A39=A33,H43,IF(A39=A34,H44))) -> 3Yr Data Protection - Keep Your Hard Drive | B46: 1 | C46: 10L1-SO-HDD | D46: S10L1-R730xd-S-HDD | E46: =IF(A39=A32,L42,IF(A39=A33,L43,IF(A39=A34,L44))) -> [733-10057] | F46: 150
A50: Protezione dei dati Selezionata
A51: ='Server10 Lotto1 R730xd'!B147 -> None
A53: Servizio Specialistico di System and Network Management per sistema opertivo Windows, erogato on site. | B53: 1 | C53: 10L1-SO-WIN | D53: S10L1-R730xd-S-WIN | F53: 193
A54: Servizio Specialistico di System and Network Management per sistema opertivo Linux, erogato on site. | B54: 1 | C54: 10L1-SO-LINUX | D54: S10L1-R730xd-S-LINUX | F54: 193
A56: None | B56: ="" ->  | C56: ="" ->  | D56: ="" ->  | E56: ="" ->  | F56: ="" -> 
A57: =IF('Server10 Lotto1 R730xd'!$C$16>=5,H57,"None") -> None | B57: =IF('Server10 Lotto1 R730xd'!$C$16>=5,I57,"") ->  | C57: =IF('Server10 Lotto1 R730xd'!$C$16>=5,J57,"") ->  | D57: =IF('Server10 Lotto1 R730xd'!$C$16>=5,K57,"") ->  | E57: =IF('Server10 Lotto1 R730xd'!$C$16>=5,L57,"") ->  | F57: =IF('Server10 Lotto1 R730xd'!$C$16>=5,M57,"") ->  | H57: Servizi di manutenzione preventiva | I57: 1 | J57: 10L1-SO-PREV | K57: S10L1-R730xd-S-PREV | M57: 193
A60: Warranty Upgrades | G60: Protezione dei dati - Keep Your Hard Drive
A61: T630
A62: None | B62: ="" ->  | C62: ="" ->  | D62: ="" ->  | E62: ="" ->  | F62: ="" ->  | I62: =IF(($A$22=$A$12),"",IF($A$8=$A$3,I70,IF($A$8=$A$4,I71,IF($A$8=$A$5,I72)))) ->  | J62: =IF(($A$22=$A$12),"",IF($A$8=$A$3,J70,IF($A$8=$A$4,J71,IF($A$8=$A$5,J72)))) ->  | K62: =IF(($A$22=$A$12),"",IF($A$8=$A$3,K70,IF($A$8=$A$4,K71,IF($A$8=$A$5,K72)))) ->  | L62: =IF(($A$22=$A$12),"",IF($A$8=$A$3,L70,IF($A$8=$A$4,L71,IF($A$8=$A$5,L72)))) ->  | M62: =IF(($A$22=$A$12),"",IF($A$8=$A$3,M70,IF($A$8=$A$4,M71,IF($A$8=$A$5,M72)))) -> 
A63: 4Yr Warranty upgrade | B63: 1 | C63: 10L1-SO-12M-T | D63: S10L1-T630-S-12M | E63: ="" ->  | F63: 175
A64: 5Yr Warranty upgrade | B64: 1 | C64: 10L1-SO-24M-T | D64: S10L1-T630-S-24M | E64: ="" ->  | F64: 350
A66: Estensione Garanzia Selezionata
A67: ='Server10 Lotto1 T630'!B147 -> None
A69: None | B69: ="" ->  | C69: ="" ->  | D69: ="" ->  | E69: ="" ->  | F69: ="" ->  | H69: None
A70: =IF($A$67=$A$62,H70,IF($A$67=$A$63,H71,IF($A$67=$A$64,H72))) -> 3Yr Data Protection - Keep Your Hard Drive | B70: 1 | C70: 10L1-SO-HDD | D70: S10L1-T630-S-HDD | E70: =IF($A$67=$A$62,L70,IF($A$67=$A$63,L71,IF($A$67=$A$64,L72))) -> [733-10057] | F70: 150 | H70: 3Yr Data Protection - Keep Your Hard Drive | I70: 1 | J70: 10L1-SO-HDD | K70: S10L1-T630-S-HDD | L70: [733-10057] | M70: 150
H71: 4Yr Data Protection - Keep Your Hard Drive | I71: =I70 -> 1 | J71: =J70 -> 10L1-SO-HDD | K71: =K70 -> S10L1-T630-S-HDD | L71: [733-10058] | M71: =M70 -> 150
H72: 5Yr Data Protection - Keep Your Hard Drive | I72: =I70 -> 1 | J72: =J70 -> 10L1-SO-HDD | K72: =K70 -> S10L1-T630-S-HDD | L72: [733-10059] | M72: =M70 -> 150
A74: Protezione dei dati Selezionata
A75: ='Server10 Lotto1 T630'!B150 -> None
A77: Servizio Specialistico di System and Network Management per sistema opertivo Windows, erogato on site. | B77: 1 | C77: 10L1-SO-WIN | D77: S10L1-T630-S-WIN | F77: 193
A78: Servizio Specialistico di System and Network Management per sistema opertivo Linux, erogato on site. | B78: 1 | C78: 10L1-SO-LINUX | D78: S10L1-T630-S-LINUX | F78: 193
A80: None | B80: ="" ->  | C80: ="" ->  | D80: ="" ->  | E80: ="" ->  | F80: ="" -> 
A81: =IF('Server10 Lotto1 T630'!$C$12>=5,H81,"None") -> None | B81: =IF('Server10 Lotto1 T630'!$C$12>=5,I81,"") ->  | C81: =IF('Server10 Lotto1 T630'!$C$12>=5,J81,"") ->  | D81: =IF('Server10 Lotto1 T630'!$C$12>=5,K81,"") ->  | E81: =IF('Server10 Lotto1 T630'!$C$12>=5,L81,"") ->  | F81: =IF('Server10 Lotto1 T630'!$C$12>=5,M81,"") ->  | H81: Servizi di manutenzione preventiva | I81: 1 | J81: 10L1-SO-PREV | K81: S10L1-T630-S-PREV | M81: 193
